,Service Area Categorisation,Service Division Categorisation,Responsible Unit,Expenses Types,Detailed Expenses Type,Expense Code,Narrative,Payment Date,Transaction Number,Order ID,Amount,Capital/Revenue,Supplier Name
Schools Total,School Group 2 � Pupil Capacity 144-314,MCC Schools,Dewstow Primary School,Supplies & Services,"Equipment, Furniture and Materials",Materials & Consumables.,,08/02/2023,11093094,80091281,64.99,C,Cosy
Schools Total,School Group 2 � Pupil Capacity 144-314,MCC Schools,Dewstow Primary School,Supplies & Services,"Equipment, Furniture and Materials",Materials & Consumables.,,08/02/2023,11093094,80091281,8.49,C,Cosy
Schools Total,School Group 2 � Pupil Capacity 144-314,MCC Schools,Dewstow Primary School,Supplies & Services,"Equipment, Furniture and Materials",Materials & Consumables.,,08/02/2023,11093094,80091281,24.99,C,Cosy
Schools Total,School Group 2 � Pupil Capacity 144-314,MCC Schools,Dewstow Primary School,Supplies & Services,"Equipment, Furniture and Materials",Materials & Consumables.,,08/02/2023,11093094,80091281,71.99,C,Cosy
Schools Total,School Group 2 � Pupil Capacity 144-314,MCC Schools,Dewstow Primary School,Supplies & Services,"Equipment, Furniture and Materials",Materials & Consumables.,,08/02/2023,11093094,80091281,7.85,C,Cosy
Schools Total,School Group 2 � Pupil Capacity 144-314,MCC Schools,Dewstow Primary School,Supplies & Services,"Equipment, Furniture and Materials",Materials & Consumables.,,08/02/2023,11093094,80091281,19.99,C,Cosy
Schools Total,School Group 2 � Pupil Capacity 144-314,MCC Schools,Dewstow Primary School,Supplies & Services,"Equipment, Furniture and Materials",Materials & Consumables.,,08/02/2023,11093094,80091281,10.49,C,Cosy
Schools Total,School Group 2 � Pupil Capacity 144-314,MCC Schools,Dewstow Primary School,Supplies & Services,"Equipment, Furniture and Materials",Materials & Consumables.,,08/02/2023,11093094,80091281,4.49,C,Cosy
Schools Total,School Group 2 � Pupil Capacity 144-314,MCC Schools,Dewstow Primary School,Supplies & Services,"Equipment, Furniture and Materials",Materials & Consumables.,,08/02/2023,11093094,80091281,16.99,C,Cosy
Schools Total,School Group 2 � Pupil Capacity 144-314,MCC Schools,Dewstow Primary School,Supplies & Services,"Equipment, Furniture and Materials",Materials & Consumables.,,08/02/2023,11093094,80091281,11.85,C,Cosy
Schools Total,School Group 2 � Pupil Capacity 144-314,MCC Schools,Dewstow Primary School,Supplies & Services,"Equipment, Furniture and Materials",Materials & Consumables.,,08/02/2023,11093094,80091281,17.85,C,Cosy
Schools Total,School Group 2 � Pupil Capacity 144-314,MCC Schools,Dewstow Primary School,Supplies & Services,"Equipment, Furniture and Materials",Materials & Consumables.,,08/02/2023,11093094,80091281,29.99,C,Cosy
Schools Total,School Group 2 � Pupil Capacity 144-314,MCC Schools,Dewstow Primary School,Supplies & Services,"Equipment, Furniture and Materials",Materials & Consumables.,,08/02/2023,11093094,80091281,12.99,C,Cosy
Schools Total,School Group 7 � Pupil Capacity 501-1800,MCC Schools,King Henry VIII Comprehensive,Supplies & Services,"Equipment, Furniture and Materials",Equipment Purchases,,20/02/2023,11097993,80091919,431.12,C,Hays Specialist Recruitment Ltd
Capital Division,Capital Dept,Capital,Capital Programme,Supplies & Services,Services,Professional And Specialist Fees,,17/02/2023,11084378,10116130,2817.7,C,WSP UK Limited
Capital Division,Capital Dept,Capital,Capital Programme,Supplies & Services,Services,Professional And Specialist Fees,,17/02/2023,11084379,10119553,1126,C,WSP UK Limited
Schools Total,SCHGRP3 � School Group 3 � Pupil Capacity 315-500,MCC Schools,The Dell Primary School,Supplies & Services,"Equipment, Furniture and Materials",Materials & Consumables.,,07/02/2023,11092648,80086059,197.99,C,RM Educational Resources Ltd
Neighbourhood Services,Highways,Communities & Place,Overhead - Mon Highways,Transport,Contract Hire and Operating Leases,Plant Hire Charge,,15/02/2023,11094400,10128712,704,C,Chepstow Construction Equipment Ltd
Neighbourhood Services,Highways,Communities & Place,Overhead - Mon Highways,Transport,Contract Hire and Operating Leases,Plant Hire Charge,,15/02/2023,11094401,10128712,1320,C,Chepstow Construction Equipment Ltd
"Facilities, Fleet & Decarbonisation",Transport Department,Communities & Place,Transport,Transport,Direct Transport Costs,All Other Non-Contract Transport Work.,,15/02/2023,11093730,0,1326.54,C,Walls Truck Services
"Facilities, Fleet & Decarbonisation",Transport Department,Communities & Place,Transport,Transport,Direct Transport Costs,All Other Non-Contract Transport Work.,,15/02/2023,11093731,0,1821.04,C,Walls Truck Services
Neighbourhood Services,Highways,Communities & Place,Resurfacing,Supplies & Services,Services,Professional And Specialist Fees,,15/02/2023,11094406,819493,156,C,Richard Griffiths Ltd
Neighbourhood Services,Highways,Communities & Place,Gully emptying,Premises,Water Services,Water Services-Metered.,,21/02/2023,11097846,819610,136,C,Aquam Water Services
Neighbourhood Services,Highways,Communities & Place,Gully emptying,Premises,Water Services,Water Services-Metered.,,21/02/2023,11097846,819610,50,C,Aquam Water Services
Community Care,Community Care Team,Social Care and Health,Mental Health Care Team,Supplies & Services,Communications and Computing,IT Hardware,,27/02/2023,11076382,10128398,72.2,C,SRS Public
Community Care,ADULT DISABILITY SERVICES,Social Care and Health,CLDT,Supplies & Services,Communications and Computing,IT Hardware,,27/02/2023,11076388,10128256,81.37,C,SRS Public
Neighbourhood Services,Highways,Communities & Place,Structures Maintenance,Transport,Contract Hire and Operating Leases,Plant Hire Charge,,21/02/2023,11094402,819264,564,C,Skid Steer Hire Solutions
Neighbourhood Services,Highways,Communities & Place,Structures Maintenance,Transport,Contract Hire and Operating Leases,Plant Hire Charge,,21/02/2023,11094404,819264,705,C,Skid Steer Hire Solutions
Schools Total,School Group 7 � Pupil Capacity 501-1800,MCC Schools,Caldicot School,Supplies & Services,Communications and Computing,IT Hardware,,07/02/2023,11092754,80091552,2259,C,Comcen Computer Supplies Ltd
"Facilities, Fleet & Decarbonisation",Transport Planning,Communities & Place,Public Transport Subsidy Grant,Transport,Public Transport,Bus Subsidies,,07/02/2023,11092747,0,1895.03,C,Newport Transport Ltd
Community Care,Community Care Team,Social Care and Health,Abergavenny Adult Team,Supplies & Services,Communications and Computing,IT Hardware,,27/02/2023,11099143,10130015,350,C,SRS Public
Schools Total,School Group 2 � Pupil Capacity 144-314,MCC Schools,Dewstow Primary School,Supplies & Services,"Equipment, Furniture and Materials",Materials & Consumables.,,08/02/2023,11093098,80091453,29,C,Hope Education Ltd
Schools Total,School Group 2 � Pupil Capacity 144-314,MCC Schools,Dewstow Primary School,Supplies & Services,"Equipment, Furniture and Materials",Materials & Consumables.,,08/02/2023,11093097,80091452,13.25,C,School Merit Stickers
Schools Total,School Group 2 � Pupil Capacity 144-314,MCC Schools,Dewstow Primary School,Supplies & Services,"Equipment, Furniture and Materials",Materials & Consumables.,,08/02/2023,11093097,80091452,54,C,School Merit Stickers
Schools Total,School Group 2 � Pupil Capacity 144-314,MCC Schools,Llanfoist Fawr Primary School,Supplies & Services,"Equipment, Furniture and Materials",Equipment Purchases,,08/02/2023,11093117,80091595,29.8,C,Eureka 1st Aid & Safety for Schools
Schools Total,School Group 2 � Pupil Capacity 144-314,MCC Schools,Raglan CiW Primary School (VC),Supplies & Services,"Equipment, Furniture and Materials",Cleaning Materials.,,03/02/2023,11091509,80091162,49.35,C,Screwfix Trade UK
"Commercial, Corporate & landlord Services",Property Services & Facilities Management,Resources,Reactive Maintenance,Premises,"Repairs, Alterations & Maintenance of Buildings",Building Improvements / Maintenance,,15/02/2023,11092303,90062066,1763.5,C,A.J Quinn Building Contractors Ltd
"Facilities, Fleet & Decarbonisation",Property Services -  Cleaning,Communities & Place,Building Cleaning,Supplies & Services,"Equipment, Furniture and Materials",Cleaning Materials.,,21/02/2023,11097879,10122842,131.4,C,Newhall Janitorial Ltd
Children Services,Children Services Teams,Social Care and Health,Family Support and Protection Team,Supplies & Services,Services,Professional And Specialist Fees,,07/02/2023,11092717,10122828,235,C,DNA Legal
Schools Total,School Group 7 � Pupil Capacity 501-1800,MCC Schools,Caldicot School,Supplies & Services,"Equipment, Furniture and Materials",Materials & Consumables.,,07/02/2023,11092751,80091545,38.8,C,Cliffords Sewing Machine Specailists
Schools Total,School Group 7 � Pupil Capacity 501-1800,MCC Schools,Caldicot School,Employees,Direct Employee Expenses,Agency Staff,,07/02/2023,11092752,80091546,966.9,C,Back Office Support Services Ltd (Education Supply Pool)
Schools Total,School Group 7 � Pupil Capacity 501-1800,MCC Schools,Caldicot School,Supplies & Services,"Equipment, Furniture and Materials",Materials & Consumables.,,08/02/2023,11089601,0,54,C,REDACTED DATA
Schools Total,School Group 7 � Pupil Capacity 501-1800,MCC Schools,Caldicot School,Supplies & Services,"Equipment, Furniture and Materials",Materials & Consumables.,,08/02/2023,11089601,0,63.33,C,REDACTED DATA
Schools Total,School Group 7 � Pupil Capacity 501-1800,MCC Schools,Caldicot School,Supplies & Services,"Equipment, Furniture and Materials",Materials & Consumables.,,08/02/2023,11089601,0,9.07,C,REDACTED DATA
Schools Total,School Group 7 � Pupil Capacity 501-1800,MCC Schools,Caldicot School,Supplies & Services,"Equipment, Furniture and Materials",Materials & Consumables.,,08/02/2023,11089601,0,9.79,C,REDACTED DATA
Schools Total,School Group 7 � Pupil Capacity 501-1800,MCC Schools,Caldicot School,Supplies & Services,"Equipment, Furniture and Materials",Materials & Consumables.,,08/02/2023,11089601,0,10.39,C,REDACTED DATA
Schools Total,School Group 7 � Pupil Capacity 501-1800,MCC Schools,Caldicot School,Supplies & Services,"Equipment, Furniture and Materials",Materials & Consumables.,,08/02/2023,11089601,0,39.98,C,REDACTED DATA
Schools Total,School Group 7 � Pupil Capacity 501-1800,MCC Schools,Caldicot School,Supplies & Services,"Equipment, Furniture and Materials",Materials & Consumables.,,08/02/2023,11089601,0,63.25,C,REDACTED DATA
Schools Total,School Group 7 � Pupil Capacity 501-1800,MCC Schools,Caldicot School,Supplies & Services,"Equipment, Furniture and Materials",Materials & Consumables.,,08/02/2023,11089601,0,25.35,C,REDACTED DATA
"Facilities, Fleet & Decarbonisation",Catering Services,Communities & Place,Schools Catering,Supplies & Services,"Equipment, Furniture and Materials",Materials & Consumables.,,08/02/2023,11090251,10122776,4137.89,C,Total Produce(Cardiff)
"Facilities, Fleet & Decarbonisation",Catering Services,Communities & Place,Schools Catering,Supplies & Services,"Equipment, Furniture and Materials",Materials & Consumables.,,08/02/2023,11092285,10122775,219.69,C,Castell Howell Foods Ltd
"Facilities, Fleet & Decarbonisation",Catering Services,Communities & Place,Schools Catering,Supplies & Services,"Equipment, Furniture and Materials",Materials & Consumables.,,08/02/2023,11092285,10122775,-18.96,C,Castell Howell Foods Ltd
"Facilities, Fleet & Decarbonisation",Catering Services,Communities & Place,Schools Catering,Supplies & Services,"Equipment, Furniture and Materials",Materials & Consumables.,,08/02/2023,11092285,10122775,18.96,C,Castell Howell Foods Ltd
Schools Total,School Group 7 � Pupil Capacity 501-1800,MCC Schools,Caldicot School,Supplies & Services,"Equipment, Furniture and Materials",Materials & Consumables.,,03/02/2023,11091847,80091461,25.77,C,Amazon Payments UK Limited
Schools Total,School Group 7 � Pupil Capacity 501-1800,MCC Schools,Caldicot School,Supplies & Services,"Equipment, Furniture and Materials",Materials & Consumables.,,03/02/2023,11091846,80091461,15.78,C,Amazon Payments UK Limited
Schools Total,School Group 7 � Pupil Capacity 501-1800,MCC Schools,Caldicot School,Supplies & Services,"Equipment, Furniture and Materials",Materials & Consumables.,,03/02/2023,11091843,80091461,13.32,C,Amazon Payments UK Limited
"Facilities, Fleet & Decarbonisation",Transport Department,Communities & Place,Transport,Supplies & Services,"Equipment, Furniture and Materials",Materials & Consumables.,,15/02/2023,11093825,0,775,C,Tennants Distribution Limited
"Facilities, Fleet & Decarbonisation",Transport Department,Communities & Place,Transport,Supplies & Services,"Equipment, Furniture and Materials",Materials & Consumables.,,15/02/2023,11094011,0,19.9,C,Mon & Border Motor Factors Ltd
Children Services,Children Services Teams,Social Care and Health,Family Support and Protection Team,Supplies & Services,Services,Professional And Specialist Fees,,15/02/2023,11094326,10122828,274.75,C,DNA Legal
"Facilities, Fleet & Decarbonisation",Transport Department,Communities & Place,Transport,Supplies & Services,"Equipment, Furniture and Materials",Small Plant & Tools.,,15/02/2023,11093329,0,-181.14,C,Mon & Border Motor Factors Ltd
"Commercial, Corporate & landlord Services",Property Services & Facilities Management,Resources,Reactive Maintenance,Premises,"Repairs, Alterations & Maintenance of Buildings",Building Improvements / Maintenance,,15/02/2023,11093414,90067380,212.5,C,Ambassador Fire & Security LTD
"Leisure, Youth & Outdoor Adventure",Leisure Services,MonLife Directorate,Monmouth Leisure Centre,Supplies & Services,"Equipment, Furniture and Materials",Cleaning Materials.,,03/02/2023,11086523,10122944,108.94,C,Newhall Janitorial Ltd
Schools Total,School Group 2 � Pupil Capacity 144-314,MCC Schools,Goytre Fawr Primary School,Supplies & Services,"Equipment, Furniture and Materials",Materials & Consumables.,,03/02/2023,11092229,80091417,10.82,C,Amazon  Payments UK Ltd (Punchout)
Schools Total,School Group 7 � Pupil Capacity 501-1800,MCC Schools,Caldicot School,Supplies & Services,"Equipment, Furniture and Materials",Materials & Consumables.,,03/02/2023,11091838,80091461,16.66,C,Amazon Payments UK Limited
Finance & Business Devlopment,Attractions,MonLife Directorate,Tourist Information Centres,Supplies & Services,Catering,Cafe,,03/02/2023,11091124,10122758,237.27,C,The Welsh Coffee Company
Schools Total,School Group 7 � Pupil Capacity 501-1800,MCC Schools,Caldicot School,Supplies & Services,"Equipment, Furniture and Materials",Materials & Consumables.,,03/02/2023,11091842,80091461,9.98,C,Amazon Payments UK Limited
Schools Total,School Group 7 � Pupil Capacity 501-1800,MCC Schools,Caldicot School,Supplies & Services,"Equipment, Furniture and Materials",Materials & Consumables.,,03/02/2023,11091841,80091461,17.46,C,Amazon Payments UK Limited
"Facilities, Fleet & Decarbonisation",Transport Department,Communities & Place,Transport,Supplies & Services,"Equipment, Furniture and Materials",Small Plant & Tools.,,15/02/2023,11093132,0,181.14,C,Mon & Border Motor Factors Ltd
"Commercial, Corporate & landlord Services",Property Services & Facilities Management,Resources,Reactive Maintenance,Premises,"Repairs, Alterations & Maintenance of Buildings",Building Improvements / Maintenance,,15/02/2023,11092352,90066729,70.18,C,A.J Quinn Building Contractors Ltd
"Commercial, Corporate & landlord Services",Property Services & Facilities Management,Resources,Reactive Maintenance,Premises,"Repairs, Alterations & Maintenance of Buildings",Building Improvements / Maintenance,,15/02/2023,11092335,90065839,344.5,C,A.J Quinn Building Contractors Ltd
Schools Total,School Group 2 � Pupil Capacity 144-314,MCC Schools,Dewstow Primary School,Supplies & Services,"Equipment, Furniture and Materials",Materials & Consumables.,,08/02/2023,11093097,80091452,39.2,C,School Merit Stickers
Schools Total,School Group 2 � Pupil Capacity 144-314,MCC Schools,Dewstow Primary School,Supplies & Services,"Equipment, Furniture and Materials",Materials & Consumables.,,08/02/2023,11093096,80091449,475,C,Community Playthings
Schools Total,School Group 2 � Pupil Capacity 144-314,MCC Schools,Dewstow Primary School,Supplies & Services,"Equipment, Furniture and Materials",Materials & Consumables.,,08/02/2023,11093096,80091449,658,C,Community Playthings
Schools Total,School Group 2 � Pupil Capacity 144-314,MCC Schools,Dewstow Primary School,Supplies & Services,"Equipment, Furniture and Materials",Materials & Consumables.,,08/02/2023,11093096,80091449,1440,C,Community Playthings
Schools Total,School Group 7 � Pupil Capacity 501-1800,MCC Schools,King Henry VIII Comprehensive,Supplies & Services,"Equipment, Furniture and Materials",Equipment Purchases,,20/02/2023,11097995,80091920,128.02,C,Axcis Education Recruitment
Schools Total,School Group 7 � Pupil Capacity 501-1800,MCC Schools,King Henry VIII Comprehensive,Supplies & Services,"Equipment, Furniture and Materials",Equipment Purchases,,20/02/2023,11097994,80091920,532,C,Axcis Education Recruitment
Schools Total,School Group 2 � Pupil Capacity 144-314,MCC Schools,Raglan CiW Primary School (VC),Supplies & Services,"Equipment, Furniture and Materials",Equipment Purchases,,03/02/2023,11092029,80091455,4.99,C,Hope Education Ltd
Schools Total,School Group 2 � Pupil Capacity 144-314,MCC Schools,Raglan CiW Primary School (VC),Supplies & Services,"Equipment, Furniture and Materials",Equipment Purchases,,03/02/2023,11092029,80091455,21.99,C,Hope Education Ltd
Finance,Revenues Department,Resources,Debtors,Supplies & Services,Communications and Computing,Postages,,03/02/2023,11091579,10129737,15,C,Print Trade Suppliers Ltd
Children Services,Children Services Teams,Social Care and Health,Placement & Support Team,Supplies & Services,Services,Professional And Specialist Fees,,03/02/2023,11091897,10118492,1749,C,Cheka Safeguarding Services Limited
"Commercial, Corporate & landlord Services",Asset Management,Resources,Commercialisation of Assets,Supplies & Services,Services,Professional And Specialist Fees,,15/02/2023,11094057,0,9173.97,C,Alder King LLP
"Facilities, Fleet & Decarbonisation",Transport Department,Communities & Place,Transport,Transport,Direct Transport Costs,All Other Non-Contract Transport Work.,,15/02/2023,11093202,0,1181.39,C,Euro Commercials (South Wales) L
Democratic Services,Legal & Land Charges,People & Governance,Local Land Charges,Supplies & Services,Communications and Computing,Software Annual,,15/02/2023,11094342,10129799,500,C,NEC Software Solutions UK Ltd
"Facilities, Fleet & Decarbonisation",Transport Department,Communities & Place,Transport,Transport,Direct Transport Costs,All Other Non-Contract Transport Work.,,15/02/2023,11092486,0,35.61,C,R M Hockey & Son Ltd
"Facilities, Fleet & Decarbonisation",Transport Department,Communities & Place,Transport,Transport,Direct Transport Costs,All Other Non-Contract Transport Work.,,15/02/2023,11092485,0,1198.19,C,R M Hockey & Son Ltd
Schools Total,School Group 2 � Pupil Capacity 144-314,MCC Schools,Goytre Fawr Primary School,Supplies & Services,Services,Professional And Specialist Fees,,03/02/2023,11091433,80090274,660,C,Voyage of Hope Therapy Services Ltd
Schools Total,SCHGRP3 � School Group 3 � Pupil Capacity 315-500,MCC Schools,Overmonnow Primary School,Supplies & Services,"Equipment, Furniture and Materials",Materials & Consumables.,,03/02/2023,11091435,80091249,354.87,C,TTS Group Ltd
Children Services,Children Services Other,Social Care and Health,Building Stronger Familes,Supplies & Services,Communications and Computing,IT Hardware,,27/02/2023,11099136,10130113,74.97,C,SRS Public
Community Care,ADULT DISABILITY SERVICES,Social Care and Health,CLDT,Supplies & Services,Communications and Computing,IT Hardware,,27/02/2023,11099137,10130192,40,C,SRS Public
Schools Total,School Group 2 � Pupil Capacity 144-314,MCC Schools,Usk CiW Primary School (VC),Supplies & Services,"Equipment, Furniture and Materials",Materials & Consumables.,,27/02/2023,11099113,80091976,100,C,Summit Standards Ltd
Corporate (COL),Corporate (COL),Corporate Costs & Levies,Corporate Management (CM),Supplies & Services,Services,Professional And Specialist Fees,,03/02/2023,11091518,10129156,15213.33,C,Wales Audit Office
Capital Division,Capital Dept,Capital,Capital Programme,Supplies & Services,Services,Professional And Specialist Fees,,03/02/2023,11091528,10125853,1519.79,C,Amey Consulting
Capital Division,Capital Dept,Capital,Capital Programme,Premises,Fixtures and Fittings,Alarm Systems,,03/02/2023,11091339,10128315,2488.87,C,Chubb Fire Ltd
Schools Total,School Group 2 � Pupil Capacity 144-314,MCC Schools,Goytre Fawr Primary School,Supplies & Services,"Equipment, Furniture and Materials",Equipment Purchases,,03/02/2023,11092024,80091429,22.79,C,Hope Education Ltd
Schools Total,SCHGRP3 � School Group 3 � Pupil Capacity 315-500,MCC Schools,Deri View Primary School,Supplies & Services,"Equipment, Furniture and Materials",Materials & Consumables.,,15/02/2023,11093855,80089987,-247.05,C,Up And Under Outdoor Gear Ltd.
Schools Total,SCHGRP3 � School Group 3 � Pupil Capacity 315-500,MCC Schools,Deri View Primary School,Supplies & Services,"Equipment, Furniture and Materials",Materials & Consumables.,,15/02/2023,11093855,80089987,247.05,C,Up And Under Outdoor Gear Ltd.
Schools Total,School Group 2 � Pupil Capacity 144-314,MCC Schools,Thornwell Primary School,Supplies & Services,"Equipment, Furniture and Materials",Materials & Consumables.,,27/02/2023,11098900,80090752,7.89,C,Amazon Payments UK Limited
Schools Total,SCHGRP3 � School Group 3 � Pupil Capacity 315-500,MCC Schools,Magor CiW Primary School (VA),Supplies & Services,"Equipment, Furniture and Materials",Equipment Purchases,,08/02/2023,11093107,80091568,135,C,Oxford University Press
Schools Total,SCHGRP3 � School Group 3 � Pupil Capacity 315-500,MCC Schools,Magor CiW Primary School (VA),Supplies & Services,"Equipment, Furniture and Materials",Equipment Purchases,,08/02/2023,11093108,80091569,625,C,WRU Gwent Rugby Limited
Schools Total,School Group 2 � Pupil Capacity 144-314,MCC Schools,Llanfoist Fawr Primary School,Supplies & Services,"Equipment, Furniture and Materials",Equipment Purchases,,08/02/2023,11093117,80091595,32.5,C,Eureka 1st Aid & Safety for Schools
Schools Total,School Group 2 � Pupil Capacity 144-314,MCC Schools,Llanfoist Fawr Primary School,Supplies & Services,"Equipment, Furniture and Materials",Equipment Purchases,,08/02/2023,11093117,80091595,31,C,Eureka 1st Aid & Safety for Schools
Schools Total,School Group 2 � Pupil Capacity 144-314,MCC Schools,Llanfoist Fawr Primary School,Supplies & Services,"Equipment, Furniture and Materials",Equipment Purchases,,08/02/2023,11093117,80091595,28.6,C,Eureka 1st Aid & Safety for Schools
Schools Total,SCHGRP3 � School Group 3 � Pupil Capacity 315-500,MCC Schools,Magor CiW Primary School (VA),Supplies & Services,Communications and Computing,Licences,,08/02/2023,11093109,80091570,147.77,C,MPLC
Schools Total,School Group 2 � Pupil Capacity 144-314,MCC Schools,Llanfoist Fawr Primary School,Supplies & Services,"Equipment, Furniture and Materials",Equipment Purchases,,08/02/2023,11093117,80091595,26.8,C,Eureka 1st Aid & Safety for Schools
Schools Total,School Group 7 � Pupil Capacity 501-1800,MCC Schools,King Henry VIII Comprehensive,Employees,Indirect Employee Expenses,Replacement,,20/02/2023,11097985,80091902,214.56,C,Hays Specialist Recruitment Ltd
Schools Total,School Group 7 � Pupil Capacity 501-1800,MCC Schools,King Henry VIII Comprehensive,Employees,Indirect Employee Expenses,Replacement,,20/02/2023,11097986,80091903,121.65,C,TeacherActive
Schools Total,School Group 7 � Pupil Capacity 501-1800,MCC Schools,King Henry VIII Comprehensive,Employees,Indirect Employee Expenses,Replacement,,20/02/2023,11097987,80091904,136.88,C,Apollo Teaching Services LTD
Schools Total,School Group 7 � Pupil Capacity 501-1800,MCC Schools,King Henry VIII Comprehensive,Employees,Indirect Employee Expenses,Replacement,,20/02/2023,11097988,80091904,773.4,C,Apollo Teaching Services LTD
Schools Total,School Group 7 � Pupil Capacity 501-1800,MCC Schools,King Henry VIII Comprehensive,Employees,Indirect Employee Expenses,Replacement,,20/02/2023,11097989,80091904,193.35,C,Apollo Teaching Services LTD
Schools Total,School Group 7 � Pupil Capacity 501-1800,MCC Schools,King Henry VIII Comprehensive,Employees,Indirect Employee Expenses,Replacement,,20/02/2023,11097990,80091905,721,C,Affinity Workforce Solutions Ltd
Community Care,ADULT DISABILITY SERVICES,Social Care and Health,CLDT,Third Party Payments,Third Party,Personal Care.,,03/02/2023,11092193,0,347.31,C,The Orchard Trust
Community Care,ADULT DISABILITY SERVICES,Social Care and Health,CLDT,Third Party Payments,Third Party,Personal Care.,,03/02/2023,11092194,0,463.08,C,The Orchard Trust
Schools Total,SCHGRP3 � School Group 3 � Pupil Capacity 315-500,MCC Schools,The Dell Primary School,Premises,"Repairs, Alterations & Maintenance of Buildings",Building Improvements / Maintenance,,07/02/2023,11092650,80088868,25.94,C,Robert Price Builders Merchants Ltd
Neighbourhood Services,Highways,Communities & Place,Street Lighting,Third Party Payments,Third Party,Maintenance Contracts,,07/02/2023,11092686,819042,524.72,C,Enerveo Ltd
Neighbourhood Services,Highways,Communities & Place,Street Lighting,Third Party Payments,Third Party,Maintenance Contracts,,07/02/2023,11092689,819042,90.04,C,Enerveo Ltd
Neighbourhood Services,Highways,Communities & Place,Street Lighting,Third Party Payments,Third Party,Maintenance Contracts,,07/02/2023,11092698,819042,610,C,Enerveo Ltd
Neighbourhood Services,Highways,Communities & Place,Street Lighting,Third Party Payments,Third Party,Maintenance Contracts,,07/02/2023,11092700,819042,60.03,C,Enerveo Ltd
Neighbourhood Services,Highways,Communities & Place,Street Lighting,Third Party Payments,Third Party,Maintenance Contracts,,07/02/2023,11092703,819042,561.67,C,Enerveo Ltd
Community Care,Community Care Team,Social Care and Health,Mental Health Care Team,Third Party Payments,Third Party,Personal Care.,,15/02/2023,11094272,0,281.29,C,My Care My Home Ltd
Community Care,Community Care Team,Social Care and Health,Monmouth Adult Team,Third Party Payments,Third Party,Personal Care.,,15/02/2023,11094273,0,112.53,C,My Care My Home Ltd
"Commercial, Corporate & landlord Services",Property Services & Facilities Management,Resources,Gwent Police Collaboration,Premises,"Repairs, Alterations & Maintenance of Buildings",Building Improvements / Maintenance,,21/02/2023,11094398,760019479,23677.56,C,GKR Maintenance & Building Co Ltd
Community Care,Community Care Team,Social Care and Health,Mental Health Care Team,Third Party Payments,Third Party,Personal Care.,,21/02/2023,11098246,0,1297.8,C,Lougher Home Care Ltd
Community Care,INTEGRATED CARE FUND,Social Care and Health,Intermediate Care Fund,Employees,Direct Employee Expenses,Agency Staff,,27/02/2023,11098312,10123916,821.93,C,Piers Meadows Recruitment Limited
Community Care,INTEGRATED CARE FUND,Social Care and Health,Intermediate Care Fund,Employees,Direct Employee Expenses,Agency Staff,,27/02/2023,11098312,10123916,20.7,C,Piers Meadows Recruitment Limited
Community Care,INTEGRATED CARE FUND,Social Care and Health,Intermediate Care Fund,Employees,Direct Employee Expenses,Agency Staff,,27/02/2023,11098312,10123916,-20.7,C,Piers Meadows Recruitment Limited
Community Care,INTEGRATED CARE FUND,Social Care and Health,Intermediate Care Fund,Employees,Direct Employee Expenses,Agency Staff,,27/02/2023,11098313,10123916,815.18,C,Piers Meadows Recruitment Limited
Community Care,INTEGRATED CARE FUND,Social Care and Health,Intermediate Care Fund,Employees,Direct Employee Expenses,Agency Staff,,27/02/2023,11098313,10123916,13.95,C,Piers Meadows Recruitment Limited
Community Care,INTEGRATED CARE FUND,Social Care and Health,Intermediate Care Fund,Employees,Direct Employee Expenses,Agency Staff,,27/02/2023,11098313,10123916,-13.95,C,Piers Meadows Recruitment Limited
Schools Total,School Group 2 � Pupil Capacity 144-314,MCC Schools,Pembroke Primary School,Employees,Direct Employee Expenses,Agency Staff,,27/02/2023,11098386,80091952,563.25,C,Suppleo Recruitment Ltd
Children Services,Children Services Teams,Social Care and Health,Early Help and Assessment Team,Employees,Direct Employee Expenses,Agency Staff,,27/02/2023,11098435,10123553,587.19,C,absolute recruitment limited
Children Services,Children Services Teams,Social Care and Health,Early Help and Assessment Team,Employees,Direct Employee Expenses,Agency Staff,,27/02/2023,11086187,10123553,468.17,C,absolute recruitment limited
Children Services,Children Services Teams,Social Care and Health,Early Help and Assessment Team,Employees,Direct Employee Expenses,Agency Staff,,27/02/2023,11089739,10123553,587.19,C,absolute recruitment limited
Children Services,Children Services Teams,Social Care and Health,Early Help and Assessment Team,Employees,Direct Employee Expenses,Agency Staff,,27/02/2023,11092410,10128662,1540.3,C,Liquid Personnel
Children Services,Children Services Teams,Social Care and Health,Early Help and Assessment Team,Employees,Direct Employee Expenses,Agency Staff,,27/02/2023,11092411,10128662,1538.5,C,Liquid Personnel
Children Services,Children Services Teams,Social Care and Health,Early Help and Assessment Team,Employees,Direct Employee Expenses,Agency Staff,,27/02/2023,11093350,10123553,523.71,C,absolute recruitment limited
Children Services,Children Services Teams,Social Care and Health,Early Help and Assessment Team,Employees,Direct Employee Expenses,Agency Staff,,27/02/2023,11094335,10123553,468.17,C,absolute recruitment limited
Schools Total,School Group 2 � Pupil Capacity 144-314,MCC Schools,Our Lady & St Michael's (OLSM) RC Primary School (VA),Employees,Direct Employee Expenses,Agency Staff,,27/02/2023,11094458,80091779,547.4,C,Apollo Teaching Services LTD
Schools Total,School Group 2 � Pupil Capacity 144-314,MCC Schools,Our Lady & St Michael's (OLSM) RC Primary School (VA),Employees,Direct Employee Expenses,Agency Staff,,27/02/2023,11094459,80091779,547.4,C,Apollo Teaching Services LTD
Schools Total,School Group 2 � Pupil Capacity 144-314,MCC Schools,Our Lady & St Michael's (OLSM) RC Primary School (VA),Employees,Direct Employee Expenses,Agency Staff,,27/02/2023,11094460,80091779,195.02,C,Apollo Teaching Services LTD
Community Care,INTEGRATED CARE FUND,Social Care and Health,Intermediate Care Fund,Employees,Direct Employee Expenses,Agency Staff,,27/02/2023,11093967,10129399,816.08,C,Piers Meadows Recruitment Limited
Community Care,INTEGRATED CARE FUND,Social Care and Health,Intermediate Care Fund,Employees,Direct Employee Expenses,Agency Staff,,27/02/2023,11093967,10129399,-14.85,C,Piers Meadows Recruitment Limited
Community Care,INTEGRATED CARE FUND,Social Care and Health,Intermediate Care Fund,Employees,Direct Employee Expenses,Agency Staff,,27/02/2023,11093967,10129399,14.85,C,Piers Meadows Recruitment Limited
Schools Total,School Group 2 � Pupil Capacity 144-314,MCC Schools,Llanfoist Fawr Primary School,Premises,"Repairs, Alterations & Maintenance of Buildings",Building Improvements / Maintenance,,27/02/2023,11098793,90067152,69,C,A.J Quinn Building Contractors Ltd
Capital Division,Capital Dept,Capital,Capital Programme,Premises,"Repairs, Alterations & Maintenance of Buildings",Building Improvements / Maintenance,,27/02/2023,11098785,90067051,23412,C,A.J Quinn Building Contractors Ltd
Schools Total,School Group 2 � Pupil Capacity 144-314,MCC Schools,Rogiet Primary School,Employees,Direct Employee Expenses,Agency Staff,,27/02/2023,11098896,80085325,951.23,C,TeacherActive
"Commercial, Corporate & landlord Services",Property Services & Facilities Management,Resources,Gwent Police Collaboration,Premises,"Repairs, Alterations & Maintenance of Buildings",Building Improvements / Maintenance,,27/02/2023,11099007,760020483,34.5,C,A.J Quinn Building Contractors Ltd
"Commercial, Corporate & landlord Services",Property Services & Facilities Management,Resources,Gwent Police Collaboration,Premises,"Repairs, Alterations & Maintenance of Buildings",Building Improvements / Maintenance,,27/02/2023,11099022,760020653,91.68,C,A.J Quinn Building Contractors Ltd
Schools Total,School Group 7 � Pupil Capacity 501-1800,MCC Schools,King Henry VIII Comprehensive,Premises,"Repairs, Alterations & Maintenance of Buildings",Premises Repairs And Maintenance,,27/02/2023,11098911,80091948,14.16,C,Screwfix Trade UK
Children Services,Children Services Teams,Social Care and Health,Disabled Children,Premises,"Repairs, Alterations & Maintenance of Buildings",Building Improvements / Maintenance,,21/02/2023,11097859,10112884,2269.33,C,Rhondda Cynon Taff Cbc
Schools Total,School Group 2 � Pupil Capacity 144-314,MCC Schools,Rogiet Primary School,Premises,"Repairs, Alterations & Maintenance of Buildings",Building Improvements / Maintenance,,21/02/2023,11094056,90066219,23,C,A.J Quinn Building Contractors Ltd
Schools Total,School Group 2 � Pupil Capacity 144-314,MCC Schools,Dewstow Primary School,Premises,"Repairs, Alterations & Maintenance of Buildings",Building Improvements / Maintenance,,21/02/2023,11094058,90066239,82.56,C,A.J Quinn Building Contractors Ltd
Schools Total,School Group 7 � Pupil Capacity 501-1800,MCC Schools,King Henry VIII Comprehensive,Employees,Indirect Employee Expenses,Replacement,,21/02/2023,11097992,80091917,204.39,C,Teaching Personnel
Schools Total,School Group 7 � Pupil Capacity 501-1800,MCC Schools,King Henry VIII Comprehensive,Employees,Indirect Employee Expenses,Replacement,,21/02/2023,11097992,80091917,408.78,C,Teaching Personnel
Schools Total,School Group 7 � Pupil Capacity 501-1800,MCC Schools,King Henry VIII Comprehensive,Employees,Indirect Employee Expenses,Replacement,,21/02/2023,11097992,80091917,568.25,C,Teaching Personnel
Schools Total,School Group 7 � Pupil Capacity 501-1800,MCC Schools,King Henry VIII Comprehensive,Employees,Indirect Employee Expenses,Replacement,,21/02/2023,11097992,80091917,568.25,C,Teaching Personnel
Community Care,Community Care Team,Social Care and Health,Mental Health Care Team,Third Party Payments,Third Party,Personal Care.,,21/02/2023,11098249,0,1586.2,C,Lougher Home Care Ltd
"Commercial, Corporate & landlord Services",Property Services & Facilities Management,Resources,Gwent Police Collaboration,Premises,"Repairs, Alterations & Maintenance of Buildings",Building Improvements / Maintenance,,27/02/2023,11099036,760020704,121.66,C,A.J Quinn Building Contractors Ltd
Community Care,Community Care Team,Social Care and Health,Abergavenny Adult Team,Third Party Payments,Third Party,Personal Care.,,15/02/2023,11094278,0,360.04,C,Allied Healthcare Services Limited
Schools Total,School Group 7 � Pupil Capacity 501-1800,MCC Schools,Caldicot School,Premises,"Repairs, Alterations & Maintenance of Buildings",Building Improvements / Maintenance,,15/02/2023,11092356,90066754,263.99,C,A.J Quinn Building Contractors Ltd
Community Care,Community Care Team,Social Care and Health,Abergavenny Adult Team,Third Party Payments,Third Party,Personal Care.,,15/02/2023,11094289,0,267.4,C,Allied Healthcare Services Limited
Community Care,Community Care Team,Social Care and Health,Abergavenny Adult Team,Third Party Payments,Third Party,Personal Care.,,03/02/2023,11091836,0,189,C,Q Care Ltd
Community Care,Community Care Team,Social Care and Health,Abergavenny Adult Team,Third Party Payments,Third Party,Personal Care.,,03/02/2023,11092023,0,613.2,C,Q Care Ltd
Community Care,ADULT DISABILITY SERVICES,Social Care and Health,CLDT,Third Party Payments,Third Party,Personal Care.,,03/02/2023,11091950,0,4132.8,C,Grove Care Partnership Limited (Consensus)
"Policy, Scrutiny & Customer Service",Ukraine,Chief Executive's Unit,Ukrainian Welcome Centre,Supplies & Services,"Equipment, Furniture and Materials",Furniture Purchases / Replacement,,03/02/2023,11091948,10129581,152,C,Forest Upcycling Project
Schools Total,School Group 2 � Pupil Capacity 144-314,MCC Schools,Usk CiW Primary School (VC),Employees,Direct Employee Expenses,Agency Staff,,27/02/2023,11099118,80090654,619.45,C,Teaching Personnel
Schools Total,School Group 2 � Pupil Capacity 144-314,MCC Schools,Pembroke Primary School,Premises,"Repairs, Alterations & Maintenance of Buildings",Premises Repairs And Maintenance,,27/02/2023,11099119,80090942,1260,C,IDN Supplies Ltd
Community Care,ADULT DISABILITY SERVICES,Social Care and Health,CLDT,Third Party Payments,Third Party,Personal Care.,,01/02/2023,11091437,0,26.1,C,Achieve Together Limited
Community Care,ADULT DISABILITY SERVICES,Social Care and Health,CLDT,Third Party Payments,Third Party,Personal Care.,,01/02/2023,11091444,0,75,C,Achieve Together Limited
Community Care,Community Care Team,Social Care and Health,Monmouth Adult Team,Third Party Payments,Third Party,Personal Care.,,01/02/2023,11091375,0,1652.5,C,Helping Hands
Community Care,Community Care Team,Social Care and Health,Monmouth Adult Team,Third Party Payments,Third Party,Personal Care.,,01/02/2023,11091376,0,282,C,Helping Hands
"Commercial, Corporate & landlord Services",Property Services & Facilities Management,Resources,Programmed Maintenance,Premises,"Repairs, Alterations & Maintenance of Buildings",Premises Repairs And Maintenance,,27/02/2023,11099037,90063722,613.95,C,Kone Plc
"Commercial, Corporate & landlord Services",Property Services & Facilities Management,Resources,Usk Accommodation,Premises,"Repairs, Alterations & Maintenance of Buildings",Premises Repairs And Maintenance,,27/02/2023,11099108,90063306,140.9,C,Kone Plc
"Commercial, Corporate & landlord Services",Property Services & Facilities Management,Resources,Usk Accommodation,Premises,"Repairs, Alterations & Maintenance of Buildings",Premises Repairs And Maintenance,,27/02/2023,11099038,90063727,85.59,C,Kone Plc
"Commercial, Corporate & landlord Services",Property Services & Facilities Management,Resources,Usk Accommodation,Premises,"Repairs, Alterations & Maintenance of Buildings",Premises Repairs And Maintenance,,27/02/2023,11099019,90063306,234.96,C,Kone Plc
"Commercial, Corporate & landlord Services",Property Services & Facilities Management,Resources,Usk Accommodation,Premises,"Repairs, Alterations & Maintenance of Buildings",Premises Repairs And Maintenance,,27/02/2023,11099008,90063306,123.28,C,Kone Plc
"Commercial, Corporate & landlord Services",Property Services & Facilities Management,Resources,Usk Accommodation,Premises,"Repairs, Alterations & Maintenance of Buildings",Premises Repairs And Maintenance,,27/02/2023,11099006,90063306,142.03,C,Kone Plc
"Commercial, Corporate & landlord Services",Property Services & Facilities Management,Resources,Reactive Maintenance,Premises,"Repairs, Alterations & Maintenance of Buildings",Building Improvements / Maintenance,,27/02/2023,11098938,90067381,4299.76,C,A.J Quinn Building Contractors Ltd
"Policy, Scrutiny & Customer Service",Customer Relations,Chief Executive's Unit,Complaints,Supplies & Services,Services,Professional And Specialist Fees,,27/02/2023,11098877,10125563,959,C,CAI Consultancy Limited
Children Services,Children Services Other,Social Care and Health,Face to Face Counselling,Supplies & Services,Services,Professional And Specialist Fees,,27/02/2023,11098875,10124746,90,C,REDACTED PERSONAL DATA
"Commercial, Corporate & landlord Services",Property Services & Facilities Management,Resources,Reactive Maintenance,Premises,"Repairs, Alterations & Maintenance of Buildings",Building Improvements / Maintenance,,27/02/2023,11098823,90067300,97.93,C,A.J Quinn Building Contractors Ltd
"Commercial, Corporate & landlord Services",Property Services & Facilities Management,Resources,Reactive Maintenance,Premises,"Repairs, Alterations & Maintenance of Buildings",Building Improvements / Maintenance,,27/02/2023,11098806,90067296,158.55,C,A.J Quinn Building Contractors Ltd
"Commercial, Corporate & landlord Services",Property Services & Facilities Management,Resources,Reactive Maintenance,Premises,"Repairs, Alterations & Maintenance of Buildings",Building Improvements / Maintenance,,27/02/2023,11098796,90067156,62.63,C,A.J Quinn Building Contractors Ltd
"Commercial, Corporate & landlord Services",Property Services & Facilities Management,Resources,Reactive Maintenance,Premises,"Repairs, Alterations & Maintenance of Buildings",Building Improvements / Maintenance,,27/02/2023,11098698,90066740,336.77,C,A.J Quinn Building Contractors Ltd
"Commercial, Corporate & landlord Services",Property Services & Facilities Management,Resources,Reactive Maintenance,Premises,"Repairs, Alterations & Maintenance of Buildings",Building Improvements / Maintenance,,27/02/2023,11098697,90066739,34.5,C,A.J Quinn Building Contractors Ltd
"Commercial, Corporate & landlord Services",Property Services & Facilities Management,Resources,Reactive Maintenance,Premises,"Repairs, Alterations & Maintenance of Buildings",Building Improvements / Maintenance,,27/02/2023,11098578,90066079,1893.46,C,A.J Quinn Building Contractors Ltd
"Leisure, Youth & Outdoor Adventure",Leisure Services,MonLife Directorate,Monmouth Leisure Centre,Supplies & Services,"Equipment, Furniture and Materials",Chemicals.,,27/02/2023,11098309,10122906,469.81,C,UNIVAR
"Facilities, Fleet & Decarbonisation",Catering Services,Communities & Place,Schools Catering,Supplies & Services,"Equipment, Furniture and Materials",Materials & Consumables.,,08/02/2023,11090253,10122779,14.84,C,Newhall Janitorial Ltd
"Facilities, Fleet & Decarbonisation",Catering Services,Communities & Place,Schools Catering,Supplies & Services,"Equipment, Furniture and Materials",Materials & Consumables.,,08/02/2023,11090521,10122774,4892.06,C,Castell Howell Foods Ltd
"Facilities, Fleet & Decarbonisation",Catering Services,Communities & Place,Schools Catering,Supplies & Services,"Equipment, Furniture and Materials",Materials & Consumables.,,08/02/2023,11090521,10122774,4877.78,C,Castell Howell Foods Ltd
"Facilities, Fleet & Decarbonisation",Catering Services,Communities & Place,Schools Catering,Supplies & Services,"Equipment, Furniture and Materials",Materials & Consumables.,,08/02/2023,11090521,10122774,-4877.78,C,Castell Howell Foods Ltd
"Facilities, Fleet & Decarbonisation",Catering Services,Communities & Place,Schools Catering,Supplies & Services,"Equipment, Furniture and Materials",Materials & Consumables.,,08/02/2023,11090523,10122779,459.62,C,Newhall Janitorial Ltd
"Facilities, Fleet & Decarbonisation",Catering Services,Communities & Place,Schools Catering,Supplies & Services,"Equipment, Furniture and Materials",Materials & Consumables.,,08/02/2023,11090905,10122777,5958.99,C,Total Produce (Hereford)
"Facilities, Fleet & Decarbonisation",Catering Services,Communities & Place,Schools Catering,Supplies & Services,"Equipment, Furniture and Materials",Materials & Consumables.,,08/02/2023,11090906,10122777,4111.38,C,Total Produce (Hereford)
Schools Total,School Group 2 � Pupil Capacity 144-314,MCC Schools,Thornwell Primary School,Premises,Ground Maintenance Costs,Grounds Maintenance - Direct.,,08/02/2023,11091310,80090689,309.16,C,Morris's Grounds Maintenance Ltd
"Leisure, Youth & Outdoor Adventure",Youth & Education,MonLife Directorate,Gilwern,Premises,Energy Costs,Heating Oil.,,08/02/2023,11091450,10129681,1742.6,C,Certas Energy UK T/A Emo Oils
"Facilities, Fleet & Decarbonisation",Transport Department,Communities & Place,Transport,Transport,Direct Transport Costs,M.O.T. Test,,08/02/2023,11091419,0,45,C,R M Hockey & Son Ltd
"Facilities, Fleet & Decarbonisation",Transport Department,Communities & Place,Transport,Transport,Direct Transport Costs,M.O.T. Test,,08/02/2023,11091419,0,11.87,C,R M Hockey & Son Ltd
"Facilities, Fleet & Decarbonisation",Catering Services,Communities & Place,Schools Catering,Supplies & Services,"Equipment, Furniture and Materials",Materials & Consumables.,,08/02/2023,11091684,10122778,801.32,C,Raglan Dairy Ltd
"Facilities, Fleet & Decarbonisation",Catering Services,Communities & Place,Schools Catering,Supplies & Services,"Equipment, Furniture and Materials",Materials & Consumables.,,08/02/2023,11091685,10122778,1194.85,C,Raglan Dairy Ltd
"Facilities, Fleet & Decarbonisation",Catering Services,Communities & Place,Schools Catering,Supplies & Services,"Equipment, Furniture and Materials",Materials & Consumables.,,08/02/2023,11091686,10122781,391.5,C,REDACTED PERSONAL DATA
Schools Total,School Group 7 � Pupil Capacity 501-1800,MCC Schools,Caldicot School,Supplies & Services,"Equipment, Furniture and Materials",Materials & Consumables.,,03/02/2023,11091849,80091461,9.16,C,Amazon Payments UK Limited
Schools Total,School Group 7 � Pupil Capacity 501-1800,MCC Schools,Caldicot School,Employees,Direct Employee Expenses,Agency Staff,,07/02/2023,11092759,80091539,1129.25,C,TeacherActive
Schools Total,School Group 7 � Pupil Capacity 501-1800,MCC Schools,Caldicot School,Employees,Direct Employee Expenses,Agency Staff,,07/02/2023,11092764,80091544,485.16,C,Suppleo Recruitment Ltd
Schools Total,School Group 7 � Pupil Capacity 501-1800,MCC Schools,Caldicot School,Employees,Direct Employee Expenses,Agency Staff,,07/02/2023,11092764,80091544,606.45,C,Suppleo Recruitment Ltd
Community Care,Community Care Team,Social Care and Health,Monmouth Adult Team,Third Party Payments,Third Party,Personal Care.,,01/02/2023,11091379,0,2220,C,Helping Hands
Community Care,ADULT DISABILITY SERVICES,Social Care and Health,CLDT,Third Party Payments,Third Party,Personal Care.,,03/02/2023,11092198,0,1000,C,Sense Cymru
Community Care,Community Care Team,Social Care and Health,Mental Health Care Team,Third Party Payments,Third Party,Personal Care.,,03/02/2023,11092197,0,375,C,Penpergwm House Ltd
Community Care,Community Care Team,Social Care and Health,Abergavenny Adult Team,Third Party Payments,Third Party,Personal Care.,,03/02/2023,11091960,0,747.6,C,Q Care Ltd
Community Care,Community Care Team,Social Care and Health,Abergavenny Adult Team,Third Party Payments,Third Party,Personal Care.,,03/02/2023,11092028,0,138.6,C,Q Care Ltd
Schools Total,School Group 2 � Pupil Capacity 144-314,MCC Schools,Archbishop Rowan Williams CiW Primary School (VA),Supplies & Services,"Equipment, Furniture and Materials",Sanitac Units,,03/02/2023,11092232,80091201,30.15,C,Initial Washrooms & Hygiene
Schools Total,SCHGRP3 � School Group 3 � Pupil Capacity 315-500,MCC Schools,Magor CiW Primary School (VA),Employees,Direct Employee Expenses,Agency Staff,,03/02/2023,11092026,80091437,1151.49,C,TeacherActive
Community Care,Community Care Team,Social Care and Health,Monmouth Adult Team,Third Party Payments,Third Party,Personal Care.,,15/02/2023,11094393,0,96,C,Home Instead Senior Care
Schools Total,School Group 2 � Pupil Capacity 144-314,MCC Schools,Dewstow Primary School,Premises,"Repairs, Alterations & Maintenance of Buildings",Building Improvements / Maintenance,,15/02/2023,11092484,90067209,82.68,C,A.J Quinn Building Contractors Ltd
Neighbourhood Services,Highways,Communities & Place,Street Lighting,Third Party Payments,Third Party,Maintenance Contracts,,07/02/2023,11092706,819042,1067.93,C,Enerveo Ltd
Standards,Inclusions,Children & Young People,Community Focused Schools Childcare Grant,Supplies & Services,Grants and Subscriptions,Grants Payable,,15/02/2023,11094345,10130006,216,C,Abacus Day Nursery
Community Care,Community Care Team,Social Care and Health,Monmouth Adult Team,Third Party Payments,Third Party,Personal Care.,,01/02/2023,11091373,0,1125,C,Helping Hands
Community Care,Community Care Team,Social Care and Health,Monmouth Adult Team,Third Party Payments,Third Party,Personal Care.,,01/02/2023,11091380,0,637.5,C,Helping Hands
Community Care,Community Care Team,Social Care and Health,Monmouth Adult Team,Third Party Payments,Third Party,Personal Care.,,01/02/2023,11091416,0,1042.5,C,Helping Hands
Community Care,Community Care Team,Social Care and Health,Mental Health Care Team,Third Party Payments,Third Party,Personal Care.,,01/02/2023,11091397,0,592.5,C,Helping Hands
Community Care,Community Care Team,Social Care and Health,Mental Health Care Team,Third Party Payments,Third Party,Personal Care.,,01/02/2023,11091421,0,670,C,Helping Hands
Community Care,Community Care Team,Social Care and Health,Abergavenny Adult Team,Third Party Payments,Third Party,Personal Care.,,03/02/2023,11091965,0,2016,C,Q Care Ltd
Schools Total,School Group 2 � Pupil Capacity 144-314,MCC Schools,Archbishop Rowan Williams CiW Primary School (VA),Supplies & Services,"Equipment, Furniture and Materials",Sanitac Units,,03/02/2023,11092233,80091202,30.15,C,Initial Washrooms & Hygiene
Finance,Revenues Department,Resources,Debtors,Supplies & Services,"Printing, Stationery and General Office Expenses",Printing,,03/02/2023,11091579,10129737,140,C,Print Trade Suppliers Ltd
Public Protection,Public Protection,Social Care and Health,Public Health,Supplies & Services,"Printing, Stationery and General Office Expenses",Printing,,27/02/2023,11099547,10130359,24,C,Zenith Print and Packaging Ltd
Neighbourhood Services,Highways,Communities & Place,Street Lighting,Third Party Payments,Third Party,Maintenance Contracts,,27/02/2023,11098473,819041,176.83,C,Enerveo Ltd
Community Care,Community Care Team,Social Care and Health,Abergavenny Adult Team,Third Party Payments,Third Party,Personal Care.,,27/02/2023,11099400,0,50,C,Achieve Together Limited
Community Care,Community Care Team,Social Care and Health,Abergavenny Adult Team,Third Party Payments,Third Party,Personal Care.,,20/02/2023,11098016,0,799.68,C,Castle Care Supported Living
Community Care,Community Care Team,Social Care and Health,Abergavenny Adult Team,Third Party Payments,Third Party,Personal Care.,,20/02/2023,11098016,0,881.28,C,Castle Care Supported Living
Community Care,Community Care Team,Social Care and Health,Abergavenny Adult Team,Third Party Payments,Third Party,Personal Care.,,20/02/2023,11098016,0,742.56,C,Castle Care Supported Living
Community Care,Community Care Team,Social Care and Health,Abergavenny Adult Team,Third Party Payments,Third Party,Personal Care.,,20/02/2023,11098016,0,685.44,C,Castle Care Supported Living
Community Care,Community Care Team,Social Care and Health,Mental Health Care Team,Third Party Payments,Third Party,Personal Care.,,20/02/2023,11098016,0,326.4,C,Castle Care Supported Living
Community Care,Community Care Team,Social Care and Health,Mental Health Care Team,Third Party Payments,Third Party,Personal Care.,,20/02/2023,11098016,0,652.8,C,Castle Care Supported Living
Community Care,Community Care Team,Social Care and Health,Mental Health Care Team,Third Party Payments,Third Party,Personal Care.,,20/02/2023,11098016,0,571.2,C,Castle Care Supported Living
Community Care,Community Care Team,Social Care and Health,Mental Health Care Team,Third Party Payments,Third Party,Personal Care.,,20/02/2023,11098016,0,652.8,C,Castle Care Supported Living
Community Care,Community Care Team,Social Care and Health,Mental Health Care Team,Third Party Payments,Third Party,Personal Care.,,20/02/2023,11098016,0,1142.4,C,Castle Care Supported Living
Community Care,Community Care Team,Social Care and Health,Mental Health Care Team,Third Party Payments,Third Party,Personal Care.,,20/02/2023,11098016,0,1562.64,C,Castle Care Supported Living
Schools Total,School Group 2 � Pupil Capacity 144-314,MCC Schools,Llanfoist Fawr Primary School,Supplies & Services,"Equipment, Furniture and Materials",Equipment Purchases,,08/02/2023,11093117,80091595,14.2,C,Eureka 1st Aid & Safety for Schools
Schools Total,School Group 2 � Pupil Capacity 144-314,MCC Schools,Llanfoist Fawr Primary School,Supplies & Services,"Equipment, Furniture and Materials",Equipment Purchases,,08/02/2023,11093117,80091595,31.8,C,Eureka 1st Aid & Safety for Schools
Schools Total,School Group 2 � Pupil Capacity 144-314,MCC Schools,Llanfoist Fawr Primary School,Supplies & Services,"Equipment, Furniture and Materials",Equipment Purchases,,08/02/2023,11093117,80091595,7.1,C,Eureka 1st Aid & Safety for Schools
Schools Total,School Group 2 � Pupil Capacity 144-314,MCC Schools,Llanfoist Fawr Primary School,Supplies & Services,"Equipment, Furniture and Materials",Equipment Purchases,,08/02/2023,11093117,80091595,4.8,C,Eureka 1st Aid & Safety for Schools
Schools Total,School Group 2 � Pupil Capacity 144-314,MCC Schools,Llanfoist Fawr Primary School,Supplies & Services,"Equipment, Furniture and Materials",Equipment Purchases,,08/02/2023,11093117,80091595,20.7,C,Eureka 1st Aid & Safety for Schools
Schools Total,SCHGRP3 � School Group 3 � Pupil Capacity 315-500,MCC Schools,The Dell Primary School,Supplies & Services,"Equipment, Furniture and Materials",Equipment Purchases,,08/02/2023,11091501,80091424,59,C,Chubb Fire Ltd
Schools Total,School Group 7 � Pupil Capacity 501-1800,MCC Schools,King Henry VIII Comprehensive,Supplies & Services,"Equipment, Furniture and Materials",Equipment Purchases,,08/02/2023,11093176,80091492,6.66,C,Amazon Payments UK Limited
"Leisure, Youth & Outdoor Adventure",Youth & Education,MonLife Directorate,Gilwern,Supplies & Services,"Equipment, Furniture and Materials",Provisions.,,01/02/2023,11092205,0,18.8,C,REDACTED DATA
"Leisure, Youth & Outdoor Adventure",Youth & Education,MonLife Directorate,Gilwern,Supplies & Services,"Equipment, Furniture and Materials",Provisions.,,01/02/2023,11092205,0,12.85,C,REDACTED DATA
Adult Services,Direct Care Residential,Social Care and Health,Severn View Residential,Supplies & Services,"Printing, Stationery and General Office Expenses",Publications,,08/02/2023,11092253,10129858,389.7,C,News Team
"Leisure, Youth & Outdoor Adventure",Leisure Services,MonLife Directorate,Monmouth Leisure Centre,Supplies & Services,Catering,Catering,,03/02/2023,11091455,10122932,88.77,C,Castell Howell Foods Ltd
"Leisure, Youth & Outdoor Adventure",Leisure Services,MonLife Directorate,Monmouth Leisure Centre,Supplies & Services,Catering,Catering,,03/02/2023,11091455,10122932,-27.02,C,Castell Howell Foods Ltd
"Leisure, Youth & Outdoor Adventure",Leisure Services,MonLife Directorate,Monmouth Leisure Centre,Supplies & Services,Catering,Catering,,03/02/2023,11091455,10122932,27.02,C,Castell Howell Foods Ltd
"Policy, Scrutiny & Customer Service",Community Hubs,Chief Executive's Unit,Strategic Management,Supplies & Services,"Printing, Stationery and General Office Expenses",Book Purchases,,10/02/2023,11091305,0,621.83,C,Askews & Holts Library Services Ltd
"Policy, Scrutiny & Customer Service",Community Hubs,Chief Executive's Unit,Strategic Management,Supplies & Services,"Printing, Stationery and General Office Expenses",Book Purchases,,10/02/2023,11091305,0,95.41,C,Askews & Holts Library Services Ltd
Information Communication Technology,Technology & Organisational Design,Resources,SRS Contribution,Employees,Indirect Employee Expenses,Other Staff Costs,,27/02/2023,11099149,10128391,19162,C,SRS Public
Neighbourhood Services,Waste and Street Services,Communities & Place,Refuse & Cleansing Operations,Supplies & Services,Communications and Computing,Postages,,27/02/2023,11099139,10129749,223,C,Straight Plc
Children Services,Children Services Teams,Social Care and Health,MyST,Employees,Indirect Employee Expenses,Other Staff Costs,,21/02/2023,11098163,10129899,2399.25,C,Torfaen County Borough Council
"Leisure, Youth & Outdoor Adventure",Youth & Education,MonLife Directorate,Gilwern,Supplies & Services,"Equipment, Furniture and Materials",Provisions.,,01/02/2023,4068713,0,-18.8,C,REDACTED DATA
"Leisure, Youth & Outdoor Adventure",Youth & Education,MonLife Directorate,Gilwern,Supplies & Services,"Equipment, Furniture and Materials",Provisions.,,01/02/2023,4068713,0,-12.85,C,REDACTED DATA
"Facilities, Fleet & Decarbonisation",Transport Department,Communities & Place,Transport,Supplies & Services,Communications and Computing,Computer Consumables,,15/02/2023,11093135,0,6.11,C,Amazon Payments UK Limited
Schools Total,School Group 7 � Pupil Capacity 501-1800,MCC Schools,King Henry VIII Comprehensive,Supplies & Services,"Equipment, Furniture and Materials",Equipment Purchases,,14/02/2023,11092649,80086506,53.97,C,RM Educational Resources Ltd
"Policy, Scrutiny & Customer Service",Community Hubs,Chief Executive's Unit,Strategic Management,Supplies & Services,Services,Professional And Specialist Fees,,14/02/2023,11092632,10129650,1294.03,C,Isle of Anglesey County Council
Schools Total,School Group 7 � Pupil Capacity 501-1800,MCC Schools,King Henry VIII Comprehensive,Supplies & Services,Communications and Computing,Computer Consumables,,14/02/2023,11092573,80091495,213.32,C,Cartridge Save Ltd
Schools Total,SCHGRP3 � School Group 3 � Pupil Capacity 315-500,MCC Schools,Undy Primary School,Supplies & Services,"Equipment, Furniture and Materials",Equipment Purchases,,14/02/2023,11093997,80091667,82.88,C,Hope Education Ltd
Schools Total,SCHGRP3 � School Group 3 � Pupil Capacity 315-500,MCC Schools,Undy Primary School,Supplies & Services,"Equipment, Furniture and Materials",Equipment Purchases,,14/02/2023,11093997,80091667,13.97,C,Hope Education Ltd
Schools Total,SCHGRP3 � School Group 3 � Pupil Capacity 315-500,MCC Schools,Undy Primary School,Supplies & Services,"Equipment, Furniture and Materials",Materials & Consumables.,,14/02/2023,11093996,80091593,122.31,C,Hope Education Ltd
Schools Total,School Group 2 � Pupil Capacity 144-314,MCC Schools,Dewstow Primary School,Supplies & Services,"Equipment, Furniture and Materials",Materials & Consumables.,,14/02/2023,11093991,80091450,69.48,C,Cosy
Schools Total,School Group 2 � Pupil Capacity 144-314,MCC Schools,Dewstow Primary School,Supplies & Services,"Equipment, Furniture and Materials",Materials & Consumables.,,14/02/2023,11093991,80091450,5.95,C,Cosy
Schools Total,School Group 7 � Pupil Capacity 501-1800,MCC Schools,Caldicot School,Supplies & Services,"Equipment, Furniture and Materials",Equipment Purchases,,14/02/2023,11093989,80091034,221.98,C,G.P.P. Hygiene
Schools Total,School Group 7 � Pupil Capacity 501-1800,MCC Schools,Chepstow School,Supplies & Services,"Equipment, Furniture and Materials",Provisions.,,14/02/2023,11093987,80087084,23.95,C,RM Educational Resources Ltd
"Policy, Scrutiny & Customer Service",Community Hubs,Chief Executive's Unit,Prison Libraries,Supplies & Services,"Printing, Stationery and General Office Expenses",Book Purchases,,10/02/2023,11091305,0,93.72,C,Askews & Holts Library Services Ltd
"Policy, Scrutiny & Customer Service",Community Hubs,Chief Executive's Unit,Prison Libraries,Supplies & Services,"Printing, Stationery and General Office Expenses",Book Purchases,,10/02/2023,11091305,0,396.17,C,Askews & Holts Library Services Ltd
"Enterprise, Housing & Community Animation",Business Growth & Enterprise,Communities & Place,Employment & Skills,Transport,Public Transport,Clients (Public Transport),,10/02/2023,11093574,10130031,182.25,C,TICE Seminars LTD T/A The Pacific Institute
Community Care,Community Care Team,Social Care and Health,Mental Health Care Team,Third Party Payments,Third Party,Personal Care.,,20/02/2023,11098016,0,844.56,C,Castle Care Supported Living
Community Care,Community Care Team,Social Care and Health,Mental Health Care Team,Third Party Payments,Third Party,Personal Care.,,20/02/2023,11098016,0,1020,C,Castle Care Supported Living
Community Care,Community Care Team,Social Care and Health,Mental Health Care Team,Third Party Payments,Third Party,Personal Care.,,20/02/2023,11098016,0,1199.52,C,Castle Care Supported Living
Community Care,Community Care Team,Social Care and Health,Mental Health Care Team,Third Party Payments,Third Party,Personal Care.,,20/02/2023,11098016,0,930.24,C,Castle Care Supported Living
Community Care,Community Care Team,Social Care and Health,Mental Health Care Team,Third Party Payments,Third Party,Personal Care.,,20/02/2023,11098016,0,677.8,C,Castle Care Supported Living
Community Care,Community Care Team,Social Care and Health,Abergavenny Adult Team,Third Party Payments,Third Party,Personal Care.,,20/02/2023,11098016,0,4063.68,C,Castle Care Supported Living
Community Care,Community Care Team,Social Care and Health,Abergavenny Adult Team,Third Party Payments,Third Party,Personal Care.,,20/02/2023,11098016,0,3488.4,C,Castle Care Supported Living
Community Care,Community Care Team,Social Care and Health,Abergavenny Adult Team,Third Party Payments,Third Party,Personal Care.,,20/02/2023,11098016,0,3729.11,C,Castle Care Supported Living
Community Care,Community Care Team,Social Care and Health,Abergavenny Adult Team,Third Party Payments,Third Party,Personal Care.,,20/02/2023,11098016,0,4876.2,C,Castle Care Supported Living
Community Care,Community Care Team,Social Care and Health,Abergavenny Adult Team,Third Party Payments,Third Party,Personal Care.,,20/02/2023,11098016,0,6708,C,Castle Care Supported Living
Community Care,Community Care Team,Social Care and Health,Abergavenny Adult Team,Third Party Payments,Third Party,Personal Care.,,20/02/2023,11098016,0,149.91,C,Castle Care Supported Living
Community Care,ADULT DISABILITY SERVICES,Social Care and Health,CLDT,Third Party Payments,Third Party,Personal Care.,,20/02/2023,11098017,0,5991.4,C,Pobl Care & Support
Community Care,ADULT DISABILITY SERVICES,Social Care and Health,CLDT,Third Party Payments,Third Party,Personal Care.,,20/02/2023,11098018,0,5991.4,C,Pobl Care & Support
Community Care,Community Care Team,Social Care and Health,Monmouth Adult Team,Third Party Payments,Third Party,Personal Care.,,20/02/2023,11098026,0,510,C,Home Instead Senior Care
Community Care,Community Care Team,Social Care and Health,Mental Health Care Team,Third Party Payments,Third Party,Personal Care.,,20/02/2023,11098022,0,181.8,C,Home Instead Senior Care
Community Care,Community Care Team,Social Care and Health,Mental Health Care Team,Third Party Payments,Third Party,Personal Care.,,20/02/2023,11098023,0,630,C,Home Instead Senior Care
Community Care,Community Care Team,Social Care and Health,Mental Health Care Team,Third Party Payments,Third Party,Personal Care.,,20/02/2023,11098028,0,600,C,Home Instead Senior Care
Community Care,Community Care Team,Social Care and Health,Mental Health Care Team,Third Party Payments,Third Party,Personal Care.,,20/02/2023,11098029,0,211.35,C,Home Instead Senior Care
Schools Total,School Group 2 � Pupil Capacity 144-314,MCC Schools,Raglan CiW Primary School (VC),Employees,Direct Employee Expenses,Agency Staff,,08/02/2023,11093103,80091557,1154.65,C,TeacherActive
Schools Total,School Group 2 � Pupil Capacity 144-314,MCC Schools,Raglan CiW Primary School (VC),Employees,Direct Employee Expenses,Agency Staff,,08/02/2023,11093103,80091557,521.4,C,TeacherActive
Schools Total,School Group 2 � Pupil Capacity 144-314,MCC Schools,Raglan CiW Primary School (VC),Employees,Direct Employee Expenses,Agency Staff,,08/02/2023,11093104,80091558,1019.9,C,New Directions Education Ltd
Schools Total,SCHGRP3 � School Group 3 � Pupil Capacity 315-500,MCC Schools,Magor CiW Primary School (VA),Employees,Direct Employee Expenses,Agency Staff,,08/02/2023,11093106,80091567,1398.28,C,TeacherActive
Capital Division,Capital Dept,Capital,Capital Programme,Premises,"Repairs, Alterations & Maintenance of Buildings",Building Improvements / Maintenance,,08/02/2023,11093137,90065848,3128,C,MOTT MACDONALD LIMITED
Children Services,Children Services Other,Social Care and Health,External Placements - CLA,Third Party Payments,Third Party,Residential.,,08/02/2023,11091564,10128948,17081,C,Stepping Stones Care Services (South Wales) Ltd.
Children Services,Children Services Other,Social Care and Health,External Placements - CLA,Third Party Payments,Third Party,Residential.,,08/02/2023,11091565,10128953,17081,C,Stepping Stones Care Services (South Wales) Ltd.
Schools Total,School Group 7 � Pupil Capacity 501-1800,MCC Schools,King Henry VIII Comprehensive,Employees,Indirect Employee Expenses,Replacement,,08/02/2023,11093170,80090364,110.25,C,Axcis Education Recruitment
Schools Total,School Group 7 � Pupil Capacity 501-1800,MCC Schools,King Henry VIII Comprehensive,Employees,Indirect Employee Expenses,Replacement,,08/02/2023,11093188,80091609,266,C,Axcis Education Recruitment
Schools Total,School Group 7 � Pupil Capacity 501-1800,MCC Schools,King Henry VIII Comprehensive,Employees,Indirect Employee Expenses,Replacement,,08/02/2023,11093188,80091609,41.25,C,Axcis Education Recruitment
Schools Total,School Group 7 � Pupil Capacity 501-1800,MCC Schools,King Henry VIII Comprehensive,Employees,Indirect Employee Expenses,Replacement,,08/02/2023,11093190,80091614,721,C,Affinity Workforce Solutions Ltd
Schools Total,School Group 2 � Pupil Capacity 144-314,MCC Schools,Llantilio Pertholey CiW Primary School (VC),Employees,Direct Employee Expenses,Agency Staff,,08/02/2023,11091592,80085334,833.62,C,TeacherActive
Children Services,Children Services Other,Social Care and Health,External Placements - CLA,Third Party Payments,Third Party,Residential.,,08/02/2023,11091566,10128954,17081,C,Stepping Stones Care Services (South Wales) Ltd.
Neighbourhood Services,Waste and Street Services,Communities & Place,Grounds,Supplies & Services,Services,Training Charges,,03/02/2023,11091946,10129379,320,C,Heads Of The Valley Training Con
Schools Total,School Group 2 � Pupil Capacity 144-314,MCC Schools,Shirenewton Primary School,Supplies & Services,Services,Residential Trips,,03/02/2023,11091867,80091500,120,C,REDACTED PERSONAL DATA
Community Care,Community Care Team,Social Care and Health,Chepstow Adult Team,Third Party Payments,Third Party,Personal Care.,,15/02/2023,11094377,0,1596,C,Home Instead Senior Care
Community Care,Community Care Team,Social Care and Health,Chepstow Adult Team,Third Party Payments,Third Party,Personal Care.,,15/02/2023,11094378,0,504,C,Home Instead Senior Care
Community Care,Community Care Team,Social Care and Health,Chepstow Adult Team,Third Party Payments,Third Party,Personal Care.,,15/02/2023,11094379,0,546,C,Home Instead Senior Care
Community Care,Community Care Team,Social Care and Health,Chepstow Adult Team,Third Party Payments,Third Party,Personal Care.,,15/02/2023,11094390,0,714,C,Home Instead Senior Care
"Facilities, Fleet & Decarbonisation",Transport Department,Communities & Place,Transport,Transport,Direct Transport Costs,Spare Parts,,15/02/2023,11092729,0,168.1,C,Mon & Border Motor Factors Ltd
"Facilities, Fleet & Decarbonisation",Transport Department,Communities & Place,Transport,Transport,Direct Transport Costs,Tyres And Tubes,,15/02/2023,11093305,0,88.2,C,Malvern Tyres (Wholesale) Ltd
"Facilities, Fleet & Decarbonisation",Transport Department,Communities & Place,Transport,Transport,Direct Transport Costs,Tyres And Tubes,,15/02/2023,11092478,0,78.9,C,"Exhaust, Tyres & Batteries (Worcester) Ltd"
"Facilities, Fleet & Decarbonisation",Transport Department,Communities & Place,Transport,Transport,Direct Transport Costs,Tyres And Tubes,,15/02/2023,11092479,0,127.8,C,"Exhaust, Tyres & Batteries (Worcester) Ltd"
"Facilities, Fleet & Decarbonisation",Transport Department,Communities & Place,Transport,Transport,Direct Transport Costs,Tyres And Tubes,,15/02/2023,11092480,0,264.88,C,"Exhaust, Tyres & Batteries (Worcester) Ltd"
Children Services,Children Services Other,Social Care and Health,Fostering Allowances and Payments For Skills,Supplies & Services,Services,Child Minding Fees,,21/02/2023,11098159,10129125,918.85,C,Butterflies Childcare
Community Care,Community Care Team,Social Care and Health,Chepstow Adult Team,Third Party Payments,Third Party,Personal Care.,,21/02/2023,11098247,0,1096.95,C,Lougher Home Care Ltd
Community Care,Community Care Team,Social Care and Health,Chepstow Adult Team,Third Party Payments,Third Party,Personal Care.,,21/02/2023,11098272,0,417.15,C,Lougher Home Care Ltd
Community Care,Community Care Team,Social Care and Health,Chepstow Adult Team,Third Party Payments,Third Party,Personal Care.,,21/02/2023,11098273,0,1009.4,C,Lougher Home Care Ltd
Neighbourhood Services,Waste and Street Services,Communities & Place,Grounds,Supplies & Services,"Equipment, Furniture and Materials",Materials & Consumables.,,21/02/2023,11098153,10128299,1339.84,C,Arco Ltd
Schools Total,School Group 7 � Pupil Capacity 501-1800,MCC Schools,King Henry VIII Comprehensive,Transport,Contract Hire and Operating Leases,Vehicle Hire Charge,,21/02/2023,11097981,80091880,210,C,Fast Cars of Abergavenny
Schools Total,School Group 7 � Pupil Capacity 501-1800,MCC Schools,King Henry VIII Comprehensive,Transport,Contract Hire and Operating Leases,Vehicle Hire Charge,,21/02/2023,11097982,80091880,210,C,Fast Cars of Abergavenny
Schools Total,School Group 2 � Pupil Capacity 144-314,MCC Schools,Pembroke Primary School,Supplies & Services,"Equipment, Furniture and Materials",Materials & Consumables.,,27/02/2023,11098385,80091951,8.59,C,Amazon Payments UK Limited
Schools Total,School Group 2 � Pupil Capacity 144-314,MCC Schools,Pembroke Primary School,Supplies & Services,"Equipment, Furniture and Materials",Materials & Consumables.,,27/02/2023,11098387,80091953,1015.02,C,Superstars School Services Ltd
"Policy, Scrutiny & Customer Service",Community Hubs,Chief Executive's Unit,Prison Libraries,Supplies & Services,"Equipment, Furniture and Materials",Equipment Purchases,,27/02/2023,11098888,10130305,33.01,C,Amazon  Payments UK Ltd (Punchout)
"Policy, Scrutiny & Customer Service",Community Hubs,Chief Executive's Unit,Prison Libraries,Supplies & Services,"Equipment, Furniture and Materials",Equipment Purchases,,27/02/2023,11098889,10130305,21.64,C,Amazon  Payments UK Ltd (Punchout)
"Policy, Scrutiny & Customer Service",Community Hubs,Chief Executive's Unit,Prison Libraries,Supplies & Services,"Equipment, Furniture and Materials",Equipment Purchases,,27/02/2023,11098891,10130309,113.46,C,Amazon  Payments UK Ltd (Punchout)
"Policy, Scrutiny & Customer Service",Community Hubs,Chief Executive's Unit,Prison Libraries,Transport,Direct Transport Costs,Transport Costs,,27/02/2023,11098891,10130309,3.12,C,Amazon  Payments UK Ltd (Punchout)
Neighbourhood Services,Waste and Street Services,Communities & Place,Fitting Shop Grounds,Supplies & Services,"Equipment, Furniture and Materials",Materials & Consumables.,,27/02/2023,11098871,10122813,4857.68,C,Fast Fluid Power Ltd
"Placemaking, Highways & Flooding",Highways Dev & Car Parks,Communities & Place,Traffic & Road Safety,Third Party Payments,Third Party,General Contracts,,27/02/2023,11098895,10130433,11210,C,Severnside Transportation Data Collection
Community Care,Community Care Team,Social Care and Health,Chepstow Adult Team,Third Party Payments,Third Party,Personal Care.,,21/02/2023,11098296,0,432.6,C,Lougher Home Care Ltd
Community Care,Community Care Team,Social Care and Health,Chepstow Adult Team,Third Party Payments,Third Party,Personal Care.,,21/02/2023,11098297,0,1297.8,C,Lougher Home Care Ltd
Community Care,Community Care Team,Social Care and Health,Chepstow Adult Team,Third Party Payments,Third Party,Personal Care.,,21/02/2023,11098248,0,4037.6,C,Lougher Home Care Ltd
Neighbourhood Services,Waste and Street Services,Communities & Place,Fitting Shop Grounds,Supplies & Services,"Equipment, Furniture and Materials",Materials & Consumables.,,27/02/2023,11099073,10122798,499.6,C,Acorn Industrial Services
"Facilities, Fleet & Decarbonisation",Transport Department,Communities & Place,Transport,Supplies & Services,"Clothes, Uniform and Laundry",Laundry costs,,15/02/2023,11092738,0,389.04,C,Johnsons Textile Services Ltd T/A Johnsons Workwear
"Facilities, Fleet & Decarbonisation",Transport Department,Communities & Place,Transport,Transport,Contract Hire and Operating Leases,Vehicle Hire Charge,,15/02/2023,11092593,0,2417.8,C,Endurance Vehicle Solutions
"Facilities, Fleet & Decarbonisation",Transport Department,Communities & Place,Transport,Transport,Contract Hire and Operating Leases,Vehicle Hire Charge,,15/02/2023,11092720,0,686.34,C,Runtech Ltd
"Facilities, Fleet & Decarbonisation",Transport Department,Communities & Place,Transport,Transport,Contract Hire and Operating Leases,Vehicle Hire Charge,,15/02/2023,11092722,0,752.99,C,Runtech Ltd
"Facilities, Fleet & Decarbonisation",Transport Department,Communities & Place,Transport,Transport,Direct Transport Costs,Spare Parts,,15/02/2023,11094184,0,169,C,Mon & Border Motor Factors Ltd
"Facilities, Fleet & Decarbonisation",Transport Department,Communities & Place,Transport,Transport,Direct Transport Costs,Spare Parts,,15/02/2023,11092749,0,281.75,C,NTM - GB Limited
"Facilities, Fleet & Decarbonisation",Transport Department,Communities & Place,Transport,Transport,Direct Transport Costs,Spare Parts,,15/02/2023,11092750,0,-46.44,C,Euro Commercials (South Wales) L
"Facilities, Fleet & Decarbonisation",Transport Department,Communities & Place,Transport,Transport,Direct Transport Costs,Tyres And Tubes,,15/02/2023,11093311,0,442.87,C,Malvern Tyres (Wholesale) Ltd
"Facilities, Fleet & Decarbonisation",Transport Department,Communities & Place,Transport,Transport,Direct Transport Costs,Spare Parts,,15/02/2023,11093131,0,10.3,C,Mon & Border Motor Factors Ltd
Schools Total,School Group 2 � Pupil Capacity 144-314,MCC Schools,Goytre Fawr Primary School,Supplies & Services,"Printing, Stationery and General Office Expenses",Stationery,,03/02/2023,11092024,80091429,1.6,C,Hope Education Ltd
Schools Total,School Group 2 � Pupil Capacity 144-314,MCC Schools,Llanfoist Fawr Primary School,Supplies & Services,"Printing, Stationery and General Office Expenses",Stationery,,03/02/2023,11091868,80091508,13.49,C,Blue Sky Digital Solutions ltd
Schools Total,School Group 2 � Pupil Capacity 144-314,MCC Schools,Llanfoist Fawr Primary School,Supplies & Services,"Printing, Stationery and General Office Expenses",Stationery,,03/02/2023,11091868,80091508,176.29,C,Blue Sky Digital Solutions ltd
Schools Total,School Group 7 � Pupil Capacity 501-1800,MCC Schools,Caldicot School,Premises,Cleaning and Domestic Supplies,Contract Cleaning - Premises (Direct),,27/02/2023,11099126,80085077,141.72,C,Churchill Service Solutions
Standards,Early Years,Children & Young People,Early Years,Supplies & Services,"Printing, Stationery and General Office Expenses",Stationery,,27/02/2023,11099122,10130443,16.84,C,Amazon Payments UK Limited
Schools Total,Schools,MCC Schools,Pupil Referral Unit,Premises,Rents,Rents/Hire Of Premises.,,01/02/2023,11091445,10129765,744,C,Usk Memorial Hall
Community Care,Community Care Team,Social Care and Health,Chepstow Adult Team,Third Party Payments,Third Party,Personal Care.,,01/02/2023,11091371,0,196,C,Helping Hands
Community Care,Community Care Team,Social Care and Health,Chepstow Adult Team,Third Party Payments,Third Party,Personal Care.,,01/02/2023,11091377,0,342.5,C,Helping Hands
Community Care,Community Care Team,Social Care and Health,Chepstow Adult Team,Third Party Payments,Third Party,Personal Care.,,01/02/2023,11091427,0,3071.5,C,Helping Hands
Schools Total,SCHGRP3 � School Group 3 � Pupil Capacity 315-500,MCC Schools,Magor CiW Primary School (VA),Supplies & Services,Services,Residential Trips,,03/02/2023,11092025,80091436,3410,C,Pgl Travel Ltd
Standards,Early Years,Children & Young People,Expansion of Early Years Grant,Third Party Payments,Third Party,Third party payments NOT relating to goods or services,,03/02/2023,11091958,10129811,11880,C,Sunshine Pre-School
Capital Division,Capital Dept,Capital,Capital Programme,Third Party Payments,Third Party,General Contracts,,03/02/2023,11091557,10127258,2420,C,CP Contracts
Capital Division,Capital Dept,Capital,Capital Programme,Third Party Payments,Third Party,General Contracts,,03/02/2023,11085547,10117046,4182.28,C,Amey Consulting
Capital Division,Capital Dept,Capital,Capital Programme,Third Party Payments,Third Party,General Contracts,,03/02/2023,11085781,10127109,0.01,C,Amey Consulting
Capital Division,Capital Dept,Capital,Capital Programme,Third Party Payments,Third Party,General Contracts,,03/02/2023,11085781,10127109,12094,C,Amey Consulting
Adult Services,Grant Schemes SHS,Social Care and Health,Training,Supplies & Services,Services,Training Charges,,03/02/2023,11091577,10129630,550,C,University Of South Wales
Adult Services,Grant Schemes SHS,Social Care and Health,Training,Supplies & Services,Services,Training Charges,,03/02/2023,11091577,10129630,550,C,University Of South Wales
Schools Total,School Group 2 � Pupil Capacity 144-314,MCC Schools,Llanfoist Fawr Primary School,Supplies & Services,"Printing, Stationery and General Office Expenses",Stationery,,03/02/2023,11091868,80091508,11,C,Blue Sky Digital Solutions ltd
"Enterprise, Housing & Community Animation",General Fund Housing,Communities & Place,Lodgings Scheme,Supplies & Services,"Equipment, Furniture and Materials",Fire Safety Equipment,,03/02/2023,11091959,10129815,77.5,C,Inferno Fire Safety and Security Solutions Ltd
Schools Total,School Group 2 � Pupil Capacity 144-314,MCC Schools,Ysgol Gymraeg Y Fenni,Supplies & Services,"Printing, Stationery and General Office Expenses",Photocopying.,,03/02/2023,11091870,80091511,174.56,C,Blue Sky Digital Solutions ltd
Adult Services,Grant Schemes SHS,Social Care and Health,Training,Supplies & Services,Services,Training Charges,,03/02/2023,11091578,10129631,880,C,University Of South Wales
Adult Services,Grant Schemes SHS,Social Care and Health,Training,Supplies & Services,Services,Training Charges,,03/02/2023,11091578,10129631,880,C,University Of South Wales
Adult Services,Grant Schemes SHS,Social Care and Health,Training,Supplies & Services,Services,Training Charges,,03/02/2023,11091578,10129631,880,C,University Of South Wales
"Enterprise, Housing & Community Animation",General Fund Housing,Communities & Place,Lodgings Scheme,Supplies & Services,"Equipment, Furniture and Materials",Fire Safety Equipment,,03/02/2023,11091962,10129817,70,C,Inferno Fire Safety and Security Solutions Ltd
"Enterprise, Housing & Community Animation",General Fund Housing,Communities & Place,Emergency Accommodation Hostel,Supplies & Services,"Equipment, Furniture and Materials",Fire Safety Equipment,,03/02/2023,11091961,10129816,65,C,Inferno Fire Safety and Security Solutions Ltd
"Facilities, Fleet & Decarbonisation",Transport Department,Communities & Place,Transport,Transport,Direct Transport Costs,Tyres And Tubes,,15/02/2023,11093306,0,649.27,C,Malvern Tyres (Wholesale) Ltd
"Facilities, Fleet & Decarbonisation",Transport Department,Communities & Place,Transport,Transport,Direct Transport Costs,Tyres And Tubes,,15/02/2023,11093307,0,85.86,C,Malvern Tyres (Wholesale) Ltd
"Facilities, Fleet & Decarbonisation",Transport Department,Communities & Place,Transport,Transport,Contract Hire and Operating Leases,Vehicle Hire Charge,,15/02/2023,11092589,0,3987,C,Endurance Vehicle Solutions
Neighbourhood Services,Highways,Communities & Place,Internal others,Supplies & Services,"Equipment, Furniture and Materials",Materials & Consumables.,,15/02/2023,11094408,819453,260,C,Green Waste Company (Abergavenny) Ltd
Community Care,Community Care Team,Social Care and Health,Chepstow Adult Team,Third Party Payments,Third Party,Personal Care.,,15/02/2023,11094391,0,756,C,Home Instead Senior Care
Community Care,Community Care Team,Social Care and Health,Chepstow Adult Team,Third Party Payments,Third Party,Personal Care.,,15/02/2023,11094392,0,420,C,Home Instead Senior Care
"Facilities, Fleet & Decarbonisation",Transport Department,Communities & Place,Transport,Transport,Contract Hire and Operating Leases,Vehicle Hire Charge,,15/02/2023,11093321,0,323,C,Avondale Service Station
"Facilities, Fleet & Decarbonisation",Transport Department,Communities & Place,Transport,Transport,Contract Hire and Operating Leases,Vehicle Hire Charge,,15/02/2023,11092591,0,1701.45,C,Endurance Vehicle Solutions
Schools Total,School Group 7 � Pupil Capacity 501-1800,MCC Schools,Caldicot School,Supplies & Services,Services,Residential Trips,,07/02/2023,11092758,80091538,1350,C,Ferris Holidays Ltd
Schools Total,School Group 7 � Pupil Capacity 501-1800,MCC Schools,Caldicot School,Supplies & Services,Services,Residential Trips,,07/02/2023,11092758,80091538,50,C,Ferris Holidays Ltd
Neighbourhood Services,Waste and Street Services,Communities & Place,Refuse & Cleansing Operations,Supplies & Services,Services,Training Charges,,15/02/2023,11094074,10130084,590,C,Monkton Court Training Ltd
"Facilities, Fleet & Decarbonisation",Transport Department,Communities & Place,Transport,Transport,Contract Hire and Operating Leases,Vehicle Hire Charge,,15/02/2023,11092592,0,5546.67,C,Endurance Vehicle Solutions
"Facilities, Fleet & Decarbonisation",Transport Department,Communities & Place,Transport,Transport,Direct Transport Costs,Spare Parts,,15/02/2023,11093820,0,66.11,C,Motorcare
"Facilities, Fleet & Decarbonisation",Transport Department,Communities & Place,Transport,Transport,Direct Transport Costs,Tyres And Tubes,,15/02/2023,11093197,0,152.32,C,Malvern Tyres (Wholesale) Ltd
"Facilities, Fleet & Decarbonisation",Transport Department,Communities & Place,Transport,Transport,Direct Transport Costs,Tyres And Tubes,,15/02/2023,11093198,0,253.04,C,Malvern Tyres (Wholesale) Ltd
"Leisure, Youth & Outdoor Adventure",Leisure Services,MonLife Directorate,Caldicot Leisure Centre,Supplies & Services,"Equipment, Furniture and Materials",Equipment Purchases,,01/02/2023,11090293,10129655,30,C,J P Lennard Ltd
Community Care,Community Care Team,Social Care and Health,Chepstow Adult Team,Third Party Payments,Third Party,Personal Care.,,01/02/2023,11091374,0,3571.5,C,Helping Hands
Community Care,Community Care Team,Social Care and Health,Chepstow Adult Team,Third Party Payments,Third Party,Personal Care.,,01/02/2023,11091385,0,1285,C,Helping Hands
Community Care,Community Care Team,Social Care and Health,Chepstow Adult Team,Third Party Payments,Third Party,Personal Care.,,01/02/2023,11091410,0,1768.75,C,Helping Hands
"Enterprise, Housing & Community Animation",General Fund Housing,Communities & Place,Strategic Services,Third Party Payments,Third Party,General Contracts,,03/02/2023,11091453,10129753,2490,C,LA Directories Limited
"Placemaking, Highways & Flooding",Highways Dev & Car Parks,Communities & Place,Design & Commissioning,Third Party Payments,Third Party,General Contracts,,03/02/2023,11091449,10129564,1380,C,Symetri (previously Excitech)
Capital Division,Capital Dept,Capital,Capital Programme,Third Party Payments,Third Party,General Contracts,,03/02/2023,11087762,10123165,129519.61,C,Gloucester County Council
Standards,Early Years,Children & Young People,Expansion of Early Years Grant,Third Party Payments,Third Party,Third party payments NOT relating to goods or services,,03/02/2023,11092249,10129854,10560,C,Hopscotch Nursery
Neighbourhood Services,Waste and Street Services,Communities & Place,Grounds,Supplies & Services,"Equipment, Furniture and Materials",Materials & Consumables.,,03/02/2023,11091900,10122681,8.39,C,Aquam Water Services
"Enterprise, Housing & Community Animation",General Fund Housing,Communities & Place,Lodgings Scheme,Supplies & Services,"Equipment, Furniture and Materials",Fire Safety Equipment,,03/02/2023,11091963,10129818,65,C,Inferno Fire Safety and Security Solutions Ltd
"Enterprise, Housing & Community Animation",General Fund Housing,Communities & Place,Lodgings Scheme,Supplies & Services,"Equipment, Furniture and Materials",Fire Safety Equipment,,03/02/2023,11091964,10129819,105,C,Inferno Fire Safety and Security Solutions Ltd
Schools Total,School Group 2 � Pupil Capacity 144-314,MCC Schools,Raglan CiW Primary School (VC),Premises,Cleaning and Domestic Supplies,Contract Cleaning - Premises (Direct),,03/02/2023,11091612,80091448,1166.23,C,Atlas Contractors Ltd
Community Care,Community Care Team,Social Care and Health,Chepstow Adult Team,Third Party Payments,Third Party,Personal Care.,,20/02/2023,11098019,0,420,C,Home Instead Senior Care
Community Care,Community Care Team,Social Care and Health,Chepstow Adult Team,Third Party Payments,Third Party,Personal Care.,,20/02/2023,11098020,0,714,C,Home Instead Senior Care
Community Care,Community Care Team,Social Care and Health,Chepstow Adult Team,Third Party Payments,Third Party,Personal Care.,,20/02/2023,11098021,0,546,C,Home Instead Senior Care
Community Care,Community Care Team,Social Care and Health,Chepstow Adult Team,Third Party Payments,Third Party,Personal Care.,,20/02/2023,11098024,0,336,C,Home Instead Senior Care
Community Care,Community Care Team,Social Care and Health,Chepstow Adult Team,Third Party Payments,Third Party,Personal Care.,,20/02/2023,11098025,0,1092,C,Home Instead Senior Care
Community Care,Community Care Team,Social Care and Health,Chepstow Adult Team,Third Party Payments,Third Party,Personal Care.,,20/02/2023,11098027,0,420,C,Home Instead Senior Care
Community Care,Community Care Team,Social Care and Health,Chepstow Adult Team,Third Party Payments,Third Party,Personal Care.,,20/02/2023,11098030,0,756,C,Home Instead Senior Care
Schools Total,School Group 7 � Pupil Capacity 501-1800,MCC Schools,King Henry VIII Comprehensive,Employees,Indirect Employee Expenses,Replacement,,08/02/2023,11093191,80091615,193.35,C,Apollo Teaching Services LTD
"Leisure, Youth & Outdoor Adventure",Youth & Education,MonLife Directorate,Gilwern,Employees,Direct Employee Expenses,Travelling Expenses,,01/02/2023,11092205,0,75.3,C,REDACTED DATA
"Leisure, Youth & Outdoor Adventure",Youth & Education,MonLife Directorate,Gilwern,Premises,"Repairs, Alterations & Maintenance of Buildings",Building Improvements / Maintenance,,01/02/2023,11092205,0,32.5,C,REDACTED DATA
Community Care,Community Care Team,Social Care and Health,Monmouth Adult Team,Third Party Payments,Third Party,Personal Care.,,20/02/2023,11098033,0,204,C,Home Instead Senior Care
Community Care,Community Care Team,Social Care and Health,Mental Health Care Team,Third Party Payments,Third Party,Personal Care.,,20/02/2023,11098035,0,510,C,Home Instead Senior Care
Community Care,Community Care Team,Social Care and Health,Monmouth Adult Team,Third Party Payments,Third Party,Personal Care.,,01/02/2023,11091454,0,367.45,C,Achieve Together Limited
Community Care,Community Care Team,Social Care and Health,Monmouth Adult Team,Third Party Payments,Third Party,Personal Care.,,01/02/2023,11091461,0,10982.14,C,REDACTED PERSONAL DATA
Community Care,Community Care Team,Social Care and Health,Monmouth Adult Team,Third Party Payments,Third Party,Personal Care.,,01/02/2023,11091461,0,1696.43,C,REDACTED PERSONAL DATA
Community Care,Community Care Team,Social Care and Health,Abergavenny Adult Team,Third Party Payments,Third Party,Personal Care.,,01/02/2023,11091462,0,632.15,C,REDACTED PERSONAL DATA
Neighbourhood Services,Highways,Communities & Place,Street Lighting,Third Party Payments,Third Party,Maintenance Contracts,,07/02/2023,11092761,819042,55.26,C,Enerveo Ltd
Children Services,Children Services Teams,Social Care and Health,Disabled Children,Premises,"Repairs, Alterations & Maintenance of Buildings",Building Improvements / Maintenance,,15/02/2023,11092500,90067224,1596.11,C,A.J Quinn Building Contractors Ltd
Community Care,Community Care Team,Social Care and Health,Abergavenny Adult Team,Third Party Payments,Third Party,Personal Care.,,15/02/2023,11094291,0,64.94,C,Allied Healthcare Services Limited
Community Care,Community Care Team,Social Care and Health,Monmouth Adult Team,Third Party Payments,Third Party,Personal Care.,,15/02/2023,11094265,0,1453.74,C,My Care My Home Ltd
Community Care,Community Care Team,Social Care and Health,Monmouth Adult Team,Third Party Payments,Third Party,Personal Care.,,15/02/2023,11094266,0,56.28,C,My Care My Home Ltd
Community Care,Community Care Team,Social Care and Health,Monmouth Adult Team,Third Party Payments,Third Party,Personal Care.,,15/02/2023,11094264,0,187.53,C,My Care My Home Ltd
Community Care,Community Care Team,Social Care and Health,Mental Health Care Team,Third Party Payments,Third Party,Personal Care.,,15/02/2023,11094290,0,1188.02,C,Allied Healthcare Services Limited
Schools Total,School Group 2 � Pupil Capacity 144-314,MCC Schools,Ysgol Gymraeg Y Fenni,Premises,"Repairs, Alterations & Maintenance of Buildings",Building Improvements / Maintenance,,21/02/2023,11094060,90066348,80.96,C,A.J Quinn Building Contractors Ltd
"Commercial, Corporate & landlord Services",Asset Management,Resources,Sustainability,Premises,"Repairs, Alterations & Maintenance of Buildings",Building Improvements / Maintenance,,21/02/2023,11094062,90066471,1096,C,A.J Quinn Building Contractors Ltd
Community Care,Community Care Team,Social Care and Health,Mental Health Care Team,Third Party Payments,Third Party,Personal Care.,,21/02/2023,11098274,0,1282.35,C,Lougher Home Care Ltd
Community Care,Community Care Team,Social Care and Health,Mental Health Care Team,Third Party Payments,Third Party,Personal Care.,,21/02/2023,11098275,0,1874.6,C,Lougher Home Care Ltd
Community Care,INTEGRATED CARE FUND,Social Care and Health,Intermediate Care Fund,Employees,Direct Employee Expenses,Agency Staff,,27/02/2023,11097904,10128776,1534.39,C,Liquid Personnel
Schools Total,School Group 2 � Pupil Capacity 144-314,MCC Schools,Our Lady & St Michael's (OLSM) RC Primary School (VA),Employees,Direct Employee Expenses,Agency Staff,,27/02/2023,11094469,80091779,543.2,C,Apollo Teaching Services LTD
Children Services,Children Services Teams,Social Care and Health,Early Help and Assessment Team,Employees,Direct Employee Expenses,Agency Staff,,27/02/2023,11097902,10128662,1480,C,Liquid Personnel
Schools Total,School Group 2 � Pupil Capacity 144-314,MCC Schools,Rogiet Primary School,Employees,Direct Employee Expenses,Agency Staff,,27/02/2023,11096662,80085325,740.67,C,TeacherActive
"Commercial, Corporate & landlord Services",Property Services & Facilities Management,Resources,Gwent Police Collaboration,Premises,"Repairs, Alterations & Maintenance of Buildings",Building Improvements / Maintenance,,27/02/2023,11096814,760019154,100,C,Ambassador Fire & Security LTD
"Commercial, Corporate & landlord Services",Property Services & Facilities Management,Resources,Gwent Police Collaboration,Premises,"Repairs, Alterations & Maintenance of Buildings",Building Improvements / Maintenance,,27/02/2023,11096815,760018861,100,C,Ambassador Fire & Security LTD
"Commercial, Corporate & landlord Services",Property Services & Facilities Management,Resources,Gwent Police Collaboration,Premises,"Repairs, Alterations & Maintenance of Buildings",Building Improvements / Maintenance,,27/02/2023,11099178,760020078,8500,C,EFS Systems (UK) Ltd
Adult Services,Grant Schemes SHS,Social Care and Health,Training,Supplies & Services,Expenses,Non Employee Training Courses,,27/02/2023,11099144,10130039,3.95,C,Ajuda
Community Care,INTEGRATED CARE FUND,Social Care and Health,Intermediate Care Fund,Employees,Direct Employee Expenses,Agency Staff,,27/02/2023,11098042,10126106,1060.63,C,Piers Meadows Recruitment Limited
Community Care,INTEGRATED CARE FUND,Social Care and Health,Intermediate Care Fund,Employees,Direct Employee Expenses,Agency Staff,,27/02/2023,11098042,10126106,25,C,Piers Meadows Recruitment Limited
Community Care,INTEGRATED CARE FUND,Social Care and Health,Intermediate Care Fund,Employees,Direct Employee Expenses,Agency Staff,,27/02/2023,11098042,10126106,-25,C,Piers Meadows Recruitment Limited
Schools Total,School Group 7 � Pupil Capacity 501-1800,MCC Schools,Caldicot School,Employees,Direct Employee Expenses,Agency Staff,,07/02/2023,11092764,80091544,606.45,C,Suppleo Recruitment Ltd
Schools Total,School Group 7 � Pupil Capacity 501-1800,MCC Schools,Caldicot School,Employees,Direct Employee Expenses,Agency Staff,,07/02/2023,11092764,80091544,606.45,C,Suppleo Recruitment Ltd
Schools Total,School Group 7 � Pupil Capacity 501-1800,MCC Schools,Caldicot School,Employees,Direct Employee Expenses,Agency Staff,,07/02/2023,11092764,80091544,606.45,C,Suppleo Recruitment Ltd
Schools Total,School Group 7 � Pupil Capacity 501-1800,MCC Schools,Caldicot School,Employees,Direct Employee Expenses,Agency Staff,,07/02/2023,11092764,80091544,485.16,C,Suppleo Recruitment Ltd
Schools Total,School Group 7 � Pupil Capacity 501-1800,MCC Schools,Caldicot School,Employees,Direct Employee Expenses,Agency Staff,,07/02/2023,11092764,80091544,606.45,C,Suppleo Recruitment Ltd
Schools Total,School Group 7 � Pupil Capacity 501-1800,MCC Schools,Caldicot School,Employees,Indirect Employee Expenses,"Course, Conference And Seminar Fees",,07/02/2023,11092763,80091542,52,C,The Association for Science Education
"Leisure, Youth & Outdoor Adventure",Leisure Services,MonLife Directorate,Monmouth Leisure Centre,Supplies & Services,"Equipment, Furniture and Materials",Chemicals.,,10/02/2023,11091125,10122906,331.8,C,UNIVAR
Schools Total,SCHGRP3 � School Group 3 � Pupil Capacity 315-500,MCC Schools,Overmonnow Primary School,Supplies & Services,"Equipment, Furniture and Materials",Cleaning Materials.,,10/02/2023,11093083,80088971,3.72,C,Handyman House (Lydney) Ltd
"Facilities, Fleet & Decarbonisation",Transport Department,Communities & Place,Transport,Supplies & Services,"Equipment, Furniture and Materials",Small Plant & Tools.,,15/02/2023,11092995,0,159.9,C,Fast Fluid Power Ltd
"Facilities, Fleet & Decarbonisation",Transport Department,Communities & Place,Transport,Supplies & Services,"Equipment, Furniture and Materials",Small Plant & Tools.,,15/02/2023,11092996,0,20.95,C,Fast Fluid Power Ltd
"Commercial, Corporate & landlord Services",Property Services & Facilities Management,Resources,External Clients,Premises,"Repairs, Alterations & Maintenance of Buildings",Building Improvements / Maintenance,,15/02/2023,11091492,90067026,489.22,C,Hutchison 3G UK Limited
"Facilities, Fleet & Decarbonisation",Transport Department,Communities & Place,Transport,Supplies & Services,"Equipment, Furniture and Materials",Materials & Consumables.,,15/02/2023,11092935,0,53.8,C,Mon & Border Motor Factors Ltd
"Facilities, Fleet & Decarbonisation",Property Services -  Cleaning,Communities & Place,Building Cleaning,Employees,Indirect Employee Expenses,"Course, Conference And Seminar Fees",,21/02/2023,11097912,10130207,2400,C,BICS Training & Services Ltd
"Facilities, Fleet & Decarbonisation",Property Services -  Cleaning,Communities & Place,Building Cleaning,Employees,Indirect Employee Expenses,"Course, Conference And Seminar Fees",,21/02/2023,11097912,10130207,1800,C,BICS Training & Services Ltd
"Facilities, Fleet & Decarbonisation",Catering Services,Communities & Place,Schools Catering,Supplies & Services,"Equipment, Furniture and Materials",Materials & Consumables.,,21/02/2023,11097896,10124881,551,C,BT Business Direct
"Leisure, Youth & Outdoor Adventure",Leisure Services,MonLife Directorate,Monmouth Leisure Centre,Supplies & Services,"Equipment, Furniture and Materials",Cleaning Materials.,,21/02/2023,11097881,10122944,74.78,C,Newhall Janitorial Ltd
"Facilities, Fleet & Decarbonisation",Property Services -  Cleaning,Communities & Place,Building Cleaning,Supplies & Services,"Equipment, Furniture and Materials",Cleaning Materials.,,21/02/2023,11097880,10122842,56,C,Newhall Janitorial Ltd
Adult Services,Direct Care Residential,Social Care and Health,Severn View Residential,Supplies & Services,"Equipment, Furniture and Materials",Provisions.,,27/02/2023,11098041,10123221,482.89,C,Castell Howell Foods Ltd
Adult Services,Direct Care Residential,Social Care and Health,Severn View Residential,Supplies & Services,"Equipment, Furniture and Materials",Provisions.,,27/02/2023,11098041,10123221,436.41,C,Castell Howell Foods Ltd
Adult Services,Direct Care Residential,Social Care and Health,Severn View Residential,Supplies & Services,"Equipment, Furniture and Materials",Provisions.,,27/02/2023,11098041,10123221,-436.41,C,Castell Howell Foods Ltd
"Commercial, Corporate & landlord Services",Property Services & Facilities Management,Resources,Programmed Maintenance,Premises,"Repairs, Alterations & Maintenance of Buildings",Premises Repairs And Maintenance,,27/02/2023,11099298,90066631,446,C,Fire Safety Direct
"Facilities, Fleet & Decarbonisation",Transport Department,Communities & Place,Transport,Supplies & Services,"Equipment, Furniture and Materials",Materials & Consumables.,,15/02/2023,11092724,0,18.61,C,Motorcare
Schools Total,School Group 2 � Pupil Capacity 144-314,MCC Schools,Llantilio Pertholey CiW Primary School (VC),Supplies & Services,"Equipment, Furniture and Materials",Materials & Consumables.,,15/02/2023,11094234,80085089,48.42,C,Amazon Payments UK Limited
Schools Total,School Group 2 � Pupil Capacity 144-314,MCC Schools,Llantilio Pertholey CiW Primary School (VC),Supplies & Services,"Equipment, Furniture and Materials",Materials & Consumables.,,15/02/2023,11094235,80085089,37.46,C,Amazon Payments UK Limited
Schools Total,School Group 2 � Pupil Capacity 144-314,MCC Schools,Llantilio Pertholey CiW Primary School (VC),Supplies & Services,"Equipment, Furniture and Materials",Materials & Consumables.,,15/02/2023,11094236,80085089,33.32,C,Amazon Payments UK Limited
Schools Total,School Group 2 � Pupil Capacity 144-314,MCC Schools,Llantilio Pertholey CiW Primary School (VC),Supplies & Services,"Equipment, Furniture and Materials",Materials & Consumables.,,15/02/2023,11093858,80085089,37.49,C,Amazon Payments UK Limited
"Facilities, Fleet & Decarbonisation",Transport Department,Communities & Place,Transport,Supplies & Services,"Equipment, Furniture and Materials",Materials & Consumables.,,15/02/2023,11093643,0,308.9,C,Mon & Border Motor Factors Ltd
"Facilities, Fleet & Decarbonisation",Transport Department,Communities & Place,Transport,Supplies & Services,"Equipment, Furniture and Materials",Materials & Consumables.,,15/02/2023,11092492,0,94.45,C,Mon & Border Motor Factors Ltd
"Facilities, Fleet & Decarbonisation",Transport Department,Communities & Place,Transport,Supplies & Services,"Equipment, Furniture and Materials",Small Plant & Tools.,,15/02/2023,11093644,0,94.74,C,Mon & Border Motor Factors Ltd
"Facilities, Fleet & Decarbonisation",Transport Department,Communities & Place,Transport,Supplies & Services,"Equipment, Furniture and Materials",Small Plant & Tools.,,15/02/2023,11092494,0,272.5,C,Mon & Border Motor Factors Ltd
"Facilities, Fleet & Decarbonisation",Transport Department,Communities & Place,Transport,Supplies & Services,"Equipment, Furniture and Materials",Small Plant & Tools.,,15/02/2023,11092495,0,29.8,C,Mon & Border Motor Factors Ltd
Neighbourhood Services,Highways,Communities & Place,Overhead - SWTRA / External,Supplies & Services,Services,Sub-Contractors Fees,,10/02/2023,11091473,10128713,149.1,C,G D Environmental Services Ltd
"Leisure, Youth & Outdoor Adventure",Leisure Services,MonLife Directorate,Monmouth Leisure Centre,Supplies & Services,"Equipment, Furniture and Materials",Cleaning Materials.,,14/02/2023,11093952,10122944,74.78,C,Newhall Janitorial Ltd
Schools Total,School Group 7 � Pupil Capacity 501-1800,MCC Schools,Caldicot School,Employees,Indirect Employee Expenses,"Course, Conference And Seminar Fees",,07/02/2023,11092769,80091535,1280,C,Positive Behaviour Team Ltd.
Community Care,INTEGRATED CARE FUND,Social Care and Health,Intermediate Care Fund,Employees,Direct Employee Expenses,Agency Staff,,27/02/2023,11098045,10129399,808.43,C,Piers Meadows Recruitment Limited
Community Care,INTEGRATED CARE FUND,Social Care and Health,Intermediate Care Fund,Employees,Direct Employee Expenses,Agency Staff,,27/02/2023,11098045,10129399,7.2,C,Piers Meadows Recruitment Limited
Community Care,INTEGRATED CARE FUND,Social Care and Health,Intermediate Care Fund,Employees,Direct Employee Expenses,Agency Staff,,27/02/2023,11098045,10129399,-7.2,C,Piers Meadows Recruitment Limited
Schools Total,School Group 2 � Pupil Capacity 144-314,MCC Schools,Rogiet Primary School,Employees,Direct Employee Expenses,Agency Staff,,28/02/2023,11098182,80085326,775.81,C,Back Office Support Services Ltd (Education Supply Pool)
Schools Total,School Group 2 � Pupil Capacity 144-314,MCC Schools,Rogiet Primary School,Employees,Direct Employee Expenses,Agency Staff,,27/02/2023,11098186,80088179,200.8,C,Prospero Teaching
Schools Total,School Group 2 � Pupil Capacity 144-314,MCC Schools,Rogiet Primary School,Employees,Direct Employee Expenses,Agency Staff,,27/02/2023,11098187,80088179,200.8,C,Prospero Teaching
Schools Total,School Group 2 � Pupil Capacity 144-314,MCC Schools,Rogiet Primary School,Employees,Direct Employee Expenses,Agency Staff,,27/02/2023,11098188,80088179,200.8,C,Prospero Teaching
Schools Total,School Group 2 � Pupil Capacity 144-314,MCC Schools,Rogiet Primary School,Employees,Direct Employee Expenses,Agency Staff,,27/02/2023,11098189,80088179,73.8,C,Prospero Teaching
Schools Total,School Group 2 � Pupil Capacity 144-314,MCC Schools,Rogiet Primary School,Employees,Direct Employee Expenses,Agency Staff,,27/02/2023,11098190,80088179,200.8,C,Prospero Teaching
Schools Total,School Group 2 � Pupil Capacity 144-314,MCC Schools,Rogiet Primary School,Employees,Direct Employee Expenses,Agency Staff,,28/02/2023,11099284,80085326,897.31,C,Back Office Support Services Ltd (Education Supply Pool)
Community Care,INTEGRATED CARE FUND,Social Care and Health,Intermediate Care Fund,Employees,Direct Employee Expenses,Agency Staff,,27/02/2023,11099274,10128776,1596.6,C,Liquid Personnel
Standards,Early Years,Children & Young People,Flying Start Grant,Supplies & Services,Grants and Subscriptions,Grants Payable,,27/02/2023,11099269,10123669,40679.93,C,Aneurin Bevan Local Health Board
"Commercial, Corporate & landlord Services",Property Services & Facilities Management,Resources,Gwent Police Collaboration,Premises,"Repairs, Alterations & Maintenance of Buildings",Building Improvements / Maintenance,,27/02/2023,11099197,760020534,50,C,Ambassador Fire & Security LTD
"Commercial, Corporate & landlord Services",Property Services & Facilities Management,Resources,Gwent Police Collaboration,Premises,"Repairs, Alterations & Maintenance of Buildings",Building Improvements / Maintenance,,27/02/2023,11099201,760020646,50,C,Ambassador Fire & Security LTD
Schools Total,School Group 2 � Pupil Capacity 144-314,MCC Schools,Pembroke Primary School,Premises,"Repairs, Alterations & Maintenance of Buildings",Premises Repairs And Maintenance,,27/02/2023,11098220,80091893,940.36,C,G4S Secure Solutions (UK) Ltd
Schools Total,School Group 2 � Pupil Capacity 144-314,MCC Schools,Pembroke Primary School,Employees,Direct Employee Expenses,Agency Staff,,27/02/2023,11098213,80091867,416.25,C,Tradewind Recruitment Ltd
Schools Total,School Group 2 � Pupil Capacity 144-314,MCC Schools,Pembroke Primary School,Employees,Direct Employee Expenses,Agency Staff,,27/02/2023,11098214,80091868,333,C,Tradewind Recruitment Ltd
Schools Total,School Group 2 � Pupil Capacity 144-314,MCC Schools,Pembroke Primary School,Employees,Direct Employee Expenses,Agency Staff,,27/02/2023,11098215,80091869,354,C,ANZUK Education Ltd
Schools Total,School Group 2 � Pupil Capacity 144-314,MCC Schools,Pembroke Primary School,Employees,Direct Employee Expenses,Agency Staff,,27/02/2023,11098217,80091889,354,C,ANZUK Education Ltd
Schools Total,School Group 2 � Pupil Capacity 144-314,MCC Schools,Pembroke Primary School,Employees,Direct Employee Expenses,Agency Staff,,27/02/2023,11098218,80091890,563.25,C,Suppleo Recruitment Ltd
Schools Total,School Group 2 � Pupil Capacity 144-314,MCC Schools,Pembroke Primary School,Employees,Direct Employee Expenses,Agency Staff,,27/02/2023,11098219,80091891,412,C,Tradewind Recruitment Ltd
"Leisure, Youth & Outdoor Adventure",Youth & Education,MonLife Directorate,Gilwern,Employees,Direct Employee Expenses,Travelling Expenses,,01/02/2023,4068713,0,-75.3,C,REDACTED DATA
"Leisure, Youth & Outdoor Adventure",Youth & Education,MonLife Directorate,Gilwern,Premises,"Repairs, Alterations & Maintenance of Buildings",Building Improvements / Maintenance,,01/02/2023,4068713,0,-32.5,C,REDACTED DATA
Schools Total,School Group 7 � Pupil Capacity 501-1800,MCC Schools,Monmouth Comprehensive,Employees,Direct Employee Expenses,Agency Staff,,15/02/2023,11093860,80085174,178.46,C,Back Office Support Services Ltd (Education Supply Pool)
Community Care,Community Care Team,Social Care and Health,Abergavenny Adult Team,Third Party Payments,Third Party,Personal Care.,,15/02/2023,11094279,0,607.38,C,Allied Healthcare Services Limited
Appropriations,Appropriations,Appropriations,Attributable Costs - Fixed Asset Disposal,Premises,"Repairs, Alterations & Maintenance of Buildings",Building Improvements / Maintenance,,15/02/2023,11092515,90066516,34.5,C,A.J Quinn Building Contractors Ltd
Schools Total,School Group 2 � Pupil Capacity 144-314,MCC Schools,Dewstow Primary School,Premises,"Repairs, Alterations & Maintenance of Buildings",Building Improvements / Maintenance,,15/02/2023,11092511,90065646,486.32,C,A.J Quinn Building Contractors Ltd
Schools Total,School Group 2 � Pupil Capacity 144-314,MCC Schools,Our Lady & St Michael's (OLSM) RC Primary School (VA),Employees,Direct Employee Expenses,Agency Staff,,15/02/2023,11094461,80091779,543.2,C,Apollo Teaching Services LTD
Community Care,Community Care Team,Social Care and Health,Abergavenny Adult Team,Third Party Payments,Third Party,Personal Care.,,15/02/2023,11094275,0,787.86,C,My Care My Home Ltd
Community Care,Community Care Team,Social Care and Health,Monmouth Adult Team,Third Party Payments,Third Party,Personal Care.,,15/02/2023,11094274,0,1969.35,C,My Care My Home Ltd
Community Care,Community Care Team,Social Care and Health,Mental Health Care Team,Third Party Payments,Third Party,Personal Care.,,15/02/2023,11094276,0,750.11,C,My Care My Home Ltd
Community Care,Community Care Team,Social Care and Health,Mental Health Care Team,Third Party Payments,Third Party,Personal Care.,,10/02/2023,11093653,0,701.94,C,Abicare Services Ltd
Standards,Inclusions,Children & Young People,Community Focused Schools Childcare Grant,Supplies & Services,Grants and Subscriptions,Grants Payable,,10/02/2023,11093572,10130003,1567.5,C,Shirenewton After School Club
Children Services,Children Services Other,Social Care and Health,External Placements - CLA,Third Party Payments,Third Party,Residential.,,14/02/2023,11093890,10127477,11462.86,C,Dudley Lodge
Children Services,Children Services Other,Social Care and Health,External Placements - CLA,Third Party Payments,Third Party,Residential.,,14/02/2023,11093956,10125785,1860,C,D2 ProproLtd
Children Services,Children Services Other,Social Care and Health,External Placements - CLA,Third Party Payments,Third Party,Residential.,,14/02/2023,11093957,10125785,1800,C,D2 ProproLtd
Neighbourhood Services,Highways,Communities & Place,Street Lighting,Third Party Payments,Third Party,Maintenance Contracts,,14/02/2023,11092803,819042,55.26,C,Enerveo Ltd
Community Care,Community Care Team,Social Care and Health,Abergavenny Adult Team,Third Party Payments,Third Party,Personal Care.,,01/02/2023,318638,0,944.2,C,REDACTED PERSONAL DATA
Community Care,Community Care Team,Social Care and Health,Abergavenny Adult Team,Third Party Payments,Third Party,Personal Care.,,01/02/2023,318638,0,1845.92,C,REDACTED PERSONAL DATA
Community Care,Community Care Team,Social Care and Health,Mental Health Care Team,Third Party Payments,Third Party,Personal Care.,,01/02/2023,318638,0,363.64,C,REDACTED PERSONAL DATA
Community Care,Community Care Team,Social Care and Health,Mental Health Care Team,Third Party Payments,Third Party,Personal Care.,,01/02/2023,318638,0,2500,C,REDACTED PERSONAL DATA
Community Care,ADULT DISABILITY SERVICES,Social Care and Health,CLDT,Third Party Payments,Third Party,Personal Care.,,01/02/2023,318638,0,548.44,C,REDACTED PERSONAL DATA
Community Care,ADULT DISABILITY SERVICES,Social Care and Health,CLDT,Third Party Payments,Third Party,Personal Care.,,01/02/2023,318638,0,3612.2,C,REDACTED PERSONAL DATA
Community Care,ADULT DISABILITY SERVICES,Social Care and Health,CLDT,Third Party Payments,Third Party,Personal Care.,,01/02/2023,318638,0,1512.76,C,REDACTED PERSONAL DATA
Community Care,Community Care Team,Social Care and Health,Monmouth Adult Team,Third Party Payments,Third Party,Personal Care.,,01/02/2023,318638,0,1176.56,C,REDACTED PERSONAL DATA
Community Care,Community Care Team,Social Care and Health,Monmouth Adult Team,Third Party Payments,Third Party,Personal Care.,,01/02/2023,318638,0,3275.44,C,REDACTED PERSONAL DATA
Community Care,Community Care Team,Social Care and Health,Monmouth Adult Team,Third Party Payments,Third Party,Personal Care.,,01/02/2023,318638,0,2900,C,REDACTED PERSONAL DATA
Community Care,Community Care Team,Social Care and Health,Monmouth Adult Team,Third Party Payments,Third Party,Personal Care.,,01/02/2023,318638,0,5599.84,C,REDACTED PERSONAL DATA
Community Care,Community Care Team,Social Care and Health,Monmouth Adult Team,Third Party Payments,Third Party,Personal Care.,,01/02/2023,318638,0,13201.44,C,REDACTED PERSONAL DATA
Community Care,Community Care Team,Social Care and Health,Monmouth Adult Team,Third Party Payments,Third Party,Personal Care.,,01/02/2023,318638,0,2500,C,REDACTED PERSONAL DATA
Community Care,Community Care Team,Social Care and Health,Monmouth Adult Team,Third Party Payments,Third Party,Personal Care.,,01/02/2023,318638,0,438.76,C,REDACTED PERSONAL DATA
Schools Total,SCHGRP3 � School Group 3 � Pupil Capacity 315-500,MCC Schools,Undy Primary School,Premises,"Repairs, Alterations & Maintenance of Buildings",Building Improvements / Maintenance,,14/02/2023,11093990,80091426,35.75,C,Amlee Electrical Supplies Ltd
Schools Total,SCHGRP3 � School Group 3 � Pupil Capacity 315-500,MCC Schools,Undy Primary School,Premises,"Repairs, Alterations & Maintenance of Buildings",Building Improvements / Maintenance,,14/02/2023,11094077,80091714,2.5,C,Undy Building Supplies
Schools Total,SCHGRP3 � School Group 3 � Pupil Capacity 315-500,MCC Schools,Undy Primary School,Premises,"Repairs, Alterations & Maintenance of Buildings",Building Improvements / Maintenance,,14/02/2023,11094077,80091714,8,C,Undy Building Supplies
Schools Total,SCHGRP3 � School Group 3 � Pupil Capacity 315-500,MCC Schools,Undy Primary School,Premises,"Repairs, Alterations & Maintenance of Buildings",Building Improvements / Maintenance,,14/02/2023,11094077,80091714,8.5,C,Undy Building Supplies
"Commercial, Corporate & landlord Services",Property Services & Facilities Management,Resources,Gwent Police Collaboration,Premises,"Repairs, Alterations & Maintenance of Buildings",Building Improvements / Maintenance,,14/02/2023,11093215,760019214,470.24,C,Lorne Stewart  Plc
"Commercial, Corporate & landlord Services",Property Services & Facilities Management,Resources,Gwent Police Collaboration,Premises,"Repairs, Alterations & Maintenance of Buildings",Building Improvements / Maintenance,,14/02/2023,11093216,760019535,2629.04,C,Lorne Stewart  Plc
"Commercial, Corporate & landlord Services",Property Services & Facilities Management,Resources,Gwent Police Collaboration,Premises,"Repairs, Alterations & Maintenance of Buildings",Building Improvements / Maintenance,,14/02/2023,11093218,760019172,55.06,C,Lorne Stewart  Plc
Community Care,Community Care Team,Social Care and Health,Abergavenny Adult Team,Third Party Payments,Third Party,Personal Care.,,14/02/2023,11094084,0,3450.4,C,Pobl Care & Support
Children Services,Children Services Other,Social Care and Health,External Placements - CLA,Third Party Payments,Third Party,Residential.,,14/02/2023,11093205,10128318,154.8,C,SICS Gofal Cymru CYF
Community Care,ADULT DISABILITY SERVICES,Social Care and Health,CLDT,Third Party Payments,Third Party,Personal Care.,,14/02/2023,11094085,0,3405.8,C,Pobl Care & Support
Neighbourhood Services,Highways,Communities & Place,Street Lighting,Third Party Payments,Third Party,Maintenance Contracts,,07/02/2023,11092767,819042,55.26,C,Enerveo Ltd
Neighbourhood Services,Highways,Communities & Place,Street Lighting,Third Party Payments,Third Party,Maintenance Contracts,,07/02/2023,11092772,819042,55.26,C,Enerveo Ltd
Schools Total,School Group 7 � Pupil Capacity 501-1800,MCC Schools,Caldicot School,Supplies & Services,Expenses,Exam Fees (Schools),,07/02/2023,11092771,80091537,295.65,C,SWEET EDUCATION
Community Care,Community Care Team,Social Care and Health,Abergavenny Adult Team,Third Party Payments,Third Party,Personal Care.,,01/02/2023,318638,0,1367.48,C,REDACTED PERSONAL DATA
Community Care,Community Care Team,Social Care and Health,Abergavenny Adult Team,Third Party Payments,Third Party,Personal Care.,,01/02/2023,318638,0,1091.88,C,REDACTED PERSONAL DATA
Community Care,ADULT DISABILITY SERVICES,Social Care and Health,CLDT,Third Party Payments,Third Party,Personal Care.,,01/02/2023,318638,0,692.04,C,REDACTED PERSONAL DATA
Community Care,ADULT DISABILITY SERVICES,Social Care and Health,CLDT,Third Party Payments,Third Party,Personal Care.,,01/02/2023,318638,0,394.04,C,REDACTED PERSONAL DATA
Community Care,Community Care Team,Social Care and Health,Mental Health Care Team,Third Party Payments,Third Party,Personal Care.,,01/02/2023,318638,0,2500,C,REDACTED PERSONAL DATA
Community Care,Community Care Team,Social Care and Health,Mental Health Care Team,Third Party Payments,Third Party,Personal Care.,,01/02/2023,318638,0,1261.4,C,REDACTED PERSONAL DATA
Community Care,Community Care Team,Social Care and Health,Mental Health Care Team,Third Party Payments,Third Party,Personal Care.,,01/02/2023,318638,0,1480.88,C,REDACTED PERSONAL DATA
Community Care,Community Care Team,Social Care and Health,Monmouth Adult Team,Third Party Payments,Third Party,Personal Care.,,01/02/2023,318638,0,963.6,C,REDACTED PERSONAL DATA
Community Care,Community Care Team,Social Care and Health,Monmouth Adult Team,Third Party Payments,Third Party,Personal Care.,,01/02/2023,318638,0,504,C,REDACTED PERSONAL DATA
Community Care,Community Care Team,Social Care and Health,Monmouth Adult Team,Third Party Payments,Third Party,Personal Care.,,01/02/2023,318638,0,1824.88,C,REDACTED PERSONAL DATA
Community Care,Community Care Team,Social Care and Health,Monmouth Adult Team,Third Party Payments,Third Party,Personal Care.,,01/02/2023,318638,0,966.8,C,REDACTED PERSONAL DATA
Community Care,Community Care Team,Social Care and Health,Monmouth Adult Team,Third Party Payments,Third Party,Personal Care.,,01/02/2023,318638,0,9955.6,C,REDACTED PERSONAL DATA
Community Care,Community Care Team,Social Care and Health,Monmouth Adult Team,Third Party Payments,Third Party,Personal Care.,,01/02/2023,318638,0,2526,C,REDACTED PERSONAL DATA
Community Care,Community Care Team,Social Care and Health,Monmouth Adult Team,Third Party Payments,Third Party,Personal Care.,,01/02/2023,318638,0,1906.76,C,REDACTED PERSONAL DATA
Community Care,Community Care Team,Social Care and Health,Monmouth Adult Team,Third Party Payments,Third Party,Personal Care.,,01/02/2023,318638,0,2500,C,REDACTED PERSONAL DATA
Community Care,Community Care Team,Social Care and Health,Monmouth Adult Team,Third Party Payments,Third Party,Personal Care.,,01/02/2023,318638,0,2500,C,REDACTED PERSONAL DATA
Community Care,Community Care Team,Social Care and Health,Monmouth Adult Team,Third Party Payments,Third Party,Personal Care.,,01/02/2023,318638,0,622.6,C,REDACTED PERSONAL DATA
Community Care,Community Care Team,Social Care and Health,Monmouth Adult Team,Third Party Payments,Third Party,Personal Care.,,01/02/2023,318638,0,429.96,C,REDACTED PERSONAL DATA
Community Care,Community Care Team,Social Care and Health,Monmouth Adult Team,Third Party Payments,Third Party,Personal Care.,,01/02/2023,318638,0,2500,C,REDACTED PERSONAL DATA
Community Care,Community Care Team,Social Care and Health,Abergavenny Adult Team,Third Party Payments,Third Party,Personal Care.,,01/02/2023,318638,0,547.48,C,REDACTED PERSONAL DATA
Community Care,Community Care Team,Social Care and Health,Abergavenny Adult Team,Third Party Payments,Third Party,Personal Care.,,01/02/2023,318638,0,827.44,C,REDACTED PERSONAL DATA
Community Care,Community Care Team,Social Care and Health,Abergavenny Adult Team,Third Party Payments,Third Party,Personal Care.,,01/02/2023,318638,0,587.8,C,REDACTED PERSONAL DATA
Community Care,Community Care Team,Social Care and Health,Mental Health Care Team,Third Party Payments,Third Party,Personal Care.,,01/02/2023,318638,0,1558.36,C,REDACTED PERSONAL DATA
Community Care,Community Care Team,Social Care and Health,Mental Health Care Team,Third Party Payments,Third Party,Personal Care.,,01/02/2023,318638,0,2524.2,C,REDACTED PERSONAL DATA
Community Care,Community Care Team,Social Care and Health,Mental Health Care Team,Third Party Payments,Third Party,Personal Care.,,01/02/2023,318638,0,535.32,C,REDACTED PERSONAL DATA
Community Care,ADULT DISABILITY SERVICES,Social Care and Health,CLDT,Third Party Payments,Third Party,Personal Care.,,01/02/2023,318638,0,570.72,C,REDACTED PERSONAL DATA
Community Care,ADULT DISABILITY SERVICES,Social Care and Health,CLDT,Third Party Payments,Third Party,Personal Care.,,01/02/2023,318638,0,696.68,C,REDACTED PERSONAL DATA
Schools Total,SCHGRP3 � School Group 3 � Pupil Capacity 315-500,MCC Schools,The Dell Primary School,Third Party Payments,Third Party,General Contracts,,08/02/2023,11093102,80091547,80,C,Basecamp Chepstow
Schools Total,SCHGRP3 � School Group 3 � Pupil Capacity 315-500,MCC Schools,Magor CiW Primary School (VA),Supplies & Services,"Printing, Stationery and General Office Expenses",Photocopying.,,08/02/2023,11093105,80091564,152.39,C,Sharp Business Systems UK plc
Neighbourhood Services,Highways,Communities & Place,Potholing,Supplies & Services,"Equipment, Furniture and Materials",Materials & Consumables.,,08/02/2023,11081483,819244,473.1,C,Dragon Asphalt Ltd
Neighbourhood Services,Highways,Communities & Place,Resurfacing,Supplies & Services,"Equipment, Furniture and Materials",Materials & Consumables.,,08/02/2023,11081483,819244,332.5,C,Dragon Asphalt Ltd
Neighbourhood Services,Highways,Communities & Place,Potholing,Supplies & Services,"Equipment, Furniture and Materials",Materials & Consumables.,,08/02/2023,11081485,819280,473.1,C,Dragon Asphalt Ltd
"Facilities, Fleet & Decarbonisation",Home to School Transport Dept,Communities & Place,Home To School Transport,Transport,Direct Transport Costs,Vechicles Repairs and Maintenance,,08/02/2023,11093122,0,371.82,C,Bulwark Bus & Coach Eng. Ltd
"Facilities, Fleet & Decarbonisation",Home to School Transport Dept,Communities & Place,Home To School Transport,Transport,Direct Transport Costs,Vechicles Repairs and Maintenance,,08/02/2023,11093123,0,2890.09,C,Bulwark Bus & Coach Eng. Ltd
"Facilities, Fleet & Decarbonisation",Home to School Transport Dept,Communities & Place,Home To School Transport,Transport,Direct Transport Costs,Vechicles Repairs and Maintenance,,08/02/2023,11093124,0,3431,C,Innovative Safety Systems Limited
"Facilities, Fleet & Decarbonisation",Home to School Transport Dept,Communities & Place,Home To School Transport,Transport,Direct Transport Costs,Vechicles Repairs and Maintenance,,08/02/2023,11093125,0,3431,C,Innovative Safety Systems Limited
"Facilities, Fleet & Decarbonisation",Home to School Transport Dept,Communities & Place,Home To School Transport,Transport,Direct Transport Costs,Vechicles Repairs and Maintenance,,08/02/2023,11093134,0,14.98,C,Amazon Payments UK Limited
"Placemaking, Highways & Flooding",Planning Policy,Communities & Place,Planning Policy,Premises,Rents,Rents/Hire Of Premises.,,08/02/2023,11093156,10128477,50,C,Magor Baptist Church
Control Division,Control Dept,Control,Payroll Monthly 2 (Schools),Current Liabilities,Short Term Creditors,Resource Link Payments,,03/02/2023,11092033,0,5,C,Caps
Control Division,Control Dept,Control,Payroll Monthly 2 (Schools),Current Liabilities,Short Term Creditors,Resource Link Payments,,03/02/2023,11092034,0,119.4,C,DWP Debt Management
Control Division,Control Dept,Control,Payroll Monthly General,Current Liabilities,Short Term Creditors,Resource Link Payments,,03/02/2023,11092033,0,12.5,C,Caps
Control Division,Control Dept,Control,Payroll Monthly General,Current Liabilities,Short Term Creditors,Resource Link Payments,,03/02/2023,11092034,0,168.76,C,DWP Debt Management
Control Division,Control Dept,Control,Payroll Monthly General,Current Liabilities,Short Term Creditors,Resource Link Payments,,03/02/2023,11092035,0,1142.19,C,DWP CMS Employers
Schools Total,School Group 2 � Pupil Capacity 144-314,MCC Schools,Trellech Primary School,Supplies & Services,"Equipment, Furniture and Materials",Health & Safety Equipment.,,08/02/2023,11091866,80091491,1182,C,Halo Support Ltd
Children Services,Children Services Other,Social Care and Health,External Placements - CLA,Third Party Payments,Third Party,Fostering/Adoption Allowances,,08/02/2023,11091887,10123563,5270,C,The Foster Care Co-operative Ltd
Children Services,Children Services Other,Social Care and Health,External Placements - CLA,Third Party Payments,Third Party,Fostering/Adoption Allowances,,08/02/2023,11091923,10122964,3528.42,C,Action For Children
Children Services,Children Services Other,Social Care and Health,External Placements - CLA,Third Party Payments,Third Party,Fostering/Adoption Allowances,,08/02/2023,11091926,10122990,3596.6,C,Foster Care Associates Limited (FCA)
Children Services,Children Services Other,Social Care and Health,External Placements - CLA,Third Party Payments,Third Party,Fostering/Adoption Allowances,,08/02/2023,11091928,10122992,3328.08,C,Foster Care Associates Limited (FCA)
Children Services,Children Services Other,Social Care and Health,External Placements - CLA,Third Party Payments,Third Party,Fostering/Adoption Allowances,,08/02/2023,11091929,10122993,3524.64,C,Foster Care Associates Limited (FCA)
Children Services,Children Services Other,Social Care and Health,External Placements - CLA,Third Party Payments,Third Party,Fostering/Adoption Allowances,,08/02/2023,11091930,10122994,3596.6,C,Foster Care Associates Limited (FCA)
Neighbourhood Services,Waste and Street Services,Communities & Place,Fitting Shop Grounds,Supplies & Services,"Equipment, Furniture and Materials",Materials & Consumables.,,08/02/2023,11091911,10122800,360,C,Trailparts
Children Services,Children Services Other,Social Care and Health,External Placements - CLA,Third Party Payments,Third Party,Fostering/Adoption Allowances,,08/02/2023,11091931,10122996,6362.16,C,Foster Care Associates Limited (FCA)
Adult Services,Direct Care Residential,Social Care and Health,Severn View Residential,Supplies & Services,Services,Assistance To Clients,,08/02/2023,11092254,10129859,224.75,C,Wye Gymnastics and Galaxy Cheerleading
Adult Services,Direct Care,Social Care and Health,Care at Home,Supplies & Services,"Equipment, Furniture and Materials",Health & Safety Equipment.,,08/02/2023,11092258,10129840,30.04,C,Orbis Protect Limited
"Leisure, Youth & Outdoor Adventure",Youth & Education,MonLife Directorate,Gilwern,Supplies & Services,"Equipment, Furniture and Materials",Equipment Purchases,,01/02/2023,11092205,0,100,C,REDACTED DATA
Capital Division,Capital Dept,Capital,Capital Programme,Transport,Direct Transport Costs,Acquisition,,08/02/2023,11092207,0,222200,C,EMV Direct Ltd
Capital Division,Capital Dept,Capital,Capital Programme,Transport,Direct Transport Costs,Acquisition,,08/02/2023,11092207,0,55,C,EMV Direct Ltd
Control Division,Control Dept,Control,Payroll Monthly General,Current Liabilities,Short Term Creditors,Resource Link Payments,,03/02/2023,11092036,0,71,C,Plutus Health
Control Division,Control Dept,Control,Payroll Monthly General,Current Liabilities,Short Term Creditors,Resource Link Payments,,03/02/2023,11092037,0,75.16,C,Welsh Hospitals & Health Services Association
Control Division,Control Dept,Control,Payroll Monthly General,Current Liabilities,Short Term Creditors,Resource Link Payments,,03/02/2023,11092038,0,558.12,C,GMB National Administration Unit
Control Division,Control Dept,Control,Payroll Monthly General,Current Liabilities,Short Term Creditors,Resource Link Payments,,03/02/2023,11092039,0,2869,C,Gateway Credit Union
Control Division,Control Dept,Control,Payroll Monthly General,Current Liabilities,Short Term Creditors,Resource Link Payments,,03/02/2023,11092040,0,40,C,G A Y E
Control Division,Control Dept,Control,Payroll Monthly General,Current Liabilities,Short Term Creditors,Resource Link Payments,,03/02/2023,11092041,0,1364.33,C,Clerical Medical Investment Group
Control Division,Control Dept,Control,Payroll Monthly 2 (Schools),Current Liabilities,Short Term Creditors,Resource Link Payments,,03/02/2023,11092036,0,22.27,C,Plutus Health
Control Division,Control Dept,Control,Payroll Monthly 2 (Schools),Current Liabilities,Short Term Creditors,Resource Link Payments,,03/02/2023,11092038,0,335.84,C,GMB National Administration Unit
Control Division,Control Dept,Control,Payroll Monthly 2 (Schools),Current Liabilities,Short Term Creditors,Resource Link Payments,,03/02/2023,11092039,0,651,C,Gateway Credit Union
Control Division,Control Dept,Control,Payroll MCCL3,Current Liabilities,Short Term Creditors,Resource Link Payments,,03/02/2023,11092036,0,37.26,C,Plutus Health
Control Division,Control Dept,Control,Payroll MCCL3,Current Liabilities,Short Term Creditors,Resource Link Payments,,03/02/2023,11092037,0,10.18,C,Welsh Hospitals & Health Services Association
Control Division,Control Dept,Control,Payroll MCCL3,Current Liabilities,Short Term Creditors,Resource Link Payments,,03/02/2023,11092038,0,121.04,C,GMB National Administration Unit
Control Division,Control Dept,Control,Payroll MCCL3,Current Liabilities,Short Term Creditors,Resource Link Payments,,03/02/2023,11092039,0,581,C,Gateway Credit Union
Children Services,Children Services Other,Social Care and Health,External Placements - CLA,Third Party Payments,Third Party,Fostering/Adoption Allowances,,08/02/2023,11092268,10125450,3670.09,C,Compass Fostering Wales Limited
Children Services,Children Services Other,Social Care and Health,External Placements - CLA,Third Party Payments,Third Party,Fostering/Adoption Allowances,,08/02/2023,11092269,10125451,3670.09,C,Compass Fostering Wales Limited
Children Services,Children Services Other,Social Care and Health,External Placements - CLA,Third Party Payments,Third Party,Fostering/Adoption Allowances,,08/02/2023,11092280,10122970,3509.82,C,Compass Fostering Wales Limited
Children Services,Children Services Other,Social Care and Health,External Placements - CLA,Third Party Payments,Third Party,Fostering/Adoption Allowances,,08/02/2023,11092281,10122971,3509.82,C,Compass Fostering Wales Limited
Children Services,Children Services Other,Social Care and Health,External Placements - CLA,Third Party Payments,Third Party,Fostering/Adoption Allowances,,08/02/2023,11092282,10122972,3509.82,C,Compass Fostering Wales Limited
Children Services,Children Services Other,Social Care and Health,External Placements - CLA,Third Party Payments,Third Party,Fostering/Adoption Allowances,,08/02/2023,11092283,10122973,3509.82,C,Compass Fostering Wales Limited
Adult Services,Direct Care Residential,Social Care and Health,Severn View Residential,Premises,"Repairs, Alterations & Maintenance of Buildings",Skip Hire,,08/02/2023,11092265,10129719,260,C,Rb Skip Hire
Adult Services,Direct Care,Social Care and Health,Care at Home,Supplies & Services,"Equipment, Furniture and Materials",Health & Safety Equipment.,,08/02/2023,11092259,10129841,15.64,C,Orbis Protect Limited
Children Services,Children Services Other,Social Care and Health,External Placements - CLA,Third Party Payments,Third Party,Fostering/Adoption Allowances,,08/02/2023,11092284,10122987,3509.82,C,Compass Fostering Wales Limited
Control Division,Control Dept,Control,Payroll MCCL3,Current Liabilities,Short Term Creditors,Resource Link Payments,,03/02/2023,11092042,0,7.5,C,Unite The Union
Control Division,Control Dept,Control,Payroll Monthly 2 (Schools),Current Liabilities,Short Term Creditors,Resource Link Payments,,03/02/2023,11092041,0,100,C,Clerical Medical Investment Group
Control Division,Control Dept,Control,Payroll Monthly General,Current Liabilities,Short Term Creditors,Resource Link Payments,,03/02/2023,11092042,0,14.95,C,Unite The Union
Schools Total,School Group 2 � Pupil Capacity 144-314,MCC Schools,Cross Ash Primary School,Supplies & Services,"Printing, Stationery and General Office Expenses",Photocopying.,,20/02/2023,11098058,80083879,78.78,C,Konica Minolta Bus. Solutions (UK) Ltd
Community Care,Community Care Team,Social Care and Health,Chepstow Adult Team,Third Party Payments,Third Party,Personal Care.,,20/02/2023,11098031,0,1596,C,Home Instead Senior Care
Community Care,Community Care Team,Social Care and Health,Chepstow Adult Team,Third Party Payments,Third Party,Personal Care.,,20/02/2023,11098032,0,504,C,Home Instead Senior Care
Community Care,Community Care Team,Social Care and Health,Chepstow Adult Team,Third Party Payments,Third Party,Personal Care.,,20/02/2023,11098034,0,630,C,Home Instead Senior Care
Community Care,Community Care Team,Social Care and Health,Chepstow Adult Team,Third Party Payments,Third Party,Personal Care.,,20/02/2023,11098036,0,600,C,Home Instead Senior Care
Schools Total,School Group 7 � Pupil Capacity 501-1800,MCC Schools,Caldicot School,Supplies & Services,"Printing, Stationery and General Office Expenses",Stationery,,07/02/2023,11092760,80091540,488.3,C,Springfield Business Papers
People,Training,People & Governance,Corporate Training,Supplies & Services,Services,Training Charges,,10/02/2023,11093073,10129949,450,C,REDACTED PERSONAL DATA
Community Care,Community Care Team,Social Care and Health,Chepstow Adult Team,Third Party Payments,Third Party,Personal Care.,,10/02/2023,11093649,0,742.49,C,Abicare Services Ltd
Standards,Early Years,Children & Young People,Expansion of Early Years Grant,Third Party Payments,Third Party,Third party payments NOT relating to goods or services,,10/02/2023,11093570,10130001,14080,C,Ladybirds at Llanvihangel
"Facilities, Fleet & Decarbonisation",Transport Department,Communities & Place,Transport,Transport,Contract Hire and Operating Leases,Vehicle Hire Charge,,15/02/2023,11091673,0,725.4,C,Enterprise Flex-E-Rent
"Facilities, Fleet & Decarbonisation",Transport Department,Communities & Place,Transport,Transport,Contract Hire and Operating Leases,Vehicle Hire Charge,,15/02/2023,11091879,0,467.9,C,N D Brown Ltd
"Facilities, Fleet & Decarbonisation",Transport Department,Communities & Place,Transport,Transport,Contract Hire and Operating Leases,Vehicle Hire Charge,,15/02/2023,11093203,0,1200,C,Avondale Service Station
"Facilities, Fleet & Decarbonisation",Transport Department,Communities & Place,Transport,Transport,Direct Transport Costs,Spare Parts,,15/02/2023,11092994,0,783.75,C,Euro Commercials (South Wales) L
"Facilities, Fleet & Decarbonisation",Transport Department,Communities & Place,Transport,Transport,Direct Transport Costs,Spare Parts,,15/02/2023,11093206,0,202.7,C,Mon & Border Motor Factors Ltd
"Facilities, Fleet & Decarbonisation",Transport Department,Communities & Place,Transport,Transport,Direct Transport Costs,Spare Parts,,15/02/2023,11092934,0,18.12,C,Mon & Border Motor Factors Ltd
Neighbourhood Services,Highways,Communities & Place,Overhead - Mon Highways,Supplies & Services,Services,Training Charges,,21/02/2023,11098160,10129383,960,C,AMD Training Ltd
Neighbourhood Services,Highways,Communities & Place,Overhead - SWTRA / External,Supplies & Services,Services,Training Charges,,21/02/2023,11098161,10129384,1699,C,AMD Training Ltd
Community Care,Community Care Team,Social Care and Health,Chepstow Adult Team,Third Party Payments,Third Party,Personal Care.,,21/02/2023,11098250,0,1261.75,C,Lougher Home Care Ltd
Community Care,Community Care Team,Social Care and Health,Chepstow Adult Team,Third Party Payments,Third Party,Personal Care.,,21/02/2023,11098251,0,865.2,C,Lougher Home Care Ltd
Community Care,Community Care Team,Social Care and Health,Chepstow Adult Team,Third Party Payments,Third Party,Personal Care.,,21/02/2023,11098298,0,3172.4,C,Lougher Home Care Ltd
Community Care,Community Care Team,Social Care and Health,Chepstow Adult Team,Third Party Payments,Third Party,Personal Care.,,21/02/2023,11098299,0,3028.2,C,Lougher Home Care Ltd
Neighbourhood Services,Waste and Street Services,Communities & Place,Grounds,Supplies & Services,"Equipment, Furniture and Materials",Materials & Consumables.,,27/02/2023,11097864,10122685,486.67,C,Fenland Leisure Products
Neighbourhood Services,Waste and Street Services,Communities & Place,Grounds,Supplies & Services,"Equipment, Furniture and Materials",Materials & Consumables.,,27/02/2023,11099151,10123095,170.1,C,Tudor Environmental
Adult Services,Grant Schemes SHS,Social Care and Health,Training,Supplies & Services,Services,Training Charges,,27/02/2023,11099144,10130039,117,C,Ajuda
"Enterprise, Housing & Community Animation",Business Growth & Enterprise,Communities & Place,Communities for Work Plus,Supplies & Services,"Clothes, Uniform and Laundry",Clothing And Uniforms,,27/02/2023,11099141,10129873,46,C,PSM Sportswear Ltd
Neighbourhood Services,Waste and Street Services,Communities & Place,Refuse & Cleansing Operations,Supplies & Services,"Equipment, Furniture and Materials",Equipment Purchases,,27/02/2023,11099139,10129749,2158.5,C,Straight Plc
Schools Total,School Group 7 � Pupil Capacity 501-1800,MCC Schools,Caldicot School,Transport,Contract Hire and Operating Leases,Vehicle Hire Charge,,27/02/2023,11098183,80085471,910,C,Lex Autolease Ltd
Standards,Early Years,Children & Young People,Flying Start Grant,Supplies & Services,Services,Training Charges,,27/02/2023,11099275,10129448,3200,C,Parents as First Teachers UK Ltd
Children Services,Children Services Other,Social Care and Health,External Placements - CLA,Third Party Payments,Third Party,Fostering/Adoption Allowances,,21/02/2023,11098002,10123386,3348,C,Foster Care Group Wales CYF
Community Care,Community Care Team,Social Care and Health,Chepstow Adult Team,Third Party Payments,Third Party,Personal Care.,,21/02/2023,11098252,0,3749.2,C,Lougher Home Care Ltd
Community Care,Community Care Team,Social Care and Health,Chepstow Adult Team,Third Party Payments,Third Party,Personal Care.,,21/02/2023,11098253,0,3749.2,C,Lougher Home Care Ltd
Community Care,Community Care Team,Social Care and Health,Chepstow Adult Team,Third Party Payments,Third Party,Personal Care.,,21/02/2023,11098276,0,721,C,Lougher Home Care Ltd
Community Care,Community Care Team,Social Care and Health,Chepstow Adult Team,Third Party Payments,Third Party,Personal Care.,,21/02/2023,11098277,0,1442,C,Lougher Home Care Ltd
Neighbourhood Services,Highways,Communities & Place,Pumping stations,Transport,Direct Transport Costs,Vechicles Repairs and Maintenance,,21/02/2023,11094407,819480,305.5,C,KPR Engineering (M&E) Ltd
Children Services,Children Services Teams,Social Care and Health,MyST,Premises,Rents,Rents/Hire Of Premises.,,21/02/2023,11098162,10129898,1235.44,C,Torfaen County Borough Council
"Leisure, Youth & Outdoor Adventure",Youth & Education,MonLife Directorate,Gilwern,Supplies & Services,"Equipment, Furniture and Materials",Equipment Purchases,,01/02/2023,4068713,0,-100,C,REDACTED DATA
"Facilities, Fleet & Decarbonisation",Transport Department,Communities & Place,Transport,Transport,Contract Hire and Operating Leases,Vehicle Hire Charge,,15/02/2023,11092723,0,686.34,C,Runtech Ltd
"Facilities, Fleet & Decarbonisation",Transport Department,Communities & Place,Transport,Transport,Direct Transport Costs,Spare Parts,,15/02/2023,11093630,0,51.3,C,Euro Commercials (South Wales) L
"Facilities, Fleet & Decarbonisation",Transport Department,Communities & Place,Transport,Transport,Direct Transport Costs,Spare Parts,,15/02/2023,11093631,0,217.5,C,Euro Commercials (South Wales) L
"Facilities, Fleet & Decarbonisation",Transport Department,Communities & Place,Transport,Transport,Direct Transport Costs,Spare Parts,,15/02/2023,11093632,0,2.43,C,Euro Commercials (South Wales) L
"Facilities, Fleet & Decarbonisation",Transport Department,Communities & Place,Transport,Transport,Direct Transport Costs,Tyres And Tubes,,15/02/2023,11093313,0,431.23,C,Malvern Tyres (Wholesale) Ltd
"Facilities, Fleet & Decarbonisation",Transport Department,Communities & Place,Transport,Transport,Direct Transport Costs,Tyres And Tubes,,15/02/2023,11093315,0,649.27,C,Malvern Tyres (Wholesale) Ltd
"Facilities, Fleet & Decarbonisation",Transport Department,Communities & Place,Transport,Transport,Direct Transport Costs,Spare Parts,,15/02/2023,11094190,0,155.64,C,Euro Commercials (South Wales) L
"Facilities, Fleet & Decarbonisation",Transport Department,Communities & Place,Transport,Transport,Direct Transport Costs,Spare Parts,,15/02/2023,11094191,0,350.4,C,Glenside Commercials Ltd
Schools Total,School Group 2 � Pupil Capacity 144-314,MCC Schools,Ysgol Gymraeg Y Fenni,Supplies & Services,"Equipment, Furniture and Materials",Rental / Hire,,15/02/2023,11094453,80091756,4.69,C,Phs Group
"Facilities, Fleet & Decarbonisation",Home to School Transport Dept,Communities & Place,Home To School Transport,Transport,Direct Transport Costs,Vechicles Repairs and Maintenance,,15/02/2023,11094192,0,465.38,C,Bulwark Bus & Coach Eng. Ltd
"Facilities, Fleet & Decarbonisation",Home to School Transport Dept,Communities & Place,Home To School Transport,Transport,Direct Transport Costs,Vechicles Repairs and Maintenance,,15/02/2023,11094193,0,393.75,C,Bulwark Bus & Coach Eng. Ltd
Schools Total,School Group 7 � Pupil Capacity 501-1800,MCC Schools,Monmouth Comprehensive,Supplies & Services,"Printing, Stationery and General Office Expenses",Photocopying.,,15/02/2023,11094352,80085382,5998.65,C,Ricoh UK Ltd
Countryside & Culture,Countryside,MonLife Directorate,Countryside Access,Third Party Payments,Third Party,General Contracts,,15/02/2023,11093569,10129980,940,C,Woodhouse Engineering
"Facilities, Fleet & Decarbonisation",Transport Department,Communities & Place,Transport,Transport,Direct Transport Costs,Spare Parts,,15/02/2023,11093642,0,98.09,C,Mon & Border Motor Factors Ltd
"Facilities, Fleet & Decarbonisation",Transport Department,Communities & Place,Transport,Transport,Direct Transport Costs,Spare Parts,,15/02/2023,11092936,0,275.05,C,Mon & Border Motor Factors Ltd
"Facilities, Fleet & Decarbonisation",Transport Department,Communities & Place,Transport,Transport,Direct Transport Costs,Spare Parts,,15/02/2023,11094185,0,59.25,C,Mon & Border Motor Factors Ltd
"Facilities, Fleet & Decarbonisation",Transport Department,Communities & Place,Transport,Transport,Direct Transport Costs,Spare Parts,,15/02/2023,11094186,0,226.17,C,Mon & Border Motor Factors Ltd
"Facilities, Fleet & Decarbonisation",Transport Department,Communities & Place,Transport,Transport,Direct Transport Costs,Spare Parts,,15/02/2023,11094187,0,425,C,Mon & Border Motor Factors Ltd
"Facilities, Fleet & Decarbonisation",Transport Department,Communities & Place,Transport,Transport,Direct Transport Costs,Vehicle Collision Damage Costs,,15/02/2023,11093735,0,125,C,Capital Windscreens & Body Glass Ltd
"Facilities, Fleet & Decarbonisation",Transport Department,Communities & Place,Transport,Transport,Contract Hire and Operating Leases,Vehicle Hire Charge,,15/02/2023,11093736,0,560,C,Maben Vehicle Hire
"Enterprise, Housing & Community Animation",Business Growth & Enterprise,Communities & Place,Employment & Skills,Supplies & Services,"Equipment, Furniture and Materials",Rental / Hire,,10/02/2023,11093574,10130031,201.55,C,TICE Seminars LTD T/A The Pacific Institute
Community Care,Community Care Team,Social Care and Health,Chepstow Adult Team,Third Party Payments,Third Party,Personal Care.,,10/02/2023,11093650,0,936.04,C,Abicare Services Ltd
Community Care,Community Care Team,Social Care and Health,Chepstow Adult Team,Third Party Payments,Third Party,Personal Care.,,10/02/2023,11093651,0,1491.03,C,Abicare Services Ltd
Community Care,Community Care Team,Social Care and Health,Chepstow Adult Team,Third Party Payments,Third Party,Personal Care.,,10/02/2023,11093652,0,360.99,C,Abicare Services Ltd
Standards,Early Years,Children & Young People,Expansion of Early Years Grant,Third Party Payments,Third Party,Third party payments NOT relating to goods or services,,10/02/2023,11093571,10130002,7040,C,Llandogo Early Years
Schools Total,School Group 2 � Pupil Capacity 144-314,MCC Schools,Dewstow Primary School,Supplies & Services,"Printing, Stationery and General Office Expenses",Photocopying.,,10/02/2023,11091593,80085604,206.84,C,Solutions In Technology (IT) Ltd
Children Services,Children Services Other,Social Care and Health,External Placements - CLA,Third Party Payments,Third Party,Fostering/Adoption Allowances,,14/02/2023,11092585,10123384,3587.01,C,National Fostering Agency
Children Services,Children Services Other,Social Care and Health,External Placements - CLA,Third Party Payments,Third Party,Fostering/Adoption Allowances,,14/02/2023,11092919,10123820,3276,C,Pathway Care Ltd T/A Calon Cymru
Public Protection,Public Protection,Social Care and Health,Commercial,Supplies & Services,Services,Training Charges,,14/02/2023,11093981,10130063,70,C,Chartered Institute for Environmental Health
Adult Services,Direct Care,Social Care and Health,Care at Home,Supplies & Services,Services,Training Charges,,14/02/2023,11093974,10129842,121.2,C,REDACTED PERSONAL DATA
Adult Services,Direct Care,Social Care and Health,Care at Home,Supplies & Services,Services,Training Charges,,14/02/2023,11093979,10130030,570,C,REDACTED PERSONAL DATA
Neighbourhood Services,Highways,Communities & Place,Overhead - SWTRA / External,Supplies & Services,Services,Training Charges,,14/02/2023,11093970,10129664,1310,C,Heads Of The Valley Training Con
Neighbourhood Services,Highways,Communities & Place,Overhead - SWTRA / External,Supplies & Services,Services,Training Charges,,14/02/2023,11093970,10129664,-115,C,Heads Of The Valley Training Con
Neighbourhood Services,Highways,Communities & Place,Overhead - SWTRA / External,Supplies & Services,Services,Training Charges,,14/02/2023,11093970,10129664,115,C,Heads Of The Valley Training Con
"Policy, Scrutiny & Customer Service",Community Hubs,Chief Executive's Unit,Strategic Management,Supplies & Services,"Printing, Stationery and General Office Expenses",Stationery,,14/02/2023,11093968,10129462,279,C,Zenith Print and Packaging Ltd
Community Care,Community Care Team,Social Care and Health,Chepstow Adult Team,Third Party Payments,Third Party,Personal Care.,,01/02/2023,318638,0,396.4,C,REDACTED PERSONAL DATA
Community Care,Community Care Team,Social Care and Health,Chepstow Adult Team,Third Party Payments,Third Party,Personal Care.,,01/02/2023,318638,0,2500,C,REDACTED PERSONAL DATA
Community Care,Community Care Team,Social Care and Health,Chepstow Adult Team,Third Party Payments,Third Party,Personal Care.,,01/02/2023,318638,0,2957.76,C,REDACTED PERSONAL DATA
Community Care,ADULT DISABILITY SERVICES,Social Care and Health,CLDT,Third Party Payments,Third Party,Personal Care.,,01/02/2023,318638,0,205.36,C,REDACTED PERSONAL DATA
Neighbourhood Services,Highways,Communities & Place,Street Lighting,Third Party Payments,Third Party,Maintenance Contracts,,07/02/2023,11092778,819042,55.26,C,Enerveo Ltd
Neighbourhood Services,Highways,Communities & Place,Street Lighting,Third Party Payments,Third Party,Maintenance Contracts,,07/02/2023,11092784,819042,176.83,C,Enerveo Ltd
Community Care,INTEGRATED CARE FUND,Social Care and Health,Intermediate Care Fund,Employees,Direct Employee Expenses,Agency Staff,,20/02/2023,11091127,10126106,1018.63,C,Piers Meadows Recruitment Limited
Community Care,INTEGRATED CARE FUND,Social Care and Health,Intermediate Care Fund,Employees,Direct Employee Expenses,Agency Staff,,20/02/2023,11091127,10126106,-8,C,Piers Meadows Recruitment Limited
Community Care,INTEGRATED CARE FUND,Social Care and Health,Intermediate Care Fund,Employees,Direct Employee Expenses,Agency Staff,,20/02/2023,11091127,10126106,8,C,Piers Meadows Recruitment Limited
Community Care,INTEGRATED CARE FUND,Social Care and Health,Intermediate Care Fund,Employees,Direct Employee Expenses,Agency Staff,,20/02/2023,11093558,10128776,1534.39,C,Liquid Personnel
Community Care,INTEGRATED CARE FUND,Social Care and Health,Intermediate Care Fund,Employees,Direct Employee Expenses,Agency Staff,,20/02/2023,11093958,10126106,1058.97,C,Piers Meadows Recruitment Limited
Community Care,INTEGRATED CARE FUND,Social Care and Health,Intermediate Care Fund,Employees,Direct Employee Expenses,Agency Staff,,20/02/2023,11093958,10126106,-17,C,Piers Meadows Recruitment Limited
Community Care,INTEGRATED CARE FUND,Social Care and Health,Intermediate Care Fund,Employees,Direct Employee Expenses,Agency Staff,,20/02/2023,11093958,10126106,17,C,Piers Meadows Recruitment Limited
Schools Total,School Group 2 � Pupil Capacity 144-314,MCC Schools,Cross Ash Primary School,Employees,Direct Employee Expenses,Agency Staff,,03/02/2023,11092057,0,57.5,C,New Directions Education Ltd
Schools Total,School Group 2 � Pupil Capacity 144-314,MCC Schools,Cross Ash Primary School,Employees,Direct Employee Expenses,Agency Staff,,03/02/2023,11092058,0,41.82,C,New Directions Education Ltd
Schools Total,School Group 2 � Pupil Capacity 144-314,MCC Schools,Cross Ash Primary School,Employees,Direct Employee Expenses,Agency Staff,,03/02/2023,11092059,0,57.5,C,New Directions Education Ltd
Schools Total,School Group 2 � Pupil Capacity 144-314,MCC Schools,Cross Ash Primary School,Employees,Direct Employee Expenses,Agency Staff,,03/02/2023,11092060,0,57.5,C,New Directions Education Ltd
Schools Total,School Group 2 � Pupil Capacity 144-314,MCC Schools,Cross Ash Primary School,Employees,Direct Employee Expenses,Agency Staff,,03/02/2023,11092061,0,41.82,C,New Directions Education Ltd
Schools Total,School Group 2 � Pupil Capacity 144-314,MCC Schools,Cross Ash Primary School,Employees,Direct Employee Expenses,Agency Staff,,03/02/2023,11092062,0,57.5,C,New Directions Education Ltd
Schools Total,School Group 2 � Pupil Capacity 144-314,MCC Schools,Goytre Fawr Primary School,Employees,Direct Employee Expenses,Agency Staff,,03/02/2023,11092070,0,203.98,C,New Directions Education Ltd
Schools Total,School Group 7 � Pupil Capacity 501-1800,MCC Schools,King Henry VIII Comprehensive,Employees,Direct Employee Expenses,Agency Staff,,03/02/2023,11092071,0,107,C,New Directions Education Ltd
Schools Total,School Group 7 � Pupil Capacity 501-1800,MCC Schools,King Henry VIII Comprehensive,Employees,Direct Employee Expenses,Agency Staff,,03/02/2023,11092072,0,107,C,New Directions Education Ltd
Schools Total,School Group 7 � Pupil Capacity 501-1800,MCC Schools,King Henry VIII Comprehensive,Employees,Direct Employee Expenses,Agency Staff,,03/02/2023,11092073,0,107,C,New Directions Education Ltd
Schools Total,School Group 7 � Pupil Capacity 501-1800,MCC Schools,King Henry VIII Comprehensive,Employees,Direct Employee Expenses,Agency Staff,,03/02/2023,11092074,0,202,C,New Directions Education Ltd
Schools Total,School Group 7 � Pupil Capacity 501-1800,MCC Schools,King Henry VIII Comprehensive,Employees,Direct Employee Expenses,Agency Staff,,03/02/2023,11092075,0,287,C,New Directions Education Ltd
Schools Total,School Group 7 � Pupil Capacity 501-1800,MCC Schools,King Henry VIII Comprehensive,Employees,Direct Employee Expenses,Agency Staff,,03/02/2023,11092076,0,287,C,New Directions Education Ltd
Schools Total,School Group 7 � Pupil Capacity 501-1800,MCC Schools,King Henry VIII Comprehensive,Employees,Direct Employee Expenses,Agency Staff,,03/02/2023,11092077,0,287,C,New Directions Education Ltd
Schools Total,School Group 7 � Pupil Capacity 501-1800,MCC Schools,King Henry VIII Comprehensive,Employees,Direct Employee Expenses,Agency Staff,,03/02/2023,11092078,0,197,C,New Directions Education Ltd
Schools Total,School Group 7 � Pupil Capacity 501-1800,MCC Schools,King Henry VIII Comprehensive,Employees,Direct Employee Expenses,Agency Staff,,03/02/2023,11092079,0,197,C,New Directions Education Ltd
Schools Total,School Group 7 � Pupil Capacity 501-1800,MCC Schools,King Henry VIII Comprehensive,Employees,Direct Employee Expenses,Agency Staff,,03/02/2023,11092080,0,197,C,New Directions Education Ltd
Schools Total,School Group 7 � Pupil Capacity 501-1800,MCC Schools,King Henry VIII Comprehensive,Employees,Direct Employee Expenses,Agency Staff,,03/02/2023,11092081,0,197,C,New Directions Education Ltd
Schools Total,School Group 2 � Pupil Capacity 144-314,MCC Schools,Dewstow Primary School,Employees,Direct Employee Expenses,Agency Staff,,03/02/2023,11092068,0,203.98,C,New Directions Education Ltd
Schools Total,School Group 2 � Pupil Capacity 144-314,MCC Schools,Dewstow Primary School,Employees,Direct Employee Expenses,Agency Staff,,03/02/2023,11092067,0,203.98,C,New Directions Education Ltd
Schools Total,School Group 2 � Pupil Capacity 144-314,MCC Schools,Dewstow Primary School,Employees,Direct Employee Expenses,Agency Staff,,03/02/2023,11092066,0,203.98,C,New Directions Education Ltd
Schools Total,School Group 2 � Pupil Capacity 144-314,MCC Schools,Cross Ash Primary School,Employees,Direct Employee Expenses,Agency Staff,,03/02/2023,11092065,0,41.82,C,New Directions Education Ltd
Schools Total,School Group 2 � Pupil Capacity 144-314,MCC Schools,Cross Ash Primary School,Employees,Direct Employee Expenses,Agency Staff,,03/02/2023,11092064,0,57.5,C,New Directions Education Ltd
Schools Total,School Group 2 � Pupil Capacity 144-314,MCC Schools,Cross Ash Primary School,Employees,Direct Employee Expenses,Agency Staff,,03/02/2023,11092063,0,41.82,C,New Directions Education Ltd
Schools Total,School Group 2 � Pupil Capacity 144-314,MCC Schools,Gilwern Primary School,Employees,Direct Employee Expenses,Agency Staff,,03/02/2023,11092069,0,203.98,C,New Directions Education Ltd
Children Services,Children Services Other,Social Care and Health,External Placements - CLA,Third Party Payments,Third Party,Residential.,,08/02/2023,11092415,10128949,15114.29,C,SICS Gofal Cymru CYF
Children Services,Children Services Other,Social Care and Health,External Placements - CLA,Third Party Payments,Third Party,Residential.,,08/02/2023,11092409,10128318,23427.14,C,SICS Gofal Cymru CYF
Schools Total,School Group 7 � Pupil Capacity 501-1800,MCC Schools,King Henry VIII Comprehensive,Employees,Direct Employee Expenses,Agency Staff,,03/02/2023,11092082,0,118.01,C,New Directions Education Ltd
Schools Total,School Group 7 � Pupil Capacity 501-1800,MCC Schools,King Henry VIII Comprehensive,Employees,Direct Employee Expenses,Agency Staff,,03/02/2023,11092083,0,118.01,C,New Directions Education Ltd
Schools Total,School Group 7 � Pupil Capacity 501-1800,MCC Schools,King Henry VIII Comprehensive,Employees,Direct Employee Expenses,Agency Staff,,03/02/2023,11092084,0,118.01,C,New Directions Education Ltd
Schools Total,School Group 7 � Pupil Capacity 501-1800,MCC Schools,King Henry VIII Comprehensive,Employees,Direct Employee Expenses,Agency Staff,,03/02/2023,11092085,0,118.01,C,New Directions Education Ltd
Schools Total,School Group 7 � Pupil Capacity 501-1800,MCC Schools,King Henry VIII Comprehensive,Employees,Direct Employee Expenses,Agency Staff,,03/02/2023,11092086,0,202,C,New Directions Education Ltd
Schools Total,School Group 7 � Pupil Capacity 501-1800,MCC Schools,King Henry VIII Comprehensive,Employees,Direct Employee Expenses,Agency Staff,,03/02/2023,11092087,0,202,C,New Directions Education Ltd
Schools Total,School Group 7 � Pupil Capacity 501-1800,MCC Schools,King Henry VIII Comprehensive,Employees,Direct Employee Expenses,Agency Staff,,03/02/2023,11092088,0,202,C,New Directions Education Ltd
Schools Total,School Group 7 � Pupil Capacity 501-1800,MCC Schools,King Henry VIII Comprehensive,Employees,Direct Employee Expenses,Agency Staff,,03/02/2023,11092089,0,202,C,New Directions Education Ltd
Schools Total,School Group 7 � Pupil Capacity 501-1800,MCC Schools,King Henry VIII Comprehensive,Employees,Direct Employee Expenses,Agency Staff,,03/02/2023,11092090,0,202,C,New Directions Education Ltd
Schools Total,School Group 2 � Pupil Capacity 144-314,MCC Schools,Llanfoist Fawr Primary School,Employees,Direct Employee Expenses,Agency Staff,,03/02/2023,11092091,0,202.67,C,New Directions Education Ltd
Schools Total,School Group 2 � Pupil Capacity 144-314,MCC Schools,Llanfoist Fawr Primary School,Employees,Direct Employee Expenses,Agency Staff,,03/02/2023,11092092,0,107,C,New Directions Education Ltd
Schools Total,School Group 2 � Pupil Capacity 144-314,MCC Schools,Llanfoist Fawr Primary School,Employees,Direct Employee Expenses,Agency Staff,,03/02/2023,11092093,0,107,C,New Directions Education Ltd
Schools Total,School Group 2 � Pupil Capacity 144-314,MCC Schools,Llanfoist Fawr Primary School,Employees,Direct Employee Expenses,Agency Staff,,03/02/2023,11092094,0,107,C,New Directions Education Ltd
Schools Total,School Group 2 � Pupil Capacity 144-314,MCC Schools,Llanfoist Fawr Primary School,Employees,Direct Employee Expenses,Agency Staff,,03/02/2023,11092095,0,107,C,New Directions Education Ltd
Schools Total,School Group 2 � Pupil Capacity 144-314,MCC Schools,Llanfoist Fawr Primary School,Employees,Direct Employee Expenses,Agency Staff,,03/02/2023,11092096,0,203.98,C,New Directions Education Ltd
Schools Total,School Group 7 � Pupil Capacity 501-1800,MCC Schools,King Henry VIII Comprehensive,Premises,"Repairs, Alterations & Maintenance of Buildings",Building Improvements / Maintenance,,08/02/2023,11092502,90067231,576.96,C,A.J Quinn Building Contractors Ltd
Community Care,Community Care Team,Social Care and Health,Mental Health Care Team,Third Party Payments,Third Party,Personal Care.,,01/02/2023,318638,0,8.8,C,REDACTED PERSONAL DATA
Community Care,Community Care Team,Social Care and Health,Mental Health Care Team,Third Party Payments,Third Party,Personal Care.,,01/02/2023,318638,0,1424,C,REDACTED PERSONAL DATA
Community Care,ADULT DISABILITY SERVICES,Social Care and Health,CLDT,Third Party Payments,Third Party,Personal Care.,,01/02/2023,318638,0,825.68,C,REDACTED PERSONAL DATA
Community Care,ADULT DISABILITY SERVICES,Social Care and Health,CLDT,Third Party Payments,Third Party,Personal Care.,,01/02/2023,318638,0,664.96,C,REDACTED PERSONAL DATA
Community Care,ADULT DISABILITY SERVICES,Social Care and Health,CLDT,Third Party Payments,Third Party,Personal Care.,,01/02/2023,318638,0,151.36,C,REDACTED PERSONAL DATA
Community Care,ADULT DISABILITY SERVICES,Social Care and Health,CLDT,Third Party Payments,Third Party,Personal Care.,,01/02/2023,318638,0,773.48,C,REDACTED PERSONAL DATA
Community Care,ADULT DISABILITY SERVICES,Social Care and Health,CLDT,Third Party Payments,Third Party,Personal Care.,,01/02/2023,318638,0,186.52,C,REDACTED PERSONAL DATA
Community Care,Community Care Team,Social Care and Health,Abergavenny Adult Team,Third Party Payments,Third Party,Personal Care.,,01/02/2023,318638,0,1545.68,C,REDACTED PERSONAL DATA
Community Care,Community Care Team,Social Care and Health,Abergavenny Adult Team,Third Party Payments,Third Party,Personal Care.,,01/02/2023,318638,0,84,C,REDACTED PERSONAL DATA
Community Care,Community Care Team,Social Care and Health,Monmouth Adult Team,Third Party Payments,Third Party,Personal Care.,,01/02/2023,318638,0,108.16,C,REDACTED PERSONAL DATA
Community Care,Community Care Team,Social Care and Health,Monmouth Adult Team,Third Party Payments,Third Party,Personal Care.,,01/02/2023,318638,0,1322.96,C,REDACTED PERSONAL DATA
Community Care,Community Care Team,Social Care and Health,Monmouth Adult Team,Third Party Payments,Third Party,Personal Care.,,01/02/2023,318638,0,2500,C,REDACTED PERSONAL DATA
Schools Total,SCHGRP3 � School Group 3 � Pupil Capacity 315-500,MCC Schools,Overmonnow Primary School,Supplies & Services,"Equipment, Furniture and Materials",Materials & Consumables.,,10/02/2023,11093092,80091247,392.1,C,Cosy
Schools Total,SCHGRP3 � School Group 3 � Pupil Capacity 315-500,MCC Schools,Overmonnow Primary School,Supplies & Services,"Equipment, Furniture and Materials",Materials & Consumables.,,10/02/2023,11093091,80091247,108.99,C,Cosy
Schools Total,School Group 2 � Pupil Capacity 144-314,MCC Schools,Dewstow Primary School,Supplies & Services,"Equipment, Furniture and Materials",Materials & Consumables.,,10/02/2023,11093093,80091259,51.3,C,YPO
Schools Total,School Group 2 � Pupil Capacity 144-314,MCC Schools,Dewstow Primary School,Supplies & Services,"Equipment, Furniture and Materials",Materials & Consumables.,,10/02/2023,11093093,80091259,39.9,C,YPO
Schools Total,School Group 2 � Pupil Capacity 144-314,MCC Schools,Dewstow Primary School,Supplies & Services,"Equipment, Furniture and Materials",Materials & Consumables.,,10/02/2023,11093093,80091259,21.95,C,YPO
Schools Total,School Group 2 � Pupil Capacity 144-314,MCC Schools,Dewstow Primary School,Supplies & Services,"Equipment, Furniture and Materials",Materials & Consumables.,,10/02/2023,11093093,80091259,23.31,C,YPO
Schools Total,School Group 2 � Pupil Capacity 144-314,MCC Schools,Dewstow Primary School,Supplies & Services,"Equipment, Furniture and Materials",Materials & Consumables.,,10/02/2023,11093093,80091259,9.95,C,YPO
Schools Total,School Group 2 � Pupil Capacity 144-314,MCC Schools,Dewstow Primary School,Supplies & Services,"Equipment, Furniture and Materials",Materials & Consumables.,,10/02/2023,11093093,80091259,27.99,C,YPO
Schools Total,SCHGRP3 � School Group 3 � Pupil Capacity 315-500,MCC Schools,Deri View Primary School,Supplies & Services,"Equipment, Furniture and Materials",Materials & Consumables.,,15/02/2023,11094353,80086798,10.79,C,RM Educational Resources Ltd
Schools Total,School Group 2 � Pupil Capacity 144-314,MCC Schools,Cantref Primary School,Supplies & Services,"Equipment, Furniture and Materials",Materials & Consumables.,,14/02/2023,11093999,80091694,35.97,C,Hope Education Ltd
Schools Total,School Group 2 � Pupil Capacity 144-314,MCC Schools,Rogiet Primary School,Supplies & Services,"Equipment, Furniture and Materials",Materials & Consumables.,,07/02/2023,11092774,80091376,43.56,C,ESPO
Schools Total,School Group 2 � Pupil Capacity 144-314,MCC Schools,Rogiet Primary School,Supplies & Services,"Equipment, Furniture and Materials",Materials & Consumables.,,07/02/2023,11092774,80091376,66.95,C,ESPO
Schools Total,School Group 2 � Pupil Capacity 144-314,MCC Schools,Rogiet Primary School,Supplies & Services,"Equipment, Furniture and Materials",Materials & Consumables.,,07/02/2023,11092774,80091376,58.98,C,ESPO
Schools Total,School Group 2 � Pupil Capacity 144-314,MCC Schools,Rogiet Primary School,Supplies & Services,"Equipment, Furniture and Materials",Materials & Consumables.,,07/02/2023,11092774,80091376,6.22,C,ESPO
Schools Total,School Group 2 � Pupil Capacity 144-314,MCC Schools,Rogiet Primary School,Supplies & Services,"Equipment, Furniture and Materials",Materials & Consumables.,,07/02/2023,11092774,80091376,2.67,C,ESPO
Schools Total,School Group 2 � Pupil Capacity 144-314,MCC Schools,Rogiet Primary School,Supplies & Services,"Equipment, Furniture and Materials",Materials & Consumables.,,07/02/2023,11092774,80091376,178.5,C,ESPO
Finance,Systems & Exchequer,Resources,Financial Systems Support and VAT,Supplies & Services,Services,Professional And Specialist Fees,,20/02/2023,11093546,10123181,1450,C,Centurion VAT Specialists All Ltd
"Leisure, Youth & Outdoor Adventure",Leisure Services,MonLife Directorate,Monmouth Leisure Centre,Supplies & Services,Catering,Catering,,08/02/2023,11092392,10122932,312.02,C,Castell Howell Foods Ltd
"Leisure, Youth & Outdoor Adventure",Leisure Services,MonLife Directorate,Monmouth Leisure Centre,Supplies & Services,Catering,Catering,,08/02/2023,11092392,10122932,250.82,C,Castell Howell Foods Ltd
"Leisure, Youth & Outdoor Adventure",Leisure Services,MonLife Directorate,Monmouth Leisure Centre,Supplies & Services,Catering,Catering,,08/02/2023,11092392,10122932,-250.82,C,Castell Howell Foods Ltd
"Leisure, Youth & Outdoor Adventure",Leisure Services,MonLife Directorate,Monmouth Leisure Centre,Supplies & Services,Catering,Catering,,08/02/2023,11092393,10122932,20.2,C,Castell Howell Foods Ltd
Schools Total,School Group 7 � Pupil Capacity 501-1800,MCC Schools,King Henry VIII Comprehensive,Supplies & Services,"Equipment, Furniture and Materials",Equipment Purchases,,14/02/2023,11091091,80091294,46.56,C,The Dyslexia Shop Ltd
Schools Total,School Group 2 � Pupil Capacity 144-314,MCC Schools,Llanfoist Fawr Primary School,Supplies & Services,"Equipment, Furniture and Materials",Equipment Purchases,,14/02/2023,11094216,80091596,66,C,Eureka 1st Aid & Safety for Schools
"Policy, Scrutiny & Customer Service",Community Hubs,Chief Executive's Unit,Community Hub - Monmouth,Supplies & Services,Services,Professional And Specialist Fees,,14/02/2023,11094232,10130090,60,C,Shield Security
"Policy, Scrutiny & Customer Service",Community Hubs,Chief Executive's Unit,Community Hub - Monmouth,Supplies & Services,Services,Professional And Specialist Fees,,14/02/2023,11094233,10130093,150,C,Shield Security
"Policy, Scrutiny & Customer Service",Community Hubs,Chief Executive's Unit,Community Hub - Monmouth,Supplies & Services,Services,Professional And Specialist Fees,,14/02/2023,11094243,10130089,30,C,Shield Security
"Policy, Scrutiny & Customer Service",Community Hubs,Chief Executive's Unit,Prison Libraries,Supplies & Services,"Printing, Stationery and General Office Expenses",Book Purchases,,15/02/2023,11092992,0,306.38,C,Askews & Holts Library Services Ltd
Capital Division,Capital Dept,Capital,Capital Programme,Supplies & Services,Services,Professional And Specialist Fees,,16/02/2023,11092961,10129034,710,C,WSP (Real Estate & Infrastructure) Ltd
"Policy, Scrutiny & Customer Service",Community Hubs,Chief Executive's Unit,Strategic Management,Supplies & Services,"Printing, Stationery and General Office Expenses",Book Purchases,,15/02/2023,11092992,0,417.36,C,Askews & Holts Library Services Ltd
"Policy, Scrutiny & Customer Service",Community Hubs,Chief Executive's Unit,Strategic Management,Supplies & Services,"Printing, Stationery and General Office Expenses",Book Purchases,,15/02/2023,11092992,0,157.13,C,Askews & Holts Library Services Ltd
Schools Total,School Group 2 � Pupil Capacity 144-314,MCC Schools,Cantref Primary School,Supplies & Services,"Equipment, Furniture and Materials",Materials & Consumables.,,15/02/2023,11094212,80091697,62.96,C,Hope Education Ltd
"Facilities, Fleet & Decarbonisation",Transport Department,Communities & Place,Transport,Transport,Direct Transport Costs,All Other Non-Contract Transport Work.,,15/02/2023,11093296,0,1448.81,C,NTM - GB Limited
Schools Total,SCHGRP3 � School Group 3 � Pupil Capacity 315-500,MCC Schools,Deri View Primary School,Supplies & Services,"Equipment, Furniture and Materials",Materials & Consumables.,,15/02/2023,11086725,80087309,2.94,C,RM Educational Resources Ltd
"Enterprise, Housing & Community Animation",Business Growth & Enterprise,Communities & Place,Sustainable Food Development,Supplies & Services,Services,Professional And Specialist Fees,,27/02/2023,11099352,10130447,6900,C,Monmouthshire Housing Association Ltd
"Leisure, Youth & Outdoor Adventure",Leisure Services,MonLife Directorate,Monmouth Fitness,Supplies & Services,Communications and Computing,Licences,,27/02/2023,11099353,10130454,336.67,C,GMS Music
Neighbourhood Services,Highways,Communities & Place,External Contracts,Supplies & Services,Services,Professional And Specialist Fees,,23/02/2023,11099028,819553,4875,C,Quantum Traffic Management
Neighbourhood Services,Highways,Communities & Place,Overhead - SWTRA / External,Transport,Contract Hire and Operating Leases,Plant Hire Charge,,15/02/2023,11094400,10128712,704,C,Chepstow Construction Equipment Ltd
Schools Total,School Group 7 � Pupil Capacity 501-1800,MCC Schools,King Henry VIII Comprehensive,Supplies & Services,"Equipment, Furniture and Materials",Equipment Purchases,,15/02/2023,11093168,80088287,26,C,UKMT
Schools Total,School Group 7 � Pupil Capacity 501-1800,MCC Schools,King Henry VIII Comprehensive,Supplies & Services,"Equipment, Furniture and Materials",Equipment Purchases,,15/02/2023,11093183,80091499,7.48,C,Amazon Payments UK Limited
"Commercial, Corporate & landlord Services",Asset Management,Resources,Commercialisation of Assets,Supplies & Services,Services,Professional And Specialist Fees,,15/02/2023,11093136,0,42706.8,C,Alder King LLP
"Policy, Scrutiny & Customer Service",Community Hubs,Chief Executive's Unit,Prison Libraries,Supplies & Services,"Printing, Stationery and General Office Expenses",Book Purchases,,15/02/2023,11092992,0,264.96,C,Askews & Holts Library Services Ltd
Schools Total,SCHGRP3 � School Group 3 � Pupil Capacity 315-500,MCC Schools,Undy Primary School,Supplies & Services,"Equipment, Furniture and Materials",Materials & Consumables.,,14/02/2023,11093274,80091592,60,C,Hope Education Ltd
Schools Total,SCHGRP3 � School Group 3 � Pupil Capacity 315-500,MCC Schools,Undy Primary School,Supplies & Services,"Equipment, Furniture and Materials",Materials & Consumables.,,14/02/2023,11093274,80091592,79.6,C,Hope Education Ltd
Schools Total,SCHGRP3 � School Group 3 � Pupil Capacity 315-500,MCC Schools,Undy Primary School,Supplies & Services,"Equipment, Furniture and Materials",Materials & Consumables.,,14/02/2023,11093274,80091592,3.49,C,Hope Education Ltd
Schools Total,SCHGRP3 � School Group 3 � Pupil Capacity 315-500,MCC Schools,Undy Primary School,Supplies & Services,"Equipment, Furniture and Materials",Materials & Consumables.,,14/02/2023,11093274,80091592,187.99,C,Hope Education Ltd
Schools Total,SCHGRP3 � School Group 3 � Pupil Capacity 315-500,MCC Schools,Undy Primary School,Supplies & Services,"Equipment, Furniture and Materials",Materials & Consumables.,,14/02/2023,11093274,80091592,7.99,C,Hope Education Ltd
Schools Total,SCHGRP3 � School Group 3 � Pupil Capacity 315-500,MCC Schools,The Dell Primary School,Supplies & Services,"Equipment, Furniture and Materials",Materials & Consumables.,,14/02/2023,11093255,80086059,2.68,C,RM Educational Resources Ltd
"Policy, Scrutiny & Customer Service",Community Hubs,Chief Executive's Unit,Strategic Management,Supplies & Services,"Printing, Stationery and General Office Expenses",Publications,,14/02/2023,11091945,10129210,2094.04,C,JCS Online resources.org
Schools Total,School Group 7 � Pupil Capacity 501-1800,MCC Schools,King Henry VIII Comprehensive,Supplies & Services,Communications and Computing,Computer Consumables,,14/02/2023,11093280,80091608,173.1,C,Cpc Plc
"Facilities, Fleet & Decarbonisation",Transport Planning,Communities & Place,Public Transport Subsidy Grant,Transport,Public Transport,Bus Subsidies,,07/02/2023,11085357,0,1129.3,C,Varteg Motors Ltd
"Placemaking, Highways & Flooding",Planning Policy,Communities & Place,Planning Policy,Supplies & Services,Services,Professional And Specialist Fees,,07/02/2023,11071445,10126228,10153.75,C,BE Group
Capital Division,Capital Dept,Capital,Capital Programme,Supplies & Services,Services,Professional And Specialist Fees,,07/02/2023,11075116,10124638,6805.78,C,Swarco UK & Ireland Ltd
Community Care,Community Care Team,Social Care and Health,Chepstow Adult Team,Supplies & Services,Communications and Computing,IT Hardware,,07/02/2023,11083997,10129028,20,C,SRS Public
"Placemaking, Highways & Flooding",Highways Dev & Car Parks,Communities & Place,Traffic & Road Safety,Supplies & Services,Services,Professional And Specialist Fees,,07/02/2023,11092866,819570,900,C,REDACTED PERSONAL DATA
Capital Division,Capital Dept,Capital,Capital Programme,Supplies & Services,Services,Professional And Specialist Fees,,07/02/2023,11089106,10124638,270,C,Swarco UK & Ireland Ltd
Schools Total,School Group 2 � Pupil Capacity 144-314,MCC Schools,Llanfoist Fawr Primary School,Supplies & Services,"Equipment, Furniture and Materials",Equipment Purchases,,07/02/2023,11092981,80091427,3.14,C,ESPO
Schools Total,School Group 2 � Pupil Capacity 144-314,MCC Schools,Llanfoist Fawr Primary School,Supplies & Services,"Equipment, Furniture and Materials",Equipment Purchases,,07/02/2023,11092981,80091427,59.9,C,ESPO
Schools Total,School Group 2 � Pupil Capacity 144-314,MCC Schools,Dewstow Primary School,Supplies & Services,"Equipment, Furniture and Materials",Materials & Consumables.,,07/02/2023,11091301,80091259,37.4,C,YPO
Schools Total,School Group 2 � Pupil Capacity 144-314,MCC Schools,Dewstow Primary School,Supplies & Services,"Equipment, Furniture and Materials",Materials & Consumables.,,07/02/2023,11091301,80091259,34.45,C,YPO
Schools Total,School Group 2 � Pupil Capacity 144-314,MCC Schools,Dewstow Primary School,Supplies & Services,"Equipment, Furniture and Materials",Materials & Consumables.,,07/02/2023,11091301,80091259,34.45,C,YPO
Schools Total,School Group 2 � Pupil Capacity 144-314,MCC Schools,Dewstow Primary School,Supplies & Services,"Equipment, Furniture and Materials",Materials & Consumables.,,07/02/2023,11091301,80091259,26.5,C,YPO
Schools Total,School Group 2 � Pupil Capacity 144-314,MCC Schools,Dewstow Primary School,Supplies & Services,"Equipment, Furniture and Materials",Materials & Consumables.,,07/02/2023,11091301,80091259,17.98,C,YPO
Schools Total,School Group 2 � Pupil Capacity 144-314,MCC Schools,Dewstow Primary School,Supplies & Services,"Equipment, Furniture and Materials",Materials & Consumables.,,07/02/2023,11091301,80091259,23.94,C,YPO
Schools Total,School Group 2 � Pupil Capacity 144-314,MCC Schools,Dewstow Primary School,Supplies & Services,"Equipment, Furniture and Materials",Materials & Consumables.,,07/02/2023,11091301,80091259,29.98,C,YPO
Schools Total,School Group 2 � Pupil Capacity 144-314,MCC Schools,Dewstow Primary School,Supplies & Services,"Equipment, Furniture and Materials",Materials & Consumables.,,07/02/2023,11091301,80091259,16.25,C,YPO
Schools Total,School Group 2 � Pupil Capacity 144-314,MCC Schools,Thornwell Primary School,Supplies & Services,"Equipment, Furniture and Materials",Materials & Consumables.,,07/02/2023,11091160,80090760,48.77,C,Wye Valley Country Store
Schools Total,School Group 2 � Pupil Capacity 144-314,MCC Schools,Thornwell Primary School,Supplies & Services,"Equipment, Furniture and Materials",Materials & Consumables.,,07/02/2023,11091160,80090760,37.47,C,Wye Valley Country Store
Schools Total,School Group 2 � Pupil Capacity 144-314,MCC Schools,Thornwell Primary School,Supplies & Services,"Equipment, Furniture and Materials",Materials & Consumables.,,07/02/2023,11091160,80090760,32.36,C,Wye Valley Country Store
Community Care,Community Care Team,Social Care and Health,Chepstow Adult Team,Third Party Payments,Third Party,Personal Care.,,01/02/2023,318638,0,1450.64,C,REDACTED PERSONAL DATA
Schools Total,School Group 2 � Pupil Capacity 144-314,MCC Schools,Usk CiW Primary School (VC),Supplies & Services,"Printing, Stationery and General Office Expenses",Stationery,,14/02/2023,11093988,80091022,32.16,C,RM Educational Resources Ltd
Children Services,Children Services Other,Social Care and Health,External Placements - CLA,Third Party Payments,Third Party,Fostering/Adoption Allowances,,14/02/2023,11092920,10123819,3136,C,Pathway Care Ltd T/A Calon Cymru
Children Services,Children Services Other,Social Care and Health,External Placements - CLA,Third Party Payments,Third Party,Fostering/Adoption Allowances,,14/02/2023,11092922,10127844,5839.96,C,Pathway Care Ltd T/A Calon Cymru
Schools Total,School Group 2 � Pupil Capacity 144-314,MCC Schools,Cross Ash Primary School,Premises,Cleaning and Domestic Supplies,Contract Cleaning - Premises (Direct),,14/02/2023,11092976,80085738,3106.27,C,Compelling Cleans Ltd
Schools Total,School Group 7 � Pupil Capacity 501-1800,MCC Schools,Caldicot School,Premises,Cleaning and Domestic Supplies,Contract Cleaning - Premises (Direct),,14/02/2023,11093983,80085077,127.54,C,Churchill Service Solutions
Children Services,Children Services Other,Social Care and Health,External Placements - CLA,Third Party Payments,Third Party,Fostering/Adoption Allowances,,14/02/2023,11093001,10122962,2978.09,C,Pathway Care Ltd T/A Calon Cymru
Children Services,Children Services Other,Social Care and Health,External Placements - CLA,Third Party Payments,Third Party,Fostering/Adoption Allowances,,14/02/2023,11093204,10123372,163.8,C,National Fostering Agency
Schools Total,SCHGRP3 � School Group 3 � Pupil Capacity 315-500,MCC Schools,Magor CiW Primary School (VA),Supplies & Services,"Printing, Stationery and General Office Expenses",Photocopying.,,14/02/2023,11094210,80091685,124.71,C,Sharp Business Systems UK plc
Schools Total,SCHGRP3 � School Group 3 � Pupil Capacity 315-500,MCC Schools,Undy Primary School,Supplies & Services,Services,Residential Trips,,14/02/2023,11094075,80091709,130,C,Animals Interactive
Children Services,Children Services Teams,Social Care and Health,Disabled Children,Supplies & Services,Services,Direct Work with Young People,,14/02/2023,11094091,0,2301.1,C,REDACTED PERSONAL DATA
Children Services,Children Services Teams,Social Care and Health,Disabled Children,Supplies & Services,Services,Direct Work with Young People,,14/02/2023,11094092,0,3589.03,C,REDACTED PERSONAL DATA
Schools Total,School Group 2 � Pupil Capacity 144-314,MCC Schools,Llanfoist Fawr Primary School,Transport,Contract Hire and Operating Leases,Vehicle Hire Charge,,14/02/2023,11094197,80091717,520,C,REDACTED PERSONAL DATA
Schools Total,School Group 7 � Pupil Capacity 501-1800,MCC Schools,Monmouth Comprehensive,Supplies & Services,"Printing, Stationery and General Office Expenses",Stationery,,07/02/2023,11092766,80091517,4.4,C,Hope Education Ltd
Community Care,Community Care Team,Social Care and Health,Chepstow Adult Team,Third Party Payments,Third Party,Personal Care.,,01/02/2023,318638,0,195,C,REDACTED PERSONAL DATA
Community Care,Community Care Team,Social Care and Health,Monmouth Adult Team,Third Party Payments,Third Party,Domestic Care,,01/02/2023,318638,0,456.2,C,REDACTED PERSONAL DATA
Community Care,Community Care Team,Social Care and Health,Chepstow Adult Team,Third Party Payments,Third Party,Personal Care.,,01/02/2023,318638,0,1237.56,C,REDACTED PERSONAL DATA
Community Care,Community Care Team,Social Care and Health,Chepstow Adult Team,Third Party Payments,Third Party,Personal Care.,,01/02/2023,318638,0,707.84,C,REDACTED PERSONAL DATA
Schools Total,School Group 7 � Pupil Capacity 501-1800,MCC Schools,Monmouth Comprehensive,Supplies & Services,"Printing, Stationery and General Office Expenses",Stationery,,07/02/2023,11092773,80091366,1140,C,Stretch Development Ltd
Schools Total,School Group 2 � Pupil Capacity 144-314,MCC Schools,Llanfoist Fawr Primary School,Premises,Cleaning and Domestic Supplies,Toilet Requisites,,07/02/2023,11092787,80090962,588.75,C,Newhall Janitorial Ltd
Schools Total,School Group 2 � Pupil Capacity 144-314,MCC Schools,Llanfoist Fawr Primary School,Premises,Cleaning and Domestic Supplies,Toilet Requisites,,07/02/2023,11092787,80090962,54.75,C,Newhall Janitorial Ltd
Schools Total,School Group 2 � Pupil Capacity 144-314,MCC Schools,Llanfoist Fawr Primary School,Premises,Cleaning and Domestic Supplies,Toilet Requisites,,07/02/2023,11092787,80090962,82.55,C,Newhall Janitorial Ltd
Schools Total,School Group 2 � Pupil Capacity 144-314,MCC Schools,Llanfoist Fawr Primary School,Premises,Cleaning and Domestic Supplies,Toilet Requisites,,07/02/2023,11092787,80090962,20.76,C,Newhall Janitorial Ltd
Schools Total,School Group 1 � Pupil Capacity 1-143,MCC Schools,Ysgol Gymraeg Y Ffin,Supplies & Services,"Equipment, Furniture and Materials",Rental / Hire,,07/02/2023,11092777,80091411,591.5,C,Javen Products Ltd
Community Care,Community Care Team,Social Care and Health,GWICES,Third Party Payments,Third Party,Third party payments NOT relating to goods or services,,20/02/2023,11094061,0,73736,C,Torfaen County Borough Council
Standards,Early Years,Children & Young People,Flying Start Grant,Supplies & Services,Services,Child Minding Fees,,08/02/2023,11092423,10129770,322,C,Mathern Day Nursery (Childcare Services) Ltd
Children Services,Children Services Other,Social Care and Health,External Placements - CLA,Third Party Payments,Third Party,Fostering/Adoption Allowances,,08/02/2023,11092606,10122988,5849.39,C,Compass Fostering West Limited
"Facilities, Fleet & Decarbonisation",Home to School Transport Dept,Communities & Place,Home To School Transport,Transport,Direct Transport Costs,Vechicles Repairs and Maintenance,,08/02/2023,11092583,0,3431,C,Innovative Safety Systems Limited
Community Care,Community Care Team,Social Care and Health,Chepstow Adult Team,Third Party Payments,Third Party,Personal Care.,,01/02/2023,318638,0,687.6,C,REDACTED PERSONAL DATA
Community Care,Community Care Team,Social Care and Health,Chepstow Adult Team,Third Party Payments,Third Party,Personal Care.,,01/02/2023,318638,0,2500,C,REDACTED PERSONAL DATA
Neighbourhood Services,Waste and Street Services,Communities & Place,Refuse & Cleansing Operations,Third Party Payments,Third Party,General Contracts,,20/02/2023,11096547,10123516,7960.67,C,Cardiff City Council
Finance & Business Devlopment,Attractions,MonLife Directorate,Shirehall,Supplies & Services,"Equipment, Furniture and Materials",Equipment Purchases,,20/02/2023,11097815,10129978,259.32,C,G4S Fire and Security Systems (UK)
Schools Total,School Group 7 � Pupil Capacity 501-1800,MCC Schools,Caldicot School,Employees,Indirect Employee Expenses,"Course, Conference And Seminar Fees",,07/02/2023,11092770,80091536,840,C,Positive Behaviour Team Ltd.
"Commercial, Corporate & landlord Services",Property Services & Facilities Management,Resources,Reactive Maintenance,Premises,"Repairs, Alterations & Maintenance of Buildings",Building Improvements / Maintenance,,08/02/2023,11092386,90067090,219.89,C,A.J Quinn Building Contractors Ltd
"Facilities, Fleet & Decarbonisation",Catering Services,Communities & Place,Schools Catering,Supplies & Services,"Equipment, Furniture and Materials",Materials & Consumables.,,08/02/2023,11092286,10122779,138.78,C,Newhall Janitorial Ltd
Schools Total,School Group 7 � Pupil Capacity 501-1800,MCC Schools,Chepstow School,Employees,Direct Employee Expenses,Agency Staff,,03/02/2023,11092056,0,202,C,New Directions Education Ltd
Schools Total,School Group 7 � Pupil Capacity 501-1800,MCC Schools,Caldicot School,Employees,Direct Employee Expenses,Agency Staff,,03/02/2023,11092050,0,226.5,C,New Directions Education Ltd
Schools Total,School Group 7 � Pupil Capacity 501-1800,MCC Schools,Caldicot School,Employees,Direct Employee Expenses,Agency Staff,,03/02/2023,11092051,0,226.5,C,New Directions Education Ltd
Schools Total,School Group 7 � Pupil Capacity 501-1800,MCC Schools,Caldicot School,Employees,Direct Employee Expenses,Agency Staff,,03/02/2023,11092052,0,202,C,New Directions Education Ltd
Schools Total,School Group 7 � Pupil Capacity 501-1800,MCC Schools,Caldicot School,Employees,Direct Employee Expenses,Agency Staff,,03/02/2023,11092053,0,202,C,New Directions Education Ltd
Schools Total,School Group 7 � Pupil Capacity 501-1800,MCC Schools,Caldicot School,Employees,Direct Employee Expenses,Agency Staff,,03/02/2023,11092054,0,202,C,New Directions Education Ltd
Schools Total,School Group 7 � Pupil Capacity 501-1800,MCC Schools,Caldicot School,Employees,Direct Employee Expenses,Agency Staff,,03/02/2023,11092055,0,202,C,New Directions Education Ltd
Schools Total,School Group 7 � Pupil Capacity 501-1800,MCC Schools,Caldicot School,Employees,Direct Employee Expenses,Agency Staff,,03/02/2023,11092043,0,202,C,New Directions Education Ltd
Schools Total,School Group 7 � Pupil Capacity 501-1800,MCC Schools,Caldicot School,Employees,Direct Employee Expenses,Agency Staff,,03/02/2023,11092044,0,202,C,New Directions Education Ltd
Schools Total,School Group 7 � Pupil Capacity 501-1800,MCC Schools,Caldicot School,Employees,Direct Employee Expenses,Agency Staff,,03/02/2023,11092045,0,202,C,New Directions Education Ltd
Schools Total,School Group 7 � Pupil Capacity 501-1800,MCC Schools,Caldicot School,Employees,Direct Employee Expenses,Agency Staff,,03/02/2023,11092046,0,115.02,C,New Directions Education Ltd
Schools Total,School Group 7 � Pupil Capacity 501-1800,MCC Schools,Caldicot School,Employees,Direct Employee Expenses,Agency Staff,,03/02/2023,11092047,0,226.5,C,New Directions Education Ltd
Schools Total,School Group 7 � Pupil Capacity 501-1800,MCC Schools,Caldicot School,Employees,Direct Employee Expenses,Agency Staff,,03/02/2023,11092048,0,226.5,C,New Directions Education Ltd
Schools Total,School Group 7 � Pupil Capacity 501-1800,MCC Schools,Caldicot School,Employees,Direct Employee Expenses,Agency Staff,,03/02/2023,11092049,0,226.5,C,New Directions Education Ltd
"Commercial, Corporate & landlord Services",Property Services & Facilities Management,Resources,Reactive Maintenance,Premises,"Repairs, Alterations & Maintenance of Buildings",Building Improvements / Maintenance,,08/02/2023,11092493,90067210,236.98,C,A.J Quinn Building Contractors Ltd
"Commercial, Corporate & landlord Services",Property Services & Facilities Management,Resources,Reactive Maintenance,Premises,"Repairs, Alterations & Maintenance of Buildings",Building Improvements / Maintenance,,08/02/2023,11092507,90067299,209.69,C,A.J Quinn Building Contractors Ltd
Adult Services,Direct Care,Social Care and Health,Monmouthshire Meals,Supplies & Services,"Equipment, Furniture and Materials",Provisions.,,08/02/2023,11092600,10122704,2466.72,C,Apetito Ltd
"Facilities, Fleet & Decarbonisation",Catering Services,Communities & Place,Schools Catering,Supplies & Services,"Equipment, Furniture and Materials",Materials & Consumables.,,08/02/2023,11092605,10122779,169.26,C,Newhall Janitorial Ltd
Schools Total,School Group 2 � Pupil Capacity 144-314,MCC Schools,Llantilio Pertholey CiW Primary School (VC),Supplies & Services,"Equipment, Furniture and Materials",Materials & Consumables.,,15/02/2023,11093077,80085089,74.99,C,Amazon Payments UK Limited
Schools Total,School Group 2 � Pupil Capacity 144-314,MCC Schools,Llantilio Pertholey CiW Primary School (VC),Supplies & Services,"Equipment, Furniture and Materials",Materials & Consumables.,,15/02/2023,11093079,80085089,149.31,C,Amazon Payments UK Limited
"Commercial, Corporate & landlord Services",Property Services & Facilities Management,Resources,Reactive Maintenance,Premises,"Repairs, Alterations & Maintenance of Buildings",Building Improvements / Maintenance,,15/02/2023,11092532,90066638,34.5,C,A.J Quinn Building Contractors Ltd
"Facilities, Fleet & Decarbonisation",Property Services -  Cleaning,Communities & Place,Building Cleaning,Supplies & Services,"Equipment, Furniture and Materials",Cleaning Materials.,,15/02/2023,11085918,10122842,128.44,C,Newhall Janitorial Ltd
"Facilities, Fleet & Decarbonisation",Property Services -  Cleaning,Communities & Place,Building Cleaning,Supplies & Services,"Equipment, Furniture and Materials",Cleaning Materials.,,15/02/2023,11087323,10122842,28,C,Newhall Janitorial Ltd
"Facilities, Fleet & Decarbonisation",Property Services -  Cleaning,Communities & Place,Building Cleaning,Supplies & Services,"Equipment, Furniture and Materials",Cleaning Materials.,,15/02/2023,11088275,10122842,457.6,C,Newhall Janitorial Ltd
"Facilities, Fleet & Decarbonisation",Property Services -  Cleaning,Communities & Place,Building Cleaning,Supplies & Services,"Equipment, Furniture and Materials",Cleaning Materials.,,15/02/2023,11088276,10122842,48.84,C,Newhall Janitorial Ltd
"Facilities, Fleet & Decarbonisation",Property Services -  Cleaning,Communities & Place,Building Cleaning,Supplies & Services,"Equipment, Furniture and Materials",Cleaning Materials.,,15/02/2023,11088277,10122842,231.12,C,Newhall Janitorial Ltd
"Facilities, Fleet & Decarbonisation",Property Services -  Cleaning,Communities & Place,Building Cleaning,Supplies & Services,"Equipment, Furniture and Materials",Cleaning Materials.,,15/02/2023,11089018,10122842,42.24,C,Newhall Janitorial Ltd
"Commercial, Corporate & landlord Services",Property Services & Facilities Management,Resources,Programmed Maintenance,Premises,"Repairs, Alterations & Maintenance of Buildings",Premises Repairs And Maintenance,,27/02/2023,11099306,90066044,147.46,C,Fire Safety Direct
Children Services,Children Services Other,Social Care and Health,Counsel Costs,Supplies & Services,Services,Professional And Specialist Fees,,27/02/2023,11099355,10130489,2266.03,C,Independent Children Services (South Wales) Ltd
"Enterprise, Housing & Community Animation",General Fund Housing,Communities & Place,Homelessness,Premises,"Repairs, Alterations & Maintenance of Buildings",Security Of Premises.,,15/02/2023,11092950,10123260,5544,C,M J Events Support Ltd
Community Care,Community Care Team,Social Care and Health,Monmouth Adult Team,Third Party Payments,Third Party,Personal Care.,,01/02/2023,318638,0,1591.68,C,REDACTED PERSONAL DATA
Community Care,Community Care Team,Social Care and Health,Monmouth Adult Team,Third Party Payments,Third Party,Personal Care.,,01/02/2023,318638,0,2500,C,REDACTED PERSONAL DATA
Community Care,Community Care Team,Social Care and Health,Monmouth Adult Team,Third Party Payments,Third Party,Personal Care.,,01/02/2023,318638,0,672,C,REDACTED PERSONAL DATA
"Enterprise, Housing & Community Animation",General Fund Housing,Communities & Place,Lodgings Scheme,Premises,"Repairs, Alterations & Maintenance of Buildings",Building Improvements / Maintenance,,20/02/2023,11097824,10123238,61,C,REDACTED PERSONAL DATA
"Enterprise, Housing & Community Animation",General Fund Housing,Communities & Place,Lodgings Scheme,Premises,"Repairs, Alterations & Maintenance of Buildings",Building Improvements / Maintenance,,20/02/2023,11097825,10123238,50,C,REDACTED PERSONAL DATA
Schools Total,SCHGRP3 � School Group 3 � Pupil Capacity 315-500,MCC Schools,Magor CiW Primary School (VA),Employees,Direct Employee Expenses,Agency Staff,,14/02/2023,11094211,80091686,860.48,C,TeacherActive
"Commercial, Corporate & landlord Services",Property Services & Facilities Management,Resources,Gwent Police Collaboration,Premises,"Repairs, Alterations & Maintenance of Buildings",Building Improvements / Maintenance,,14/02/2023,11093219,760019173,55.06,C,Lorne Stewart  Plc
"Commercial, Corporate & landlord Services",Property Services & Facilities Management,Resources,Gwent Police Collaboration,Premises,"Repairs, Alterations & Maintenance of Buildings",Building Improvements / Maintenance,,14/02/2023,11093220,760019174,82.59,C,Lorne Stewart  Plc
"Commercial, Corporate & landlord Services",Property Services & Facilities Management,Resources,Gwent Police Collaboration,Premises,"Repairs, Alterations & Maintenance of Buildings",Building Improvements / Maintenance,,14/02/2023,11093221,760019207,94.03,C,Lorne Stewart  Plc
"Commercial, Corporate & landlord Services",Property Services & Facilities Management,Resources,Gwent Police Collaboration,Premises,"Repairs, Alterations & Maintenance of Buildings",Building Improvements / Maintenance,,14/02/2023,11093222,760019208,243.11,C,Lorne Stewart  Plc
"Commercial, Corporate & landlord Services",Property Services & Facilities Management,Resources,Gwent Police Collaboration,Premises,"Repairs, Alterations & Maintenance of Buildings",Building Improvements / Maintenance,,14/02/2023,11093232,760019555,129.6,C,Lorne Stewart  Plc
"Commercial, Corporate & landlord Services",Property Services & Facilities Management,Resources,Gwent Police Collaboration,Premises,"Repairs, Alterations & Maintenance of Buildings",Building Improvements / Maintenance,,14/02/2023,11093234,760020203,1059.19,C,Lorne Stewart  Plc
"Commercial, Corporate & landlord Services",Property Services & Facilities Management,Resources,Gwent Police Collaboration,Premises,"Repairs, Alterations & Maintenance of Buildings",Building Improvements / Maintenance,,14/02/2023,11093235,760020229,211.33,C,Lorne Stewart  Plc
"Commercial, Corporate & landlord Services",Property Services & Facilities Management,Resources,Gwent Police Collaboration,Premises,"Repairs, Alterations & Maintenance of Buildings",Building Improvements / Maintenance,,14/02/2023,11093236,760020240,225.09,C,Lorne Stewart  Plc
"Commercial, Corporate & landlord Services",Property Services & Facilities Management,Resources,Gwent Police Collaboration,Premises,"Repairs, Alterations & Maintenance of Buildings",Building Improvements / Maintenance,,14/02/2023,11093240,760020279,73.68,C,Lorne Stewart  Plc
Schools Total,School Group 7 � Pupil Capacity 501-1800,MCC Schools,Caldicot School,Premises,"Repairs, Alterations & Maintenance of Buildings",Building Improvements / Maintenance,,15/02/2023,11092533,90066644,98.45,C,A.J Quinn Building Contractors Ltd
Schools Total,School Group 2 � Pupil Capacity 144-314,MCC Schools,Usk CiW Primary School (VC),Supplies & Services,"Equipment, Furniture and Materials",Furniture Purchases / Replacement,,15/02/2023,11094218,80091617,54,C,ESPO
Community Care,Community Care Team,Social Care and Health,Abergavenny Adult Team,Third Party Payments,Third Party,Personal Care.,,15/02/2023,11094293,0,2379.86,C,Allied Healthcare Services Limited
Community Care,INTEGRATED CARE FUND,Social Care and Health,Intermediate Care Fund,Employees,Direct Employee Expenses,Agency Staff,,27/02/2023,11099329,10126106,1063.79,C,Piers Meadows Recruitment Limited
Community Care,Community Care Team,Social Care and Health,Abergavenny Adult Team,Third Party Payments,Third Party,Personal Care.,,27/02/2023,11099315,0,2696.92,C,Allied Healthcare Services Limited
Community Care,Community Care Team,Social Care and Health,Abergavenny Adult Team,Third Party Payments,Third Party,Personal Care.,,27/02/2023,11099317,0,340.2,C,Q Care Ltd
Community Care,Community Care Team,Social Care and Health,Abergavenny Adult Team,Third Party Payments,Third Party,Personal Care.,,27/02/2023,11099390,0,2106.14,C,Bluebird Care Pontypool and Ebbw Vale (Harris Health LTD)
Community Care,Community Care Team,Social Care and Health,Abergavenny Adult Team,Third Party Payments,Third Party,Personal Care.,,27/02/2023,11099393,0,2012.18,C,Bluebird Care Pontypool and Ebbw Vale (Harris Health LTD)
Community Care,Community Care Team,Social Care and Health,Abergavenny Adult Team,Third Party Payments,Third Party,Personal Care.,,27/02/2023,11099394,0,1457.93,C,Bluebird Care Pontypool and Ebbw Vale (Harris Health LTD)
Community Care,Community Care Team,Social Care and Health,Abergavenny Adult Team,Third Party Payments,Third Party,Personal Care.,,27/02/2023,11099397,0,647.9,C,Bluebird Care Pontypool and Ebbw Vale (Harris Health LTD)
Community Care,Community Care Team,Social Care and Health,Monmouth Adult Team,Third Party Payments,Third Party,Personal Care.,,27/02/2023,11099389,0,1212.33,C,Bluebird Care Pontypool and Ebbw Vale (Harris Health LTD)
Community Care,Community Care Team,Social Care and Health,Monmouth Adult Team,Third Party Payments,Third Party,Personal Care.,,27/02/2023,11099391,0,470.4,C,Bluebird Care Pontypool and Ebbw Vale (Harris Health LTD)
Community Care,Community Care Team,Social Care and Health,Monmouth Adult Team,Third Party Payments,Third Party,Personal Care.,,27/02/2023,11099392,0,454.72,C,Bluebird Care Pontypool and Ebbw Vale (Harris Health LTD)
Community Care,Community Care Team,Social Care and Health,Monmouth Adult Team,Third Party Payments,Third Party,Personal Care.,,27/02/2023,11099395,0,1176,C,Bluebird Care Pontypool and Ebbw Vale (Harris Health LTD)
Community Care,Community Care Team,Social Care and Health,Mental Health Care Team,Third Party Payments,Third Party,Personal Care.,,27/02/2023,11099396,0,1620.06,C,Bluebird Care Pontypool and Ebbw Vale (Harris Health LTD)
Community Care,ADULT DISABILITY SERVICES,Social Care and Health,CLDT,Third Party Payments,Third Party,Personal Care.,,27/02/2023,11099398,0,227.7,C,Achieve Together Limited
Community Care,ADULT DISABILITY SERVICES,Social Care and Health,CLDT,Third Party Payments,Third Party,Personal Care.,,27/02/2023,11099401,0,4702.75,C,Crwban Care & Support
Children Services,Children Services Other,Social Care and Health,External Placements - CLA,Employees,Direct Employee Expenses,Travel Claims Allowance,,23/02/2023,11041383,10130021,291.19,C,Orchard House Family Assessement & Intervention Centre
Schools Total,School Group 2 � Pupil Capacity 144-314,MCC Schools,Ysgol Gymraeg Y Fenni,Employees,Indirect Employee Expenses,"Course, Conference And Seminar Fees",,07/02/2023,11092788,80090982,60,C,HSQE Ltd
"Commercial, Corporate & landlord Services",Property Services & Facilities Management,Resources,Usk Accommodation,Premises,"Repairs, Alterations & Maintenance of Buildings",Building Improvements / Maintenance,,00/01/1900,11086252,90059045,2931.67,C,Box-It Wales and Severn
Adult Services,Direct Care,Social Care and Health,Flexible Respite Options,Supplies & Services,Services,Professional And Specialist Fees,,07/02/2023,11092817,10129377,1215,C,A2i Transcription Ltd
Adult Services,Direct Care,Social Care and Health,Flexible Respite Options,Supplies & Services,Services,Professional And Specialist Fees,,07/02/2023,11092819,10129493,1170,C,A2i Transcription Ltd
Adult Services,Direct Care Residential,Social Care and Health,Severn View Residential,Supplies & Services,"Equipment, Furniture and Materials",Cleaning Materials.,,07/02/2023,11092863,10123163,199.08,C,Newhall Janitorial Ltd
"Commercial, Corporate & landlord Services",Property Services & Facilities Management,Resources,Usk Accommodation,Premises,"Repairs, Alterations & Maintenance of Buildings",Building Improvements / Maintenance,,07/02/2023,11086257,90067079,60,C,Shield Security
"Commercial, Corporate & landlord Services",Property Services & Facilities Management,Resources,Magor Accommodation,Premises,"Repairs, Alterations & Maintenance of Buildings",Building Improvements / Maintenance,,07/02/2023,11089535,90062802,110,C,Osprey Services
"Commercial, Corporate & landlord Services",Property Services & Facilities Management,Resources,Reactive Maintenance,Premises,"Repairs, Alterations & Maintenance of Buildings",Building Improvements / Maintenance,,07/02/2023,11092892,90066684,85.26,C,A.J Quinn Building Contractors Ltd
"Commercial, Corporate & landlord Services",Property Services & Facilities Management,Resources,Reactive Maintenance,Premises,"Repairs, Alterations & Maintenance of Buildings",Building Improvements / Maintenance,,07/02/2023,11092897,90066725,72.98,C,A.J Quinn Building Contractors Ltd
"Commercial, Corporate & landlord Services",Property Services & Facilities Management,Resources,Reactive Maintenance,Premises,"Repairs, Alterations & Maintenance of Buildings",Building Improvements / Maintenance,,07/02/2023,11092907,90066782,23,C,A.J Quinn Building Contractors Ltd
"Commercial, Corporate & landlord Services",Property Services & Facilities Management,Resources,Reactive Maintenance,Premises,"Repairs, Alterations & Maintenance of Buildings",Building Improvements / Maintenance,,07/02/2023,11092908,90066854,75.29,C,A.J Quinn Building Contractors Ltd
Schools Total,SCHGRP3 � School Group 3 � Pupil Capacity 315-500,MCC Schools,Overmonnow Primary School,Employees,Indirect Employee Expenses,Staff Welfare,,07/02/2023,11090914,10124235,50,C,Redacted Data
Schools Total,School Group 2 � Pupil Capacity 144-314,MCC Schools,Pembroke Primary School,Employees,Indirect Employee Expenses,Staff Welfare,,07/02/2023,11090919,10127301,100,C,Redacted Data
Schools Total,School Group 2 � Pupil Capacity 144-314,MCC Schools,Pembroke Primary School,Employees,Indirect Employee Expenses,Staff Welfare,,07/02/2023,11090920,10127302,50,C,Redacted Data
Schools Total,School Group 7 � Pupil Capacity 501-1800,MCC Schools,Caldicot School,Employees,Indirect Employee Expenses,Staff Welfare,,07/02/2023,11090922,10128167,50,C,Redacted Data
Schools Total,School Group 7 � Pupil Capacity 501-1800,MCC Schools,Caldicot School,Employees,Indirect Employee Expenses,Staff Welfare,,07/02/2023,11090923,10128169,100,C,Redacted Data
"Commercial, Corporate & landlord Services",Property Services & Facilities Management,Resources,Reactive Maintenance,Premises,"Repairs, Alterations & Maintenance of Buildings",Building Improvements / Maintenance,,07/02/2023,11092909,90066857,23,C,A.J Quinn Building Contractors Ltd
"Commercial, Corporate & landlord Services",Property Services & Facilities Management,Resources,Reactive Maintenance,Premises,"Repairs, Alterations & Maintenance of Buildings",Building Improvements / Maintenance,,07/02/2023,11092910,90066858,57.5,C,A.J Quinn Building Contractors Ltd
Schools Total,School Group 1 � Pupil Capacity 1-143,MCC Schools,Llanvihangel Crucorney Primary School,Supplies & Services,"Equipment, Furniture and Materials",Materials & Consumables.,,07/02/2023,11092978,80089890,1.73,C,Hope Education Ltd
Schools Total,School Group 7 � Pupil Capacity 501-1800,MCC Schools,Caldicot School,Employees,Indirect Employee Expenses,Staff Welfare,,07/02/2023,11090931,10128673,100,C,Redacted Data
Schools Total,SCHGRP3 � School Group 3 � Pupil Capacity 315-500,MCC Schools,Overmonnow Primary School,Employees,Indirect Employee Expenses,Staff Welfare,,07/02/2023,11090930,10128534,50,C,Redacted Data
"Facilities, Fleet & Decarbonisation",Catering Services,Communities & Place,Schools Catering,Employees,Indirect Employee Expenses,Staff Welfare,,07/02/2023,11090928,10128509,100,C,Redacted Data
"Facilities, Fleet & Decarbonisation",Home to School Transport Dept,Communities & Place,Home To School Transport,Employees,Indirect Employee Expenses,Staff Welfare,,07/02/2023,11090927,10128408,50,C,Redacted Data
Adult Services,Direct Care,Social Care and Health,Care at Home,Employees,Indirect Employee Expenses,Staff Welfare,,07/02/2023,11090924,10128185,50,C,Redacted Data
Adult Services,Direct Care,Social Care and Health,Care at Home,Employees,Indirect Employee Expenses,Staff Welfare,,07/02/2023,11090933,10128802,150,C,Redacted Data
Adult Services,Direct Care Residential,Social Care and Health,Severn View Residential,Employees,Indirect Employee Expenses,Staff Welfare,,07/02/2023,11090946,10129515,50,C,Redacted Data
Adult Services,Day Centres,Social Care and Health,My Day,Employees,Indirect Employee Expenses,Staff Welfare,,07/02/2023,11090943,10129345,100,C,Redacted Data
"Policy, Scrutiny & Customer Service",Ukraine,Chief Executive's Unit,Ukraine Support,Employees,Indirect Employee Expenses,Staff Welfare,,07/02/2023,11090936,10129141,150,C,Redacted Data
Schools Total,SCHGRP3 � School Group 3 � Pupil Capacity 315-500,MCC Schools,Undy Primary School,Employees,Indirect Employee Expenses,Staff Welfare,,07/02/2023,11090944,10129366,50,C,Redacted Data
Schools Total,School Group 1 � Pupil Capacity 1-143,MCC Schools,Ysgol Gymraeg Y Ffin,Employees,Indirect Employee Expenses,Staff Welfare,,07/02/2023,11090940,10129287,50,C,Redacted Data
Schools Total,SCHGRP3 � School Group 3 � Pupil Capacity 315-500,MCC Schools,Magor CiW Primary School (VA),Employees,Indirect Employee Expenses,Staff Welfare,,07/02/2023,11090934,10129086,100,C,Redacted Data
Community Care,ADULT DISABILITY SERVICES,Social Care and Health,CLDT,Third Party Payments,Third Party,Personal Care.,,27/02/2023,11099402,0,6179.92,C,Pobl Care & Support
